{"text_format":"1","workbook":"xlsx","n_sheets":26,"sheets":["Photo Sheet","Technical Sketch","Fabric, Trim, Sheet","Apparel Spec Sheet","Original Sample Photos","Original Sample Photos (2)","Fabrics","1st Fit Sample","1st Fit Photo Comments","2nd Fit Sample","2nd Fit Photo Comments","3rd Fit Sample","3rd Fit Photo Comments","Grade S-M-L-XL","Grade XS-S-M-L-XL ","Grade SM - LXL","Grade XS - SM - LXL ","Grade S-M-L","Grade OS","Labels","Pre-Production Sample","PreProduction Photo Comments","PACKAGING","Production Sample Comments","Production Photo Comment","AQL"],"not_rendered":{"charts":0,"images":11,"macros":1,"external_links":1,"defined_names":26,"comments":0,"pivot_tables":0},"unopened":[],"bounds":{"document_bytes":16777216,"sheet_cells":100000,"rows_first":2000,"rows_last":500,"rows_between":2000,"halvings":0,"cell_chars":16384,"cell_head_chars":4096},"cells_cut":0,"cells_raw":0,"read":"whole","date_system":"1900"}

{"sheet":"Photo Sheet","index":0,"n_rows":58,"n_cols":38,"rows_kept":58,"cut":false,"hidden":false,"merged":[[7,1,7,34],[1,16,1,22],[3,16,3,22],[4,16,4,22],[5,16,5,34],[3,30,3,34],[6,1,6,18],[4,29,4,34],[1,29,1,34],[2,16,2,22],[2,23,2,34],[1,23,1,28],[6,19,6,34]]}
[]
[null,null,null,null,null,null,null,null,null,null,null,"Create Date:",null,null,null,null,"AUG 22/2017",null,null,null,null,null,null,"Main Brand Label :"]
[null,null,null,null,null,null,null,null,null,null,null,"Vendor Name:"]
[null,null,null,null,null,null,null,null,null,null,null,"Vndr.Item No.:",null,null,null,null,null,null,null,null,null,null,null,null,null,null,"GC Item No.:"]
[null,null,null,null,null,null,null,null,null,null,null,"Size Range:",null,null,null,null,"0-6 MONTHS",null,null,null,null,null,null,null,null,null,"Season:",null,null,"Spring Summer 2018"]
[null,null,null,null,null,null,null,null,null,null,null,"Description:",null,null,null,null,"BABY- SHORT SLEEVE ONESIE PRINT WITH CHEST DIAGONAL OPENING"]
[null,"BABY APPAREL SPEC SHEET -- ONSIE",null,null,null,null,null,null,null,null,null,null,null,null,null,null,null,null,null,"REFERENCE # SS18 -1076"]
[null,"PHOTOS OF ORIGINAL SAMPLE"]
[]
[]
[]
[]
[]
[]
[]
[]
[]
[]
[]
[]
[]
[]
[]
[]
[]
[]
[]
[]
[]
[]
[]
[]
[]
[]
[]
[]
[]
[]
[]
[]
[]
[]
[]
[]
[]
[]
[]
[]
[]
[]
[]
[]
[]
[null,null,null,null,null,null,null,null,null,null,null,null,null,null,null,null,null,null,null,null,null,null,null,null,null,null,null,null,null,null,null,null,null,null,null,null,null,"S-M-L"]
[null,null,null,null,null,null,null,null,null,null,null,null,null,null,null,null,null,null,null,null,null,null,null,null,null,null,null,null,null,null,null,null,null,null,null,null,null,"SM-LXL"]
[null,null,null,null,null,null,null,null,null,null,null,null,null,null,null,null,null,null,null,null,null,null,null,null,null,null,null,null,null,null,null,null,null,null,null,null,null,"S-M-L-XL"]
[null,null,null,null,null,null,null,null,null,null,null,null,null,null,null,null,null,null,null,null,null,null,null,null,null,null,null,null,null,null,null,null,null,null,null,null,null,"1X-2X-3X"]
[null,null,null,null,null,null,null,null,null,null,null,null,null,null,null,null,null,null,null,null,null,null,null,null,null,null,null,null,null,null,null,null,null,null,null,null,null,"OS"]

{"sheet":"Technical Sketch","index":1,"n_rows":15,"n_cols":40,"rows_kept":15,"cut":false,"hidden":true,"merged":[[1,16,1,22],[2,16,2,34],[3,16,3,22],[3,30,3,34],[4,16,4,22],[4,29,4,34],[5,16,5,34],[6,1,6,34],[7,1,7,18],[7,19,7,22],[7,23,7,31]]}
[]
[null,null,null,null,null,null,null,null,null,null,null,"Create Date:",null,null,null,null,{"$f":"'Photo Sheet'!Q2:W2","v":"AUG 22/2017"}]
[null,null,null,null,null,null,null,null,null,null,null,"Vendor Name:",null,null,null,null,{"$f":"'Photo Sheet'!Q3:AI3","v":0}]
[null,null,null,null,null,null,null,null,null,null,null,"Vndr.Item No.:",null,null,null,null,{"$f":"'Photo Sheet'!Q4:W4","v":0},null,null,null,null,null,null,null,null,null,"GC Item No.:",null,null,null,{"$f":"'Photo Sheet'!AE4:AI4","v":0}]
[null,null,null,null,null,null,null,null,null,null,null,"Size Range:",null,null,null,null,{"$f":"'Photo Sheet'!Q5:W5","v":"0-6 MONTHS"},null,null,null,null,null,null,null,null,null,"Season:",null,null,"Fall Winter 2016"]
[null,null,null,null,null,null,null,null,null,null,null,"Description:",null,null,null,null,{"$f":"'Photo Sheet'!Q6:AI6","v":"BABY- SHORT SLEEVE ONESIE PRINT WITH CHEST DIAGONAL OPENING"}]
[null,"FIT FOR DEVELOPMENT SAMPLE / PHOTO / SALESMANS SAMPLES ONLY",null,null,null,null,null,null,null,null,null,null,null,null,null,null,null,null,null,null,null,null,null,null,null,null,null,null,null,null,null,null,null,null,null,null,null,null,null,"S"]
[null,"TECHNICAL SKETCH",null,null,null,null,null,null,null,null,null,null,null,null,null,null,null,null,null,"Date:",null,null,null,null,null,null,null,null,null,null,null,null,null,null,null,null,null,null,null,"M"]
[null,null,null,null,null,null,null,null,null,null,null,null,null,null,null,null,null,null,null,null,null,null,null,null,null,null,null,null,null,null,null,null,null,null,null,null,null,null,null,"L"]
[null,null,null,null,null,null,null,null,null,null,null,null,null,null,null,null,null,null,null,null,null,null,null,null,null,null,null,null,null,null,null,null,null,null,null,null,null,null,null,"XL"]
[null,null,null,null,null,null,null,null,null,null,null,null,null,null,null,null,null,null,null,null,null,null,null,null,null,null,null,null,null,null,null,null,null,null,null,null,null,null,null,"SM"]
[null,null,null,null,null,null,null,null,null,null,null,null,null,null,null,null,null,null,null,null,null,null,null,null,null,null,null,null,null,null,null,null,null,null,null,null,null,null,null,"LXL"]
[null,null,null,null,null,null,null,null,null,null,null,null,null,null,null,null,null,null,null,null,null,null,null,null,null,null,null,null,null,null,null,null,null,null,null,null,null,null,null,"OS"]
[null,null,null,null,null,null,null,null,null,null,null,null,null,null,null,null,null,null,null,null,null,null,null,null,null,null,null,null,null,null,null,null,null,null,null,null,null,null,null,"1X"]
[null,null,null,null,null,null,null,null,null,null,null,null,null,null,null,null,null,null,null,null,null,null,null,null,null,null,null,null,null,null,null,null,null,null,null,null,null,null,null,"2X"]

{"sheet":"Fabric, Trim, Sheet","index":2,"n_rows":42,"n_cols":40,"rows_kept":42,"cut":false,"hidden":false,"merged":[[47,28,47,34],[48,28,48,34],[49,28,49,34],[50,28,50,34],[48,7,48,27],[49,7,49,27],[50,7,50,27],[34,28,34,34],[35,28,35,34],[36,28,36,34],[37,28,37,34],[38,28,38,34],[39,28,39,34],[40,28,40,34],[41,28,41,34],[42,28,42,34],[43,28,43,34],[44,28,44,34],[45,28,45,34],[46,28,46,34],[49,1,49,6],[50,1,50,6],[34,7,34,27],[35,7,35,27],[36,7,36,27],[37,7,37,27],[38,7,38,27],[39,7,39,27],[40,7,40,27],[41,7,41,27],[42,7,42,27],[43,7,43,27],[44,7,44,27],[45,7,45,27],[46,7,46,27],[47,7,47,27],[44,1,44,6],[45,1,45,6],[46,1,46,6],[47,1,47,6],[48,1,48,6],[43,1,43,6],[34,1,34,6],[35,1,35,6],[32,1,32,34],[29,7,29,23],[30,7,30,23],[26,24,26,27],[27,24,27,27],[28,24,28,27],[29,28,29,34],[30,28,30,34],[33,28,33,34],[33,7,33,27],[27,1,27,6],[28,1,28,6],[30,1,30,6],[29,24,29,27],[30,24,30,27],[29,1,29,6],[31,1,31,6],[31,7,31,23],[31,24,31,27],[31,28,31,34],[36,1,36,6],[37,1,37,6],[38,1,38,6],[33,1,33,6],[39,1,39,6],[40,1,40,6],[41,1,41,6],[42,1,42,6],[21,28,21,34],[22,28,22,34],[23,28,23,34],[24,28,24,34],[25,28,25,34],[26,28,26,34],[27,28,27,34],[28,28,28,34],[25,1,25,6],[25,24,25,27],[24,7,24,23],[25,7,25,23],[26,7,26,23],[27,7,27,23],[28,7,28,23],[26,1,26,6],[20,1,20,6],[21,1,21,6],[22,1,22,6],[23,1,23,6],[24,1,24,6],[12,21,12,27],[13,21,13,27],[14,21,14,27],[19,1,19,6],[19,24,19,27],[19,7,19,23],[14,7,14,13],[15,7,15,13],[16,7,17,13],[20,24,20,27],[21,24,21,27],[22,24,22,27],[23,24,23,27],[24,24,24,27],[23,7,23,23],[7,21,7,27],[7,28,7,34],[4,29,4,34],[20,7,20,23],[21,7,21,23],[22,7,22,23],[2,16,2,22],[2,23,2,34],[20,28,20,34],[11,14,11,20],[12,14,12,20],[13,14,13,20],[19,28,19,34],[8,14,8,20],[9,14,9,20],[15,21,15,27],[10,14,10,20],[16,28,17,34],[16,14,17,20],[16,21,17,27],[9,28,9,34],[10,28,10,34],[11,28,11,34],[8,28,8,34],[1,16,1,22],[3,16,3,22],[3,30,3,34],[4,16,4,22],[5,16,5,34],[7,1,7,6],[15,14,15,20],[12,28,12,34],[13,28,13,34],[14,28,14,34],[15,28,15,34],[11,7,11,13],[12,7,12,13],[13,7,13,13],[11,21,11,27],[8,21,8,27],[9,21,9,27],[10,21,10,27],[14,14,14,20],[8,7,8,13],[9,7,9,13],[10,7,10,13],[7,7,7,13],[7,14,7,20]]}
[]
[null,null,null,null,null,null,null,null,null,null,null,"Create Date:",null,null,null,null,{"$f":"'Photo Sheet'!Q2:W2","v":"AUG 22/2017"}]
[null,null,null,null,null,null,null,null,null,null,null,"Vendor Name:",null,null,null,null,{"$f":"'Photo Sheet'!Q3:AI3","v":0}]
[null,null,null,null,null,null,null,null,null,null,null,"Vndr.Item No.:",null,null,null,null,{"$f":"'Photo Sheet'!Q4:W4","v":0},null,null,null,null,null,null,null,null,null,"GC Item No.:",null,null,null,{"$f":"'Photo Sheet'!AE4:AI4","v":0}]
[null,null,null,null,null,null,null,null,null,null,null,"Size Range:",null,null,null,null,{"$f":"'Photo Sheet'!Q5:W5","v":"0-6 MONTHS"},null,null,null,null,null,null,null,null,null,"Season:",null,null,{"$f":"'Photo Sheet'!AD5:AI5","v":"Spring Summer 2018"}]
[null,null,null,null,null,null,null,null,null,null,null,"Description:",null,null,null,null,{"$f":"'Photo Sheet'!Q6:AI6","v":"BABY- SHORT SLEEVE ONESIE PRINT WITH CHEST DIAGONAL OPENING"}]
[]
[null,"FABRIC DETAILS:",null,null,null,null,null,"FABRIC 1",null,null,null,null,null,null,"COLOUR 1",null,null,null,null,null,null,"FABRIC 2",null,null,null,null,null,null,"COLOUR 2"]
[null,"Product Component:",null,null,null,null,null,"KNIT",null,null,null,null,null,null,null,null,null,null,null,null,null,"KNIT",null,null,null,null,null,null,"CONTRAST"]
[null,"Fibre Content:",null,null,null,null,null,"100% COTTON",null,null,null,null,null,null,null,null,null,null,null,null,null,"100% COTTON"]
[null,"Description:",null,null,null,null,null,"PRINT INTERLOCK",null,null,null,null,null,null,null,null,null,null,null,null,null,"SOLID INTERLOCK"]
[null,"Weight:",null,null,null,null,null,"188 GSM",null,null,null,null,null,null,null,null,null,null,null,null,null,"188 GSM"]
[null,"Construction:"]
[null,"Yarn Count:"]
[null,"Garment Finish:"]
[null,"   (wash, garment dye etc)"]
[null,"Special Requests:"]
[]
[]
[null,"TRIM DETAILS",null,null,null,null,null,"DESCRIPTION",null,null,null,null,null,null,null,null,null,null,null,null,null,null,null,null,"SIZE",null,null,null,"COLOUR"]
[null,"Binding",null,null,null,null,null,"NECK, LEG OPENINGS",null,null,null,null,null,null,null,null,null,null,null,null,null,null,null,null,null,null,null,null,"WHITE",null,null,null,null,null,null,null,null,null,null,"Binding"]
[null,"Buttons",null,null,null,null,null,null,null,null,null,null,null,null,null,null,null,null,null,null,null,null,null,null,null,null,null,null,null,null,null,null,null,null,null,null,null,null,null,"Buttons"]
[null,"Elastic",null,null,null,null,null,null,null,null,null,null,null,null,null,null,null,null,null,null,null,null,null,null,null,null,null,null,null,null,null,null,null,null,null,null,null,null,null,"Elastic"]
[null,"Fasteners",null,null,null,null,null,null,null,null,null,null,null,null,null,null,null,null,null,null,null,null,null,null,null,null,null,null,null,null,null,null,null,null,null,null,null,null,null,"Fasteners"]
[null,"Mobilon",null,null,null,null,null,null,null,null,null,null,null,null,null,null,null,null,null,null,null,null,null,null,null,null,null,null,null,null,null,null,null,null,null,null,null,null,null,"Mobilon"]
[null,"Piping",null,null,null,null,null,null,null,null,null,null,null,null,null,null,null,null,null,null,null,null,null,null,null,null,null,null,null,null,null,null,null,null,null,null,null,null,null,"Piping"]
[null,"Zipper",null,null,null,null,null,null,null,null,null,null,null,null,null,null,null,null,null,null,null,null,null,null,null,null,null,null,null,null,null,null,null,null,null,null,null,null,null,"Zipper"]
[null,"Interfacing"]
[null,"Sliders"]
[null,"Snaps",null,null,null,null,null,"SOLID TOP METAL SNAPS",null,null,null,null,null,null,null,null,null,null,null,null,null,null,null,null,"10MM",null,null,null,"DTM METAL TOPS TO TRIM "]
[null,"Snaps",null,null,null,null,null,"3- METAL RING SNAPS",null,null,null,null,null,null,null,null,null,null,null,null,null,null,null,null,"10MM",null,null,null,"DTM METAL TOPS TO TRIM "]
[null,"Tape",null,null,null,null,null,"COTTON TWILL ON FRONT CROTCH FACING ",null,null,null,null,null,null,null,null,null,null,null,null,null,null,null,null,"7/8\" WIDE",null,null,null,"WHITE"]
[null,"GARMENT CONSTRUCTION DETAILS"]
[null,"LOCATION",null,null,null,null,null,"DESCRIPTION",null,null,null,null,null,null,null,null,null,null,null,null,null,null,null,null,null,null,null,null,"ISO STANDARD"]
[null,null,null,null,null,null,null,null,null,null,null,null,null,null,null,null,null,null,null,null,null,null,null,null,null,null,null,null,null,null,null,null,null,null,null,null,null,null,null,"2 Needle Bottom Cover Stitch"]
[null,null,null,null,null,null,null,null,null,null,null,null,null,null,null,null,null,null,null,null,null,null,null,null,null,null,null,null,null,null,null,null,null,null,null,null,null,null,null,"2 Needle, 4 Thread Cover Stitch"]
[null,null,null,null,null,null,null,null,null,null,null,null,null,null,null,null,null,null,null,null,null,null,null,null,null,null,null,null,null,null,null,null,null,null,null,null,null,null,null,"3 Needle Bottom Cover Stitch"]
[null,null,null,null,null,null,null,null,null,null,null,null,null,null,null,null,null,null,null,null,null,null,null,null,null,null,null,null,null,null,null,null,null,null,null,null,null,null,null,"3 Thread OverEdge"]
[null,null,null,null,null,null,null,null,null,null,null,null,null,null,null,null,null,null,null,null,null,null,null,null,null,null,null,null,null,null,null,null,null,null,null,null,null,null,null,"5 Needle, 5 Thread Cover Stitch"]
[null,null,null,null,null,null,null,null,null,null,null,null,null,null,null,null,null,null,null,null,null,null,null,null,null,null,null,null,null,null,null,null,null,null,null,null,null,null,null,"5 Thread Safety Stitch"]
[null,null,null,null,null,null,null,null,null,null,null,null,null,null,null,null,null,null,null,null,null,null,null,null,null,null,null,null,null,null,null,null,null,null,null,null,null,null,null,"Lock Stitch"]
[null,null,null,null,null,null,null,null,null,null,null,null,null,null,null,null,null,null,null,null,null,null,null,null,null,null,null,null,null,null,null,null,null,null,null,null,null,null,null,"ZigZag Lock Stitch"]

{"sheet":"Apparel Spec Sheet","index":3,"n_rows":53,"n_cols":40,"rows_kept":53,"cut":false,"hidden":false,"merged":[[52,1,52,34],[7,19,7,22],[7,23,7,31],[7,1,7,18],[48,19,48,22],[48,23,48,31],[48,32,48,34],[49,1,49,14],[49,15,49,18],[49,19,49,22],[49,23,49,31],[49,32,49,34],[46,19,46,22],[46,23,46,31],[46,32,46,34],[47,1,47,14],[47,15,47,18],[47,19,47,22],[47,23,47,31],[47,32,47,34],[43,1,43,14],[43,15,43,18],[43,19,43,22],[43,23,43,31],[39,32,39,34],[38,19,38,22],[38,23,38,31],[38,1,38,14],[38,15,38,18],[42,1,42,14],[42,15,42,18],[42,19,42,22],[42,23,42,31],[41,1,41,14],[41,15,41,18],[41,19,41,22],[35,32,35,34],[36,1,36,14],[36,15,36,18],[36,19,36,22],[36,23,36,31],[36,32,36,34],[40,19,40,22],[40,23,40,31],[40,32,40,34],[40,1,40,14],[40,15,40,18],[35,15,35,18],[35,19,35,22],[35,23,35,31],[37,32,37,34],[37,1,37,14],[37,15,37,18],[37,19,37,22],[37,23,37,31],[38,32,38,34],[39,1,39,14],[39,15,39,18],[39,19,39,22],[39,23,39,31],[28,23,28,31],[28,32,28,34],[29,1,29,14],[28,1,28,14],[28,15,28,18],[32,32,32,34],[33,1,33,14],[33,15,33,18],[33,19,33,22],[33,23,33,31],[33,32,33,34],[30,1,30,14],[30,15,30,18],[30,19,30,22],[30,23,30,31],[30,32,30,34],[31,1,31,14],[31,15,31,18],[31,19,31,22],[31,23,31,31],[31,32,31,34],[32,19,32,22],[32,23,32,31],[29,19,29,22],[29,23,29,31],[19,1,19,14],[19,15,19,18],[19,19,19,22],[19,23,19,31],[19,32,19,34],[16,19,16,22],[16,23,16,31],[16,32,16,34],[17,1,17,14],[17,15,17,18],[29,32,29,34],[26,1,26,14],[26,15,26,18],[26,19,26,22],[26,23,26,31],[26,32,26,34],[27,1,27,14],[27,15,27,18],[27,19,27,22],[27,23,27,31],[27,32,27,34],[28,19,28,22],[41,23,41,31],[48,1,48,14],[48,15,48,18],[46,1,46,14],[46,15,46,18],[45,1,45,14],[45,15,45,18],[45,19,45,22],[50,1,50,34],[45,23,45,31],[45,32,45,34],[42,32,42,34],[43,32,43,34],[44,1,44,14],[44,15,44,18],[44,19,44,22],[44,23,44,31],[44,32,44,34],[41,32,41,34],[35,1,35,14],[11,32,11,34],[12,1,12,14],[12,15,12,18],[12,19,12,22],[12,23,12,31],[12,32,12,34],[23,32,23,34],[24,32,24,34],[15,1,15,14],[20,19,20,22],[20,23,20,31],[20,32,20,34],[21,1,21,14],[21,15,21,18],[21,19,21,22],[21,23,21,31],[21,32,21,34],[18,1,18,14],[18,15,18,18],[18,19,18,22],[18,23,18,31],[18,32,18,34],[23,19,23,22],[8,15,8,18],[8,19,8,22],[9,19,9,22],[8,23,9,31],[25,1,25,14],[25,15,25,18],[25,19,25,22],[25,23,25,31],[22,1,22,14],[22,15,22,18],[20,1,20,14],[20,15,20,18],[16,1,16,14],[16,15,16,18],[22,23,22,31],[22,19,22,22],[13,1,13,14],[13,15,13,18],[13,19,13,22],[13,23,13,31],[14,1,14,14],[14,15,14,18],[8,1,9,14],[9,15,9,18],[15,23,15,31],[34,23,34,31],[34,32,34,34],[15,32,15,34],[11,1,11,14],[10,19,10,22],[10,15,10,18],[10,1,10,14],[11,15,11,18],[11,19,11,22],[11,23,11,31],[34,1,34,14],[34,15,34,18],[32,1,32,14],[32,15,32,18],[23,1,23,14],[23,15,23,18],[34,19,34,22],[23,23,23,31],[24,1,24,14],[24,15,24,18],[24,19,24,22],[24,23,24,31],[29,15,29,18],[2,16,2,22],[2,23,2,34],[51,15,51,34],[5,16,5,34],[1,16,1,22],[3,16,3,22],[3,30,3,34],[4,16,4,22],[22,32,22,34],[25,32,25,34],[8,32,9,34],[10,32,10,34],[10,23,10,31],[13,32,13,34],[14,19,14,22],[14,23,14,31],[14,32,14,34],[15,15,15,18],[15,19,15,22],[17,19,17,22],[17,23,17,31],[17,32,17,34],[4,29,4,34],[6,1,6,34]]}
[]
[null,null,null,null,null,null,null,null,null,null,null,"Create Date:",null,null,null,null,{"$f":"'Photo Sheet'!Q2:W2","v":"AUG 22/2017"}]
[null,null,null,null,null,null,null,null,null,null,null,"Vendor Name:",null,null,null,null,{"$f":"'Photo Sheet'!Q3:AI3","v":0}]
[null,null,null,null,null,null,null,null,null,null,null,"Vndr.Item No.:",null,null,null,null,{"$f":"'Photo Sheet'!Q4:W4","v":0},null,null,null,null,null,null,null,null,null,"GC Item No.:",null,null,null,{"$f":"'Photo Sheet'!AE4:AI4","v":0}]
[null,null,null,null,null,null,null,null,null,null,null,"Size Range:",null,null,null,null,{"$f":"'Photo Sheet'!Q5:W5","v":"0-6 MONTHS"},null,null,null,null,null,null,null,null,null,"Season:",null,null,"Spring Summer 2018"]
[null,null,null,null,null,null,null,null,null,null,null,"Description:",null,null,null,null,{"$f":"'Photo Sheet'!Q6:AI6","v":"BABY- SHORT SLEEVE ONESIE PRINT WITH CHEST DIAGONAL OPENING"}]
[null,"FIT FOR DEVELOPMENT SAMPLE / PHOTO / SALESMANS SAMPLES ONLY- SIZE S or SM"]
[null,"BABY APPAREL SPEC SHEET -- ONSIE",null,null,null,null,null,null,null,null,null,null,null,null,null,null,null,null,null,"Date:",null,null,null,"AUG 22/2017",null,null,null,null,null,null,null,null,null,null,null,null,null,null,null,"S"]
[null,"(Measurements on flat / inches)",null,null,null,null,null,null,null,null,null,null,null,null,null,"Original Sample",null,null,null,null,null,null,null,"Comments",null,null,null,null,null,null,null,null,"Tolerance\n+ / -\n(on flat)",null,null,null,null,null,null,"M"]
[null,null,null,null,null,null,null,null,null,null,null,null,null,null,null,"0-6M",null,null,null,"0-6M",null,null,null,null,null,null,null,null,null,null,null,null,null,null,null,null,null,null,null,"L"]
[null,"BACK TORSO LENGTH( HSP TO BACK CROTH -UNDOMED)",null,null,null,null,null,null,null,null,null,null,null,null,null,18,null,null,null,18,null,null,null,null,null,null,null,null,null,null,null,null,0.375,null,null,null,null,null,null,"XL"]
[null,"CENTER BACK LENGTH( C.B. NECK TO HEM",null,null,null,null,null,null,null,null,null,null,null,null,null,null,null,null,null,null,null,null,null,null,null,null,null,null,null,null,null,null,0.25,null,null,null,null,null,null,"SM"]
[null,"FRONT TORSO LENGTH ( HSP TO FRONT CROTCH-UNDOMED)",null,null,null,null,null,null,null,null,null,null,null,null,null,15.5,null,null,null,15.5,null,null,null,null,null,null,null,null,null,null,null,null,0.375,null,null,null,null,null,null,"LXL"]
[null,"CHEST( 1/2\" BELOW ARMHOLE",null,null,null,null,null,null,null,null,null,null,null,null,null,8.5,null,null,null,8.5,null,null,null,null,null,null,null,null,null,null,null,null,0.25,null,null,null,null,null,null,"OS"]
[null,"WAIST",null,null,null,null,null,null,null,null,null,null,null,null,null,8,null,null,null,8,null,null,null,null,null,null,null,null,null,null,null,null,0.25,null,null,null,null,null,null,"1X"]
[null,"HIP ( TOP OF LEG OPENING)",null,null,null,null,null,null,null,null,null,null,null,null,null,8.75,null,null,null,8.75,null,null,null,null,null,null,null,null,null,null,null,null,0.25,null,null,null,null,null,null,"2X"]
[null,"HEM STRAIGHT",null,null,null,null,null,null,null,null,null,null,null,null,null,null,null,null,null,null,null,null,null,null,null,null,null,null,null,null,null,null,0.25,null,null,null,null,null,null,"3X"]
[null,"ACROSS SHOULDERS",null,null,null,null,null,null,null,null,null,null,null,null,null,7,null,null,null,7,null,null,null,null,null,null,null,null,null,null,null,null,0.25]
[null,"SHOULDER SEAM LENGTH",null,null,null,null,null,null,null,null,null,null,null,null,null,null,null,null,null,null,null,null,null,null,null,null,null,null,null,null,null,null,0.25]
[null,"ACROSS FRONT ( MID ARMHOLE)",null,null,null,null,null,null,null,null,null,null,null,null,null,6,null,null,null,6,null,null,null,null,null,null,null,null,null,null,null,null,0.25]
[null,"ACROSS BACK ( MID ARMHOLE)",null,null,null,null,null,null,null,null,null,null,null,null,null,6.5,null,null,null,6.5,null,null,null,null,null,null,null,null,null,null,null,null,0.25]
[null,"RAGLAN ACROSS FRONT ( MID ARMHOLE)",null,null,null,null,null,null,null,null,null,null,null,null,null,null,null,null,null,null,null,null,null,null,null,null,null,null,null,null,null,null,0.25]
[null,"RAGLAN ACROSS BACK ( MIS ARMHOLE)",null,null,null,null,null,null,null,null,null,null,null,null,null,null,null,null,null,null,null,null,null,null,null,null,null,null,null,null,null,null,0.25]
[null,"OVERARM - SLEEVE CAP TO HEM - SHORT SLEEVE",null,null,null,null,null,null,null,null,null,null,null,null,null,3,null,null,null,3,null,null,null,null,null,null,null,null,null,null,null,null,0.125]
[null,"OVERARM - SLEEVE CAP TO HEM - 3/4  SLEEVE",null,null,null,null,null,null,null,null,null,null,null,null,null,null,null,null,null,null,null,null,null,null,null,null,null,null,null,null,null,null,0.25]
[null,"OVERARM - SLEEVE CAP TO HEM - LONG SLEEVE",null,null,null,null,null,null,null,null,null,null,null,null,null,null,null,null,null,null,null,null,null,null,null,null,null,null,null,null,null,null,0.25]
[null,"OVERARM ( NECK TO SLEEVE HEM)",null,null,null,null,null,null,null,null,null,null,null,null,null,null,null,null,null,null,null,null,null,null,null,null,null,null,null,null,null,null,0.25]
[null,"1/2 ARMHOLE STRAIGHT",null,null,null,null,null,null,null,null,null,null,null,null,null,4.25,null,null,null,4.25,null,null,null,null,null,null,null,null,null,null,null,null,0.125]
[null,"FRONT RAGLAN LENGTH ON SEAM",null,null,null,null,null,null,null,null,null,null,null,null,null,null,null,null,null,null,null,null,null,null,null,null,null,null,null,null,null,null,0.25]
[null,"BACK RAGLAN LENGTH ON SEAM",null,null,null,null,null,null,null,null,null,null,null,null,null,null,null,null,null,null,null,null,null,null,null,null,null,null,null,null,null,null,0.25]
[null,"BICEP ( AT ARMHOLE SEAM)",null,null,null,null,null,null,null,null,null,null,null,null,null,3.5,null,null,null,3.5,null,null,null,null,null,null,null,null,null,null,null,null,0.125]
[null,"ELBOW",null,null,null,null,null,null,null,null,null,null,null,null,null,null,null,null,null,null,null,null,null,null,null,null,null,null,null,null,null,null,0.125]
[null,"SHORT SLEEVE OPENING",null,null,null,null,null,null,null,null,null,null,null,null,null,3.25,null,null,null,3.25,null,null,null,null,null,null,null,null,null,null,null,null,0.125]
[null,"3/4 SLEEVE OPENING",null,null,null,null,null,null,null,null,null,null,null,null,null,null,null,null,null,null,null,null,null,null,null,null,null,null,null,null,null,null,0.125]
[null,"LONG SLEEVE OPENING",null,null,null,null,null,null,null,null,null,null,null,null,null,null,null,null,null,null,null,null,null,null,null,null,null,null,null,null,null,null,0.125]
[null,"SLEEEVE CAP HEIGHT",null,null,null,null,null,null,null,null,null,null,null,null,null,null,null,null,null,null,null,null,null,null,null,null,null,null,null,null,null,null,0.125]
[null,"NECK WIDTH ( ON BACK BETWEEN TRIM)",null,null,null,null,null,null,null,null,null,null,null,null,null,4.5,null,null,null,4.5,null,null,null,null,null,null,null,null,null,null,null,null,0.125]
[null,"FRONT NECK DROP",null,null,null,null,null,null,null,null,null,null,null,null,null,2,null,null,null,2,null,null,null,null,null,null,null,null,null,null,null,null,0.125]
[null,"BACK NECK DROP",null,null,null,null,null,null,null,null,null,null,null,null,null,"3/4",null,null,null,"3/4",null,null,null,null,null,null,null,null,null,null,null,null,0.125]
[null,"1/2 NECK CIRECUMFERENCE - RELAXED",null,null,null,null,null,null,null,null,null,null,null,null,null,null,null,null,null,null,null,null,null,null,null,null,null,null,null,null,null,null,0.125]
[null,"1/2 NECK CIRECUMFERENCE -EXTENDED",null,null,null,null,null,null,null,null,null,null,null,null,null,8.5,null,null,null,8.5,null,null,null,null,null,null,null,null,null,null,null,null,0.25]
[null,"COLLAR DEPTH AT C.B NECK",null,null,null,null,null,null,null,null,null,null,null,null,null,null,null,null,null,null,null,null,null,null,null,null,null,null,null,null,null,null,0]
[null,"NECK TRIM DEPTH",null,null,null,null,null,null,null,null,null,null,null,null,null,"1/2",null,null,null,"1/2",null,null,null,null,null,null,null,null,null,null,null,null,0]
[null,"CUFF DEPTH",null,null,null,null,null,null,null,null,null,null,null,null,null,null,null,null,null,null,null,null,null,null,null,null,null,null,null,null,null,null,0]
[null,"SLEEVE HEM DEPTH",null,null,null,null,null,null,null,null,null,null,null,null,null,0.5,null,null,null,0.5,null,null,null,null,null,null,null,null,null,null,null,null,0]
[null,"BOTTOM HEM DEPTH",null,null,null,null,null,null,null,null,null,null,null,null,null,null,null,null,null,null,null,null,null,null,null,null,null,null,null,null,null,null,0]
[null,"THIGH ( 1/2\" BELOW CROTCH)",null,null,null,null,null,null,null,null,null,null,null,null,null,null,null,null,null,null,null,null,null,null,null,null,null,null,null,null,null,null,0.125]
[null,"KNEE WIDTH",null,null,null,null,null,null,null,null,null,null,null,null,null,null,null,null,null,null,null,null,null,null,null,null,null,null,null,null,null,null,0.125]
[null,"LEG OPENING WIDTH",null,null,null,null,null,null,null,null,null,null,null,null,null,4,null,null,null,4,null,null,null,null,null,null,null,null,null,null,null,null,0.125]
[null,"FRONT CROTCH WIDTH",null,null,null,null,null,null,null,null,null,null,null,null,null,3.25,null,null,null,3.25,null,null,null,null,null,null,null,null,null,null,null,null,0.125]
[null,"SAM E BODY FIT AS SS18-1075- EXCEPT DIFFERENT FRONT STYLING"]
[null,"Sample Approved?",null,null,null,null,null,null,null,null,null,null,null,null,null,"PLEASE MAKE SAMPLE IN SAME GSM WIGHT AND TO SPECS"]
[null,"If sample is NOT approved, then submit 1st Fit Sample. If sample is APPROVED, then submit Pre-Production Samples."]

{"sheet":"Original Sample Photos","index":4,"n_rows":19,"n_cols":40,"rows_kept":19,"cut":false,"hidden":false,"merged":[[5,16,5,34],[7,1,7,18],[7,19,7,22],[7,23,7,31],[1,16,1,22],[3,16,3,22],[3,30,3,34],[4,16,4,22],[4,29,4,34],[6,1,6,34],[2,16,2,22],[2,23,2,34]]}
[]
[null,null,null,null,null,null,null,null,null,null,null,"Create Date:",null,null,null,null,{"$f":"'Photo Sheet'!Q2:W2","v":"AUG 22/2017"}]
[null,null,null,null,null,null,null,null,null,null,null,"Vendor Name:",null,null,null,null,{"$f":"'Photo Sheet'!Q3:AI3","v":0}]
[null,null,null,null,null,null,null,null,null,null,null,"Vndr.Item No.:",null,null,null,null,{"$f":"'Photo Sheet'!Q4:W4","v":0},null,null,null,null,null,null,null,null,null,"GC Item No.:",null,null,null,{"$f":"'Photo Sheet'!AE4:AI4","v":0}]
[null,null,null,null,null,null,null,null,null,null,null,"Size Range:",null,null,null,null,{"$f":"'Photo Sheet'!Q5:W5","v":"0-6 MONTHS"},null,null,null,null,null,null,null,null,null,"Season:"]
[null,null,null,null,null,null,null,null,null,null,null,"Description:",null,null,null,null,{"$f":"'Photo Sheet'!Q6:AI6","v":"BABY- SHORT SLEEVE ONESIE PRINT WITH CHEST DIAGONAL OPENING"}]
[null,"FIT FOR DEVELOPMENT SAMPLE / PHOTO / SALESMANS SAMPLES ONLY"]
[null,"BABY APPAREL PHOTO COMMENTS  -- ONSIE",null,null,null,null,null,null,null,null,null,null,null,null,null,null,null,null,null,"Date:",null,null,null,"AUG 22/2017",null,null,null,null,null,null,null,null,null,null,null,null,null,null,null,"S"]
[null,null,null,null,null,null,null,null,null,null,null,null,null,null,null,null,null,null,null,null,null,null,null,null,null,null,null,null,null,null,null,null,null,null,null,null,null,null,null,"M"]
[null,null,null,null,null,null,null,null,null,null,null,null,null,null,null,null,null,null,null,null,null,null,null,null,null,null,null,null,null,null,null,null,null,null,null,null,null,null,null,"L"]
[null,null,null,null,null,null,null,null,null,null,null,null,null,null,null,null,null,null,null,null,null,null,null,null,null,null,null,null,null,null,null,null,null,null,null,null,null,null,null,"XL"]
[null,null,null,null,null,null,null,null,null,null,null,null,null,null,null,null,null,null,null,null,null,null,null,null,null,null,null,null,null,null,null,null,null,null,null,null,null,null,null,"SM"]
[null,null,null,null,null,null,null,null,null,null,null,null,null,null,null,null,null,null,null,null,null,null,null,null,null,null,null,null,null,null,null,null,null,null,null,null,null,null,null,"LXL"]
[null,null,null,null,null,null,null,null,null,null,null,null,null,null,null,null,null,null,null,null,null,null,null,null,null,null,null,null,null,null,null,null,null,null,null,null,null,null,null,"XXL"]
[null,null,null,null,null,null,null,null,null,null,null,null,null,null,null,null,null,null,null,null,null,null,null,null,null,null,null,null,null,null,null,null,null,null,null,null,null,null,null,"XXXL"]
[null,null,null,null,null,null,null,null,null,null,null,null,null,null,null,null,null,null,null,null,null,null,null,null,null,null,null,null,null,null,null,null,null,null,null,null,null,null,null,"OS"]
[null,null,null,null,null,null,null,null,null,null,null,null,null,null,null,null,null,null,null,null,null,null,null,null,null,null,null,null,null,null,null,null,null,null,null,null,null,null,null,"1X"]
[null,null,null,null,null,null,null,null,null,null,null,null,null,null,null,null,null,null,null,null,null,null,null,null,null,null,null,null,null,null,null,null,null,null,null,null,null,null,null,"2X"]
[null,null,null,null,null,null,null,null,null,null,null,null,null,null,null,null,null,null,null,null,null,null,null,null,null,null,null,null,null,null,null,null,null,null,null,null,null,null,null,"3X"]

{"sheet":"Original Sample Photos (2)","index":5,"n_rows":19,"n_cols":40,"rows_kept":19,"cut":false,"hidden":false,"merged":[[4,16,4,22],[4,29,4,34],[1,16,1,22],[2,16,2,22],[2,23,2,34],[3,16,3,22],[3,30,3,34],[5,16,5,34],[6,1,6,34],[7,1,7,18],[7,19,7,22],[7,23,7,31]]}
[]
[null,null,null,null,null,null,null,null,null,null,null,"Create Date:",null,null,null,null,{"$f":"'Photo Sheet'!Q2:W2","v":"AUG 22/2017"}]
[null,null,null,null,null,null,null,null,null,null,null,"Vendor Name:",null,null,null,null,{"$f":"'Photo Sheet'!Q3:AI3","v":0}]
[null,null,null,null,null,null,null,null,null,null,null,"Vndr.Item No.:",null,null,null,null,{"$f":"'Photo Sheet'!Q4:W4","v":0},null,null,null,null,null,null,null,null,null,"GC Item No.:",null,null,null,{"$f":"'Photo Sheet'!AE4:AI4","v":0}]
[null,null,null,null,null,null,null,null,null,null,null,"Size Range:",null,null,null,null,{"$f":"'Photo Sheet'!Q5:W5","v":"0-6 MONTHS"},null,null,null,null,null,null,null,null,null,"Season:"]
[null,null,null,null,null,null,null,null,null,null,null,"Description:",null,null,null,null,{"$f":"'Photo Sheet'!Q6:AI6","v":"BABY- SHORT SLEEVE ONESIE PRINT WITH CHEST DIAGONAL OPENING"}]
[null,"FIT FOR DEVELOPMENT SAMPLE / PHOTO / SALESMANS SAMPLES ONLY"]
[null,"BABY APPAREL PHOTO COMMENTS  -- ONSIE",null,null,null,null,null,null,null,null,null,null,null,null,null,null,null,null,null,"Date:",null,null,null,"AUG 22/2017",null,null,null,null,null,null,null,null,null,null,null,null,null,null,null,"S"]
[null,null,null,null,null,null,null,null,null,null,null,null,null,null,null,null,null,null,null,null,null,null,null,null,null,null,null,null,null,null,null,null,null,null,null,null,null,null,null,"M"]
[null,null,null,null,null,null,null,null,null,null,null,null,null,null,null,null,null,null,null,null,null,null,null,null,null,null,null,null,null,null,null,null,null,null,null,null,null,null,null,"L"]
[null,null,null,null,null,null,null,null,null,null,null,null,null,null,null,null,null,null,null,null,null,null,null,null,null,null,null,null,null,null,null,null,null,null,null,null,null,null,null,"XL"]
[null,null,null,null,null,null,null,null,null,null,null,null,null,null,null,null,null,null,null,null,null,null,null,null,null,null,null,null,null,null,null,null,null,null,null,null,null,null,null,"SM"]
[null,null,null,null,null,null,null,null,null,null,null,null,null,null,null,null,null,null,null,null,null,null,null,null,null,null,null,null,null,null,null,null,null,null,null,null,null,null,null,"LXL"]
[null,null,null,null,null,null,null,null,null,null,null,null,null,null,null,null,null,null,null,null,null,null,null,null,null,null,null,null,null,null,null,null,null,null,null,null,null,null,null,"XXL"]
[null,null,null,null,null,null,null,null,null,null,null,null,null,null,null,null,null,null,null,null,null,null,null,null,null,null,null,null,null,null,null,null,null,null,null,null,null,null,null,"XXXL"]
[null,null,null,null,null,null,null,null,null,null,null,null,null,null,null,null,null,null,null,null,null,null,null,null,null,null,null,null,null,null,null,null,null,null,null,null,null,null,null,"OS"]
[null,null,null,null,null,null,null,null,null,null,null,null,null,null,null,null,null,null,null,null,null,null,null,null,null,null,null,null,null,null,null,null,null,null,null,null,null,null,null,"1X"]
[null,null,null,null,null,null,null,null,null,null,null,null,null,null,null,null,null,null,null,null,null,null,null,null,null,null,null,null,null,null,null,null,null,null,null,null,null,null,null,"2X"]
[null,null,null,null,null,null,null,null,null,null,null,null,null,null,null,null,null,null,null,null,null,null,null,null,null,null,null,null,null,null,null,null,null,null,null,null,null,null,null,"3X"]

{"sheet":"Fabrics","index":6,"n_rows":15,"n_cols":40,"rows_kept":15,"cut":false,"hidden":true,"merged":[[5,16,5,34],[7,1,7,18],[7,19,7,22],[7,23,7,31],[1,16,1,22],[2,16,2,34],[3,16,3,22],[3,30,3,34],[4,16,4,22],[4,29,4,34]]}
[]
[null,null,null,null,null,null,null,null,null,null,null,"Create Date:",null,null,null,null,{"$f":"'Photo Sheet'!Q2:W2","v":"AUG 22/2017"}]
[null,null,null,null,null,null,null,null,null,null,null,"Vendor Name:",null,null,null,null,{"$f":"'Photo Sheet'!Q3:AI3","v":0}]
[null,null,null,null,null,null,null,null,null,null,null,"Vndr.Item No.:",null,null,null,null,{"$f":"'Photo Sheet'!Q4:W4","v":0},null,null,null,null,null,null,null,null,null,"GC Item No.:",null,null,null,{"$f":"'Photo Sheet'!AE4:AI4","v":0}]
[null,null,null,null,null,null,null,null,null,null,null,"Size Range:",null,null,null,null,{"$f":"'Photo Sheet'!Q5:W5","v":"0-6 MONTHS"},null,null,null,null,null,null,null,null,null,"Season:",null,null,"Fall Winter 2016"]
[null,null,null,null,null,null,null,null,null,null,null,"Description:",null,null,null,null,{"$f":"'Photo Sheet'!Q6:AI6","v":"BABY- SHORT SLEEVE ONESIE PRINT WITH CHEST DIAGONAL OPENING"}]
[]
[null,"FABRICS / strike -offs / lab dips",null,null,null,null,null,null,null,null,null,null,null,null,null,null,null,null,null,"Date:",null,null,null,null,null,null,null,null,null,null,null,null,null,null,null,null,null,null,null,"L"]
[null,null,null,null,null,null,null,null,null,null,null,null,null,null,null,null,null,null,null,null,null,null,null,null,null,null,null,null,null,null,null,null,null,null,null,null,null,null,null,"LXL"]
[null,null,null,null,null,null,null,null,null,null,null,null,null,null,null,null,null,null,null,null,null,null,null,null,null,null,null,null,null,null,null,null,null,null,null,null,null,null,null,"M"]
[null,null,null,null,null,null,null,null,null,null,null,null,null,null,null,null,null,null,null,null,null,null,null,null,null,null,null,null,null,null,null,null,null,null,null,null,null,null,null,"S"]
[null,null,null,null,null,null,null,null,null,null,null,null,null,null,null,null,null,null,null,null,null,null,null,null,null,null,null,null,null,null,null,null,null,null,null,null,null,null,null,"SM"]
[null,null,null,null,null,null,null,null,null,null,null,null,null,null,null,null,null,null,null,null,null,null,null,null,null,null,null,null,null,null,null,null,null,null,null,null,null,null,null,"XL"]
[null,null,null,null,null,null,null,null,null,null,null,null,null,null,null,null,null,null,null,null,null,null,null,null,null,null,null,null,null,null,null,null,null,null,null,null,null,null,null,"XXL"]
[null,null,null,null,null,null,null,null,null,null,null,null,null,null,null,null,null,null,null,null,null,null,null,null,null,null,null,null,null,null,null,null,null,null,null,null,null,null,null,"XXXL"]

{"sheet":"1st Fit Sample","index":7,"n_rows":53,"n_cols":40,"rows_kept":53,"cut":false,"hidden":true,"merged":[[4,29,4,34],[49,1,49,14],[49,15,49,18],[49,19,49,22],[49,23,49,31],[49,32,49,34],[50,1,50,14],[50,15,50,18],[50,19,50,22],[50,23,50,31],[50,32,50,34],[47,1,47,14],[47,15,47,18],[47,19,47,22],[47,23,47,31],[47,32,47,34],[48,1,48,14],[48,15,48,18],[48,19,48,22],[48,23,48,31],[48,32,48,34],[45,1,45,14],[45,15,45,18],[45,19,45,22],[45,23,45,31],[45,32,45,34],[46,1,46,14],[46,15,46,18],[46,19,46,22],[46,23,46,31],[46,32,46,34],[43,1,43,14],[43,15,43,18],[43,19,43,22],[43,23,43,31],[43,32,43,34],[44,1,44,14],[44,15,44,18],[44,19,44,22],[44,23,44,31],[44,32,44,34],[41,1,41,14],[41,15,41,18],[41,19,41,22],[41,23,41,31],[41,32,41,34],[42,1,42,14],[42,15,42,18],[42,19,42,22],[42,23,42,31],[42,32,42,34],[39,1,39,14],[39,15,39,18],[39,19,39,22],[39,23,39,31],[39,32,39,34],[40,1,40,14],[40,15,40,18],[40,19,40,22],[40,23,40,31],[40,32,40,34],[37,1,37,14],[37,15,37,18],[37,19,37,22],[37,23,37,31],[37,32,37,34],[38,1,38,14],[38,15,38,18],[38,19,38,22],[38,23,38,31],[38,32,38,34],[35,1,35,14],[35,15,35,18],[35,19,35,22],[35,23,35,31],[35,32,35,34],[36,1,36,14],[36,15,36,18],[36,19,36,22],[36,23,36,31],[36,32,36,34],[33,1,33,14],[33,15,33,18],[33,19,33,22],[33,23,33,31],[33,32,33,34],[34,1,34,14],[34,15,34,18],[34,19,34,22],[34,23,34,31],[34,32,34,34],[31,1,31,14],[31,15,31,18],[31,19,31,22],[31,23,31,31],[31,32,31,34],[32,1,32,14],[32,15,32,18],[32,19,32,22],[32,23,32,31],[32,32,32,34],[29,1,29,14],[29,15,29,18],[29,19,29,22],[29,23,29,31],[29,32,29,34],[30,1,30,14],[30,15,30,18],[30,19,30,22],[30,23,30,31],[30,32,30,34],[27,1,27,14],[27,15,27,18],[27,19,27,22],[27,23,27,31],[27,32,27,34],[28,1,28,14],[28,15,28,18],[28,19,28,22],[28,23,28,31],[28,32,28,34],[25,1,25,14],[25,15,25,18],[25,19,25,22],[25,23,25,31],[25,32,25,34],[26,1,26,14],[26,15,26,18],[26,19,26,22],[26,23,26,31],[26,32,26,34],[23,1,23,14],[23,15,23,18],[23,19,23,22],[23,23,23,31],[23,32,23,34],[24,1,24,14],[24,15,24,18],[24,19,24,22],[24,23,24,31],[24,32,24,34],[21,1,21,14],[21,15,21,18],[21,19,21,22],[21,23,21,31],[21,32,21,34],[22,1,22,14],[22,15,22,18],[22,19,22,22],[22,23,22,31],[22,32,22,34],[19,1,19,14],[19,15,19,18],[19,19,19,22],[19,23,19,31],[19,32,19,34],[20,1,20,14],[20,15,20,18],[20,19,20,22],[20,23,20,31],[20,32,20,34],[17,1,17,14],[17,15,17,18],[17,19,17,22],[17,23,17,31],[17,32,17,34],[18,1,18,14],[18,15,18,18],[18,19,18,22],[18,23,18,31],[18,32,18,34],[15,1,15,14],[15,15,15,18],[15,19,15,22],[15,23,15,31],[15,32,15,34],[16,1,16,14],[16,15,16,18],[16,19,16,22],[16,23,16,31],[16,32,16,34],[13,1,13,14],[13,15,13,18],[13,19,13,22],[13,23,13,31],[13,32,13,34],[14,1,14,14],[14,15,14,18],[14,19,14,22],[14,23,14,31],[14,32,14,34],[11,15,11,18],[11,19,11,22],[11,23,11,31],[11,32,11,34],[12,1,12,14],[12,15,12,18],[12,19,12,22],[12,23,12,31],[12,32,12,34],[51,15,51,34],[52,1,52,34],[1,16,1,22],[2,16,2,34],[3,16,3,22],[3,30,3,34],[4,16,4,22],[9,19,9,22],[10,1,10,14],[10,15,10,18],[10,19,10,22],[10,23,10,31],[10,32,10,34],[5,16,5,34],[7,1,7,18],[7,19,7,22],[7,23,7,31],[8,1,9,14],[8,15,8,18],[8,19,8,22],[8,23,9,31],[8,32,9,34],[9,15,9,18],[11,1,11,14]]}
[]
[null,null,null,null,null,null,null,null,null,null,null,"Create Date:",null,null,null,null,{"$f":"'Photo Sheet'!Q2:W2","v":"AUG 22/2017"}]
[null,null,null,null,null,null,null,null,null,null,null,"Vendor Name:",null,null,null,null,{"$f":"'Photo Sheet'!Q3:AI3","v":0}]
[null,null,null,null,null,null,null,null,null,null,null,"Vndr.Item No.:",null,null,null,null,{"$f":"'Photo Sheet'!Q4:W4","v":0},null,null,null,null,null,null,null,null,null,"GC Item No.:",null,null,null,{"$f":"'Photo Sheet'!AE4:AI4","v":0}]
[null,null,null,null,null,null,null,null,null,null,null,"Size Range:",null,null,null,null,{"$f":"'Photo Sheet'!Q5:W5","v":"0-6 MONTHS"},null,null,null,null,null,null,null,null,null,"Season:",null,null,"Fall Winter 2016"]
[null,null,null,null,null,null,null,null,null,null,null,"Description:",null,null,null,null,{"$f":"'Photo Sheet'!Q6:AI6","v":"BABY- SHORT SLEEVE ONESIE PRINT WITH CHEST DIAGONAL OPENING"}]
[]
[null,"BABY APPAREL SPEC SHEET -- ONSIE",null,null,null,null,null,null,null,null,null,null,null,null,null,null,null,null,null,"Date:",null,null,null,null,null,null,null,null,null,null,null,null,null,null,null,null,null,null,null,"S"]
[null,"(Measurements on flat / inches)",null,null,null,null,null,null,null,null,null,null,null,null,null,"1st Fit Sample",null,null,null,"Required Spec",null,null,null,"Comments",null,null,null,null,null,null,null,null,"Tolerance\n+ / -\n(on flat)",null,null,null,null,null,null,"M"]
[null,null,null,null,null,null,null,null,null,null,null,null,null,null,null,"S",null,null,null,"S",null,null,null,null,null,null,null,null,null,null,null,null,null,null,null,null,null,null,null,"L"]
[null,{"$f":"'Apparel Spec Sheet'!B11:O11","v":"BACK TORSO LENGTH( HSP TO BACK CROTH -UNDOMED)"},null,null,null,null,null,null,null,null,null,null,null,null,null,null,null,null,null,null,null,null,null,null,null,null,null,null,null,null,null,null,0.375,null,null,null,null,null,null,"XL"]
[null,{"$f":"'Apparel Spec Sheet'!B12:O12","v":"CENTER BACK LENGTH( C.B. NECK TO HEM"},null,null,null,null,null,null,null,null,null,null,null,null,null,null,null,null,null,null,null,null,null,null,null,null,null,null,null,null,null,null,0.375,null,null,null,null,null,null,"SM"]
[null,{"$f":"'Apparel Spec Sheet'!B14:O14","v":"CHEST( 1/2\" BELOW ARMHOLE"},null,null,null,null,null,null,null,null,null,null,null,null,null,null,null,null,null,null,null,null,null,null,null,null,null,null,null,null,null,null,0.375,null,null,null,null,null,null,"LXL"]
[null,"FRONT LENGTH (FROM CENTRE FRONT NECK TO HEM)",null,null,null,null,null,null,null,null,null,null,null,null,null,null,null,null,null,null,null,null,null,null,null,null,null,null,null,null,null,null,0.375,null,null,null,null,null,null,"OS"]
[null,{"$f":"'Apparel Spec Sheet'!B15:O15","v":"WAIST"},null,null,null,null,null,null,null,null,null,null,null,null,null,null,null,null,null,null,null,null,null,null,null,null,null,null,null,null,null,null,0.375,null,null,null,null,null,null,"1X"]
[null,{"$f":"'Apparel Spec Sheet'!B16:O16","v":"HIP ( TOP OF LEG OPENING)"},null,null,null,null,null,null,null,null,null,null,null,null,null,null,null,null,null,null,null,null,null,null,null,null,null,null,null,null,null,null,0.375,null,null,null,null,null,null,"2X"]
[null,{"$f":"'Apparel Spec Sheet'!B17:O17","v":"HEM STRAIGHT"},null,null,null,null,null,null,null,null,null,null,null,null,null,null,null,null,null,null,null,null,null,null,null,null,null,null,null,null,null,null,0.375,null,null,null,null,null,null,"3X"]
[null,{"$f":"'Apparel Spec Sheet'!B18:O18","v":"ACROSS SHOULDERS"},null,null,null,null,null,null,null,null,null,null,null,null,null,null,null,null,null,null,null,null,null,null,null,null,null,null,null,null,null,null,0.375]
[null,{"$f":"'Apparel Spec Sheet'!B19:O19","v":"SHOULDER SEAM LENGTH"},null,null,null,null,null,null,null,null,null,null,null,null,null,null,null,null,null,null,null,null,null,null,null,null,null,null,null,null,null,null,0.375]
[null,"HEM CURVE (FOLLOW)",null,null,null,null,null,null,null,null,null,null,null,null,null,null,null,null,null,null,null,null,null,null,null,null,null,null,null,null,null,null,0.375]
[null,{"$f":"'Apparel Spec Sheet'!B21:O21","v":"ACROSS BACK ( MID ARMHOLE)"},null,null,null,null,null,null,null,null,null,null,null,null,null,null,null,null,null,null,null,null,null,null,null,null,null,null,null,null,null,null,0.375]
[null,{"$f":"'Apparel Spec Sheet'!B22:O22","v":"RAGLAN ACROSS FRONT ( MID ARMHOLE)"},null,null,null,null,null,null,null,null,null,null,null,null,null,null,null,null,null,null,null,null,null,null,null,null,null,null,null,null,null,null,0.375]
[null,{"$f":"'Apparel Spec Sheet'!B23:O23","v":"RAGLAN ACROSS BACK ( MIS ARMHOLE)"},null,null,null,null,null,null,null,null,null,null,null,null,null,null,null,null,null,null,null,null,null,null,null,null,null,null,null,null,null,null,0.375]
[null,{"$f":"'Apparel Spec Sheet'!B24:O24","v":"OVERARM - SLEEVE CAP TO HEM - SHORT SLEEVE"},null,null,null,null,null,null,null,null,null,null,null,null,null,null,null,null,null,null,null,null,null,null,null,null,null,null,null,null,null,null,0.25]
[null,{"$f":"'Apparel Spec Sheet'!B25:O25","v":"OVERARM - SLEEVE CAP TO HEM - 3/4  SLEEVE"},null,null,null,null,null,null,null,null,null,null,null,null,null,null,null,null,null,null,null,null,null,null,null,null,null,null,null,null,null,null,0.25]
[null,{"$f":"'Apparel Spec Sheet'!B26:O26","v":"OVERARM - SLEEVE CAP TO HEM - LONG SLEEVE"},null,null,null,null,null,null,null,null,null,null,null,null,null,null,null,null,null,null,null,null,null,null,null,null,null,null,null,null,null,null,0.375]
[null,{"$f":"'Apparel Spec Sheet'!B27:O27","v":"OVERARM ( NECK TO SLEEVE HEM)"},null,null,null,null,null,null,null,null,null,null,null,null,null,null,null,null,null,null,null,null,null,null,null,null,null,null,null,null,null,null,0.25]
[null,{"$f":"'Apparel Spec Sheet'!B28:O28","v":"1/2 ARMHOLE STRAIGHT"},null,null,null,null,null,null,null,null,null,null,null,null,null,null,null,null,null,null,null,null,null,null,null,null,null,null,null,null,null,null,0.25]
[null,{"$f":"'Apparel Spec Sheet'!B29:O29","v":"FRONT RAGLAN LENGTH ON SEAM"},null,null,null,null,null,null,null,null,null,null,null,null,null,null,null,null,null,null,null,null,null,null,null,null,null,null,null,null,null,null,0.25]
[null,{"$f":"'Apparel Spec Sheet'!B30:O30","v":"BACK RAGLAN LENGTH ON SEAM"},null,null,null,null,null,null,null,null,null,null,null,null,null,null,null,null,null,null,null,null,null,null,null,null,null,null,null,null,null,null,0.25]
[null,{"$f":"'Apparel Spec Sheet'!B31:O31","v":"BICEP ( AT ARMHOLE SEAM)"},null,null,null,null,null,null,null,null,null,null,null,null,null,null,null,null,null,null,null,null,null,null,null,null,null,null,null,null,null,null,0.25]
[null,{"$f":"'Apparel Spec Sheet'!B32:O32","v":"ELBOW"},null,null,null,null,null,null,null,null,null,null,null,null,null,null,null,null,null,null,null,null,null,null,null,null,null,null,null,null,null,null,0.25]
[null,{"$f":"'Apparel Spec Sheet'!B33:O33","v":"SHORT SLEEVE OPENING"},null,null,null,null,null,null,null,null,null,null,null,null,null,null,null,null,null,null,null,null,null,null,null,null,null,null,null,null,null,null,"1/4"]
[null,{"$f":"'Apparel Spec Sheet'!B34:O34","v":"3/4 SLEEVE OPENING"},null,null,null,null,null,null,null,null,null,null,null,null,null,null,null,null,null,null,null,null,null,null,null,null,null,null,null,null,null,null,0]
[null,{"$f":"'Apparel Spec Sheet'!B35:O35","v":"LONG SLEEVE OPENING"},null,null,null,null,null,null,null,null,null,null,null,null,null,null,null,null,null,null,null,null,null,null,null,null,null,null,null,null,null,null,0.25]
[null,{"$f":"'Apparel Spec Sheet'!B36:O36","v":"SLEEEVE CAP HEIGHT"},null,null,null,null,null,null,null,null,null,null,null,null,null,null,null,null,null,null,null,null,null,null,null,null,null,null,null,null,null,null,0.25]
[null,{"$f":"'Apparel Spec Sheet'!B37:O37","v":"NECK WIDTH ( ON BACK BETWEEN TRIM)"},null,null,null,null,null,null,null,null,null,null,null,null,null,null,null,null,null,null,null,null,null,null,null,null,null,null,null,null,null,null,0.25]
[null,{"$f":"'Apparel Spec Sheet'!B38:O38","v":"FRONT NECK DROP"},null,null,null,null,null,null,null,null,null,null,null,null,null,null,null,null,null,null,null,null,null,null,null,null,null,null,null,null,null,null,0.25]
[null,{"$f":"'Apparel Spec Sheet'!B39:O39","v":"BACK NECK DROP"},null,null,null,null,null,null,null,null,null,null,null,null,null,null,null,null,null,null,null,null,null,null,null,null,null,null,null,null,null,null,0]
[null,{"$f":"'Apparel Spec Sheet'!B40:O40","v":"1/2 NECK CIRECUMFERENCE - RELAXED"},null,null,null,null,null,null,null,null,null,null,null,null,null,null,null,null,null,null,null,null,null,null,null,null,null,null,null,null,null,null,0]
[null,{"$f":"'Apparel Spec Sheet'!B41:O41","v":"1/2 NECK CIRECUMFERENCE -EXTENDED"},null,null,null,null,null,null,null,null,null,null,null,null,null,null,null,null,null,null,null,null,null,null,null,null,null,null,null,null,null,null,0.25]
[null,{"$f":"'Apparel Spec Sheet'!B42:O42","v":"COLLAR DEPTH AT C.B NECK"},null,null,null,null,null,null,null,null,null,null,null,null,null,null,null,null,null,null,null,null,null,null,null,null,null,null,null,null,null,null,0]
[null,{"$f":"'Apparel Spec Sheet'!B43:O43","v":"NECK TRIM DEPTH"},null,null,null,null,null,null,null,null,null,null,null,null,null,null,null,null,null,null,null,null,null,null,null,null,null,null,null,null,null,null,0]
[null,{"$f":"'Apparel Spec Sheet'!B44:O44","v":"CUFF DEPTH"},null,null,null,null,null,null,null,null,null,null,null,null,null,null,null,null,null,null,null,null,null,null,null,null,null,null,null,null,null,null,0]
[null,{"$f":"'Apparel Spec Sheet'!B45:O45","v":"SLEEVE HEM DEPTH"},null,null,null,null,null,null,null,null,null,null,null,null,null,null,null,null,null,null,null,null,null,null,null,null,null,null,null,null,null,null,0]
[null,{"$f":"'Apparel Spec Sheet'!B46:O46","v":"BOTTOM HEM DEPTH"},null,null,null,null,null,null,null,null,null,null,null,null,null,null,null,null,null,null,null,null,null,null,null,null,null,null,null,null,null,null,0.375]
[null,{"$f":"'Apparel Spec Sheet'!B47:O47","v":"THIGH ( 1/2\" BELOW CROTCH)"}]
[null,{"$f":"'Apparel Spec Sheet'!B48:O48","v":"KNEE WIDTH"},null,null,null,null,null,null,null,null,null,null,null,null,null,null,null,null,null,null,null,null,null,null,null,null,null,null,null,null,null,null,0.25]
[null,{"$f":"'Apparel Spec Sheet'!B49:O49","v":"LEG OPENING WIDTH"},null,null,null,null,null,null,null,null,null,null,null,null,null,null,null,null,null,null,null,null,null,null,null,null,null,null,null,null,null,null,0.25]
[null,{"$f":"'Apparel Spec Sheet'!B50:O50","v":"FRONT CROTCH WIDTH"},null,null,null,null,null,null,null,null,null,null,null,null,null,null,null,null,null,null,null,null,null,null,null,null,null,null,null,null,null,null,0.25]
[null,{"$f":"'Apparel Spec Sheet'!B51:O51","v":"SAM E BODY FIT AS SS18-1075- EXCEPT DIFFERENT FRONT STYLING"},null,null,null,null,null,null,null,null,null,null,null,null,null,null,null,null,null,null,null,null,null,null,null,null,null,null,null,null,null,null,0.375]
[null,"Sample Approved?"]
[null,"If sample is NOT approved, then submit 2nd Fit Sample. If sample is APPROVED, then submit Pre-Production Samples."]

{"sheet":"1st Fit Photo Comments","index":8,"n_rows":15,"n_cols":40,"rows_kept":15,"cut":false,"hidden":true,"merged":[[5,16,5,34],[7,1,7,18],[7,19,7,22],[7,23,7,31],[1,16,1,22],[2,16,2,34],[3,16,3,22],[3,30,3,34],[4,16,4,22],[4,29,4,34]]}
[]
[null,null,null,null,null,null,null,null,null,null,null,"Create Date:",null,null,null,null,{"$f":"'Photo Sheet'!Q2:W2","v":"AUG 22/2017"}]
[null,null,null,null,null,null,null,null,null,null,null,"Vendor Name:",null,null,null,null,{"$f":"'Photo Sheet'!Q3:AI3","v":0}]
[null,null,null,null,null,null,null,null,null,null,null,"Vndr.Item No.:",null,null,null,null,{"$f":"'Photo Sheet'!Q4:W4","v":0},null,null,null,null,null,null,null,null,null,"GC Item No.:",null,null,null,{"$f":"'Photo Sheet'!AE4:AI4","v":0}]
[null,null,null,null,null,null,null,null,null,null,null,"Size Range:",null,null,null,null,{"$f":"'Photo Sheet'!Q5:W5","v":"0-6 MONTHS"},null,null,null,null,null,null,null,null,null,"Season:",null,null,"Fall Winter 2016"]
[null,null,null,null,null,null,null,null,null,null,null,"Description:",null,null,null,null,{"$f":"'Photo Sheet'!Q6:AI6","v":"BABY- SHORT SLEEVE ONESIE PRINT WITH CHEST DIAGONAL OPENING"}]
[]
[null,"BABY APPAREL SPEC SHEET -- ONSIE",null,null,null,null,null,null,null,null,null,null,null,null,null,null,null,null,null,"Date:",null,null,null,null,null,null,null,null,null,null,null,null,null,null,null,null,null,null,null,"L"]
[null,null,null,null,null,null,null,null,null,null,null,null,null,null,null,null,null,null,null,null,null,null,null,null,null,null,null,null,null,null,null,null,null,null,null,null,null,null,null,"LXL"]
[null,null,null,null,null,null,null,null,null,null,null,null,null,null,null,null,null,null,null,null,null,null,null,null,null,null,null,null,null,null,null,null,null,null,null,null,null,null,null,"M"]
[null,null,null,null,null,null,null,null,null,null,null,null,null,null,null,null,null,null,null,null,null,null,null,null,null,null,null,null,null,null,null,null,null,null,null,null,null,null,null,"S"]
[null,null,null,null,null,null,null,null,null,null,null,null,null,null,null,null,null,null,null,null,null,null,null,null,null,null,null,null,null,null,null,null,null,null,null,null,null,null,null,"SM"]
[null,null,null,null,null,null,null,null,null,null,null,null,null,null,null,null,null,null,null,null,null,null,null,null,null,null,null,null,null,null,null,null,null,null,null,null,null,null,null,"XL"]
[null,null,null,null,null,null,null,null,null,null,null,null,null,null,null,null,null,null,null,null,null,null,null,null,null,null,null,null,null,null,null,null,null,null,null,null,null,null,null,"XXL"]
[null,null,null,null,null,null,null,null,null,null,null,null,null,null,null,null,null,null,null,null,null,null,null,null,null,null,null,null,null,null,null,null,null,null,null,null,null,null,null,"XXXL"]

{"sheet":"2nd Fit Sample","index":9,"n_rows":53,"n_cols":40,"rows_kept":53,"cut":false,"hidden":true,"merged":[[4,29,4,34],[49,1,49,14],[49,15,49,18],[49,19,49,22],[49,23,49,31],[49,32,49,34],[50,1,50,14],[50,15,50,18],[50,19,50,22],[50,23,50,31],[50,32,50,34],[47,1,47,14],[47,15,47,18],[47,19,47,22],[47,23,47,31],[47,32,47,34],[48,1,48,14],[48,15,48,18],[48,19,48,22],[48,23,48,31],[48,32,48,34],[45,1,45,14],[45,15,45,18],[45,19,45,22],[45,23,45,31],[45,32,45,34],[46,1,46,14],[46,15,46,18],[46,19,46,22],[46,23,46,31],[46,32,46,34],[43,1,43,14],[43,15,43,18],[43,19,43,22],[43,23,43,31],[43,32,43,34],[44,1,44,14],[44,15,44,18],[44,19,44,22],[44,23,44,31],[44,32,44,34],[41,1,41,14],[41,15,41,18],[41,19,41,22],[41,23,41,31],[41,32,41,34],[42,1,42,14],[42,15,42,18],[42,19,42,22],[42,23,42,31],[42,32,42,34],[39,1,39,14],[39,15,39,18],[39,19,39,22],[39,23,39,31],[39,32,39,34],[40,1,40,14],[40,15,40,18],[40,19,40,22],[40,23,40,31],[40,32,40,34],[37,1,37,14],[37,15,37,18],[37,19,37,22],[37,23,37,31],[37,32,37,34],[38,1,38,14],[38,15,38,18],[38,19,38,22],[38,23,38,31],[38,32,38,34],[35,1,35,14],[35,15,35,18],[35,19,35,22],[35,23,35,31],[35,32,35,34],[36,1,36,14],[36,15,36,18],[36,19,36,22],[36,23,36,31],[36,32,36,34],[33,1,33,14],[33,15,33,18],[33,19,33,22],[33,23,33,31],[33,32,33,34],[34,1,34,14],[34,15,34,18],[34,19,34,22],[34,23,34,31],[34,32,34,34],[31,1,31,14],[31,15,31,18],[31,19,31,22],[31,23,31,31],[31,32,31,34],[32,1,32,14],[32,15,32,18],[32,19,32,22],[32,23,32,31],[32,32,32,34],[29,1,29,14],[29,15,29,18],[29,19,29,22],[29,23,29,31],[29,32,29,34],[30,1,30,14],[30,15,30,18],[30,19,30,22],[30,23,30,31],[30,32,30,34],[27,1,27,14],[27,15,27,18],[27,19,27,22],[27,23,27,31],[27,32,27,34],[28,1,28,14],[28,15,28,18],[28,19,28,22],[28,23,28,31],[28,32,28,34],[25,1,25,14],[25,15,25,18],[25,19,25,22],[25,23,25,31],[25,32,25,34],[26,1,26,14],[26,15,26,18],[26,19,26,22],[26,23,26,31],[26,32,26,34],[23,1,23,14],[23,15,23,18],[23,19,23,22],[23,23,23,31],[23,32,23,34],[24,1,24,14],[24,15,24,18],[24,19,24,22],[24,23,24,31],[24,32,24,34],[21,1,21,14],[21,15,21,18],[21,19,21,22],[21,23,21,31],[21,32,21,34],[22,1,22,14],[22,15,22,18],[22,19,22,22],[22,23,22,31],[22,32,22,34],[19,1,19,14],[19,15,19,18],[19,19,19,22],[19,23,19,31],[19,32,19,34],[20,1,20,14],[20,15,20,18],[20,19,20,22],[20,23,20,31],[20,32,20,34],[17,1,17,14],[17,15,17,18],[17,19,17,22],[17,23,17,31],[17,32,17,34],[18,1,18,14],[18,15,18,18],[18,19,18,22],[18,23,18,31],[18,32,18,34],[15,1,15,14],[15,15,15,18],[15,19,15,22],[15,23,15,31],[15,32,15,34],[16,1,16,14],[16,15,16,18],[16,19,16,22],[16,23,16,31],[16,32,16,34],[13,1,13,14],[13,15,13,18],[13,19,13,22],[13,23,13,31],[13,32,13,34],[14,1,14,14],[14,15,14,18],[14,19,14,22],[14,23,14,31],[14,32,14,34],[11,15,11,18],[11,19,11,22],[11,23,11,31],[11,32,11,34],[12,1,12,14],[12,15,12,18],[12,19,12,22],[12,23,12,31],[12,32,12,34],[51,15,51,34],[52,1,52,34],[1,16,1,22],[2,16,2,34],[3,16,3,22],[3,30,3,34],[4,16,4,22],[9,19,9,22],[10,1,10,14],[10,15,10,18],[10,19,10,22],[10,23,10,31],[10,32,10,34],[5,16,5,34],[7,1,7,18],[7,19,7,22],[7,23,7,31],[8,1,9,14],[8,15,8,18],[8,19,8,22],[8,23,9,31],[8,32,9,34],[9,15,9,18],[11,1,11,14]]}
[]
[null,null,null,null,null,null,null,null,null,null,null,"Create Date:",null,null,null,null,{"$f":"'Photo Sheet'!Q2:W2","v":"AUG 22/2017"}]
[null,null,null,null,null,null,null,null,null,null,null,"Vendor Name:",null,null,null,null,{"$f":"'Photo Sheet'!Q3:AI3","v":0}]
[null,null,null,null,null,null,null,null,null,null,null,"Vndr.Item No.:",null,null,null,null,{"$f":"'Photo Sheet'!Q4:W4","v":0},null,null,null,null,null,null,null,null,null,"GC Item No.:",null,null,null,{"$f":"'Photo Sheet'!AE4:AI4","v":0}]
[null,null,null,null,null,null,null,null,null,null,null,"Size Range:",null,null,null,null,{"$f":"'Photo Sheet'!Q5:W5","v":"0-6 MONTHS"},null,null,null,null,null,null,null,null,null,"Season:",null,null,"Fall Winter 2016"]
[null,null,null,null,null,null,null,null,null,null,null,"Description:",null,null,null,null,{"$f":"'Photo Sheet'!Q6:AI6","v":"BABY- SHORT SLEEVE ONESIE PRINT WITH CHEST DIAGONAL OPENING"}]
[]
[null,"BABY APPAREL SPEC SHEET -- ONSIE",null,null,null,null,null,null,null,null,null,null,null,null,null,null,null,null,null,"Date:",null,null,null,null,null,null,null,null,null,null,null,null,null,null,null,null,null,null,null,"S"]
[null,"(Measurements on flat / inches)",null,null,null,null,null,null,null,null,null,null,null,null,null,"2nd Fit Sample",null,null,null,"Required Spec",null,null,null,"Comments",null,null,null,null,null,null,null,null,"Tolerance\n+ / -\n(on flat)",null,null,null,null,null,null,"M"]
[null,null,null,null,null,null,null,null,null,null,null,null,null,null,null,"S",null,null,null,"S",null,null,null,null,null,null,null,null,null,null,null,null,null,null,null,null,null,null,null,"L"]
[null,{"$f":"'Apparel Spec Sheet'!B11:O11","v":"BACK TORSO LENGTH( HSP TO BACK CROTH -UNDOMED)"},null,null,null,null,null,null,null,null,null,null,null,null,null,null,null,null,null,null,null,null,null,null,null,null,null,null,null,null,null,null,0.375,null,null,null,null,null,null,"XL"]
[null,{"$f":"'Apparel Spec Sheet'!B12:O12","v":"CENTER BACK LENGTH( C.B. NECK TO HEM"},null,null,null,null,null,null,null,null,null,null,null,null,null,null,null,null,null,null,null,null,null,null,null,null,null,null,null,null,null,null,0.375,null,null,null,null,null,null,"SM"]
[null,{"$f":"'Apparel Spec Sheet'!B14:O14","v":"CHEST( 1/2\" BELOW ARMHOLE"},null,null,null,null,null,null,null,null,null,null,null,null,null,null,null,null,null,null,null,null,null,null,null,null,null,null,null,null,null,null,0.375,null,null,null,null,null,null,"LXL"]
[null,"FRONT LENGTH (FROM CENTRE FRONT NECK TO HEM)",null,null,null,null,null,null,null,null,null,null,null,null,null,null,null,null,null,null,null,null,null,null,null,null,null,null,null,null,null,null,0.375,null,null,null,null,null,null,"OS"]
[null,{"$f":"'Apparel Spec Sheet'!B15:O15","v":"WAIST"},null,null,null,null,null,null,null,null,null,null,null,null,null,null,null,null,null,null,null,null,null,null,null,null,null,null,null,null,null,null,0.375,null,null,null,null,null,null,"1X"]
[null,{"$f":"'Apparel Spec Sheet'!B16:O16","v":"HIP ( TOP OF LEG OPENING)"},null,null,null,null,null,null,null,null,null,null,null,null,null,null,null,null,null,null,null,null,null,null,null,null,null,null,null,null,null,null,0.375,null,null,null,null,null,null,"2X"]
[null,{"$f":"'Apparel Spec Sheet'!B17:O17","v":"HEM STRAIGHT"},null,null,null,null,null,null,null,null,null,null,null,null,null,null,null,null,null,null,null,null,null,null,null,null,null,null,null,null,null,null,0.375,null,null,null,null,null,null,"3X"]
[null,{"$f":"'Apparel Spec Sheet'!B18:O18","v":"ACROSS SHOULDERS"},null,null,null,null,null,null,null,null,null,null,null,null,null,null,null,null,null,null,null,null,null,null,null,null,null,null,null,null,null,null,0.375]
[null,{"$f":"'Apparel Spec Sheet'!B19:O19","v":"SHOULDER SEAM LENGTH"},null,null,null,null,null,null,null,null,null,null,null,null,null,null,null,null,null,null,null,null,null,null,null,null,null,null,null,null,null,null,0.375]
[null,"HEM CURVE (FOLLOW)",null,null,null,null,null,null,null,null,null,null,null,null,null,null,null,null,null,null,null,null,null,null,null,null,null,null,null,null,null,null,0.375]
[null,{"$f":"'Apparel Spec Sheet'!B21:O21","v":"ACROSS BACK ( MID ARMHOLE)"},null,null,null,null,null,null,null,null,null,null,null,null,null,null,null,null,null,null,null,null,null,null,null,null,null,null,null,null,null,null,0.375]
[null,{"$f":"'Apparel Spec Sheet'!B22:O22","v":"RAGLAN ACROSS FRONT ( MID ARMHOLE)"},null,null,null,null,null,null,null,null,null,null,null,null,null,null,null,null,null,null,null,null,null,null,null,null,null,null,null,null,null,null,0.375]
[null,{"$f":"'Apparel Spec Sheet'!B23:O23","v":"RAGLAN ACROSS BACK ( MIS ARMHOLE)"},null,null,null,null,null,null,null,null,null,null,null,null,null,null,null,null,null,null,null,null,null,null,null,null,null,null,null,null,null,null,0.375]
[null,{"$f":"'Apparel Spec Sheet'!B24:O24","v":"OVERARM - SLEEVE CAP TO HEM - SHORT SLEEVE"},null,null,null,null,null,null,null,null,null,null,null,null,null,null,null,null,null,null,null,null,null,null,null,null,null,null,null,null,null,null,0.25]
[null,{"$f":"'Apparel Spec Sheet'!B25:O25","v":"OVERARM - SLEEVE CAP TO HEM - 3/4  SLEEVE"},null,null,null,null,null,null,null,null,null,null,null,null,null,null,null,null,null,null,null,null,null,null,null,null,null,null,null,null,null,null,0.25]
[null,{"$f":"'Apparel Spec Sheet'!B26:O26","v":"OVERARM - SLEEVE CAP TO HEM - LONG SLEEVE"},null,null,null,null,null,null,null,null,null,null,null,null,null,null,null,null,null,null,null,null,null,null,null,null,null,null,null,null,null,null,0.375]
[null,{"$f":"'Apparel Spec Sheet'!B27:O27","v":"OVERARM ( NECK TO SLEEVE HEM)"},null,null,null,null,null,null,null,null,null,null,null,null,null,null,null,null,null,null,null,null,null,null,null,null,null,null,null,null,null,null,0.25]
[null,{"$f":"'Apparel Spec Sheet'!B28:O28","v":"1/2 ARMHOLE STRAIGHT"},null,null,null,null,null,null,null,null,null,null,null,null,null,null,null,null,null,null,null,null,null,null,null,null,null,null,null,null,null,null,0.25]
[null,{"$f":"'Apparel Spec Sheet'!B29:O29","v":"FRONT RAGLAN LENGTH ON SEAM"},null,null,null,null,null,null,null,null,null,null,null,null,null,null,null,null,null,null,null,null,null,null,null,null,null,null,null,null,null,null,0.25]
[null,{"$f":"'Apparel Spec Sheet'!B30:O30","v":"BACK RAGLAN LENGTH ON SEAM"},null,null,null,null,null,null,null,null,null,null,null,null,null,null,null,null,null,null,null,null,null,null,null,null,null,null,null,null,null,null,0.25]
[null,{"$f":"'Apparel Spec Sheet'!B31:O31","v":"BICEP ( AT ARMHOLE SEAM)"},null,null,null,null,null,null,null,null,null,null,null,null,null,null,null,null,null,null,null,null,null,null,null,null,null,null,null,null,null,null,0.25]
[null,{"$f":"'Apparel Spec Sheet'!B32:O32","v":"ELBOW"},null,null,null,null,null,null,null,null,null,null,null,null,null,null,null,null,null,null,null,null,null,null,null,null,null,null,null,null,null,null,0.25]
[null,{"$f":"'Apparel Spec Sheet'!B33:O33","v":"SHORT SLEEVE OPENING"},null,null,null,null,null,null,null,null,null,null,null,null,null,null,null,null,null,null,null,null,null,null,null,null,null,null,null,null,null,null,"1/4"]
[null,{"$f":"'Apparel Spec Sheet'!B34:O34","v":"3/4 SLEEVE OPENING"},null,null,null,null,null,null,null,null,null,null,null,null,null,null,null,null,null,null,null,null,null,null,null,null,null,null,null,null,null,null,0]
[null,{"$f":"'Apparel Spec Sheet'!B35:O35","v":"LONG SLEEVE OPENING"},null,null,null,null,null,null,null,null,null,null,null,null,null,null,null,null,null,null,null,null,null,null,null,null,null,null,null,null,null,null,0.25]
[null,{"$f":"'Apparel Spec Sheet'!B36:O36","v":"SLEEEVE CAP HEIGHT"},null,null,null,null,null,null,null,null,null,null,null,null,null,null,null,null,null,null,null,null,null,null,null,null,null,null,null,null,null,null,0.25]
[null,{"$f":"'Apparel Spec Sheet'!B37:O37","v":"NECK WIDTH ( ON BACK BETWEEN TRIM)"},null,null,null,null,null,null,null,null,null,null,null,null,null,null,null,null,null,null,null,null,null,null,null,null,null,null,null,null,null,null,0.25]
[null,{"$f":"'Apparel Spec Sheet'!B38:O38","v":"FRONT NECK DROP"},null,null,null,null,null,null,null,null,null,null,null,null,null,null,null,null,null,null,null,null,null,null,null,null,null,null,null,null,null,null,0.25]
[null,{"$f":"'Apparel Spec Sheet'!B39:O39","v":"BACK NECK DROP"},null,null,null,null,null,null,null,null,null,null,null,null,null,null,null,null,null,null,null,null,null,null,null,null,null,null,null,null,null,null,0]
[null,{"$f":"'Apparel Spec Sheet'!B40:O40","v":"1/2 NECK CIRECUMFERENCE - RELAXED"},null,null,null,null,null,null,null,null,null,null,null,null,null,null,null,null,null,null,null,null,null,null,null,null,null,null,null,null,null,null,0]
[null,{"$f":"'Apparel Spec Sheet'!B41:O41","v":"1/2 NECK CIRECUMFERENCE -EXTENDED"},null,null,null,null,null,null,null,null,null,null,null,null,null,null,null,null,null,null,null,null,null,null,null,null,null,null,null,null,null,null,0.25]
[null,{"$f":"'Apparel Spec Sheet'!B42:O42","v":"COLLAR DEPTH AT C.B NECK"},null,null,null,null,null,null,null,null,null,null,null,null,null,null,null,null,null,null,null,null,null,null,null,null,null,null,null,null,null,null,0]
[null,{"$f":"'Apparel Spec Sheet'!B43:O43","v":"NECK TRIM DEPTH"},null,null,null,null,null,null,null,null,null,null,null,null,null,null,null,null,null,null,null,null,null,null,null,null,null,null,null,null,null,null,0]
[null,{"$f":"'Apparel Spec Sheet'!B44:O44","v":"CUFF DEPTH"},null,null,null,null,null,null,null,null,null,null,null,null,null,null,null,null,null,null,null,null,null,null,null,null,null,null,null,null,null,null,0]
[null,{"$f":"'Apparel Spec Sheet'!B45:O45","v":"SLEEVE HEM DEPTH"},null,null,null,null,null,null,null,null,null,null,null,null,null,null,null,null,null,null,null,null,null,null,null,null,null,null,null,null,null,null,0]
[null,{"$f":"'Apparel Spec Sheet'!B46:O46","v":"BOTTOM HEM DEPTH"},null,null,null,null,null,null,null,null,null,null,null,null,null,null,null,null,null,null,null,null,null,null,null,null,null,null,null,null,null,null,0.375]
[null,{"$f":"'Apparel Spec Sheet'!B47:O47","v":"THIGH ( 1/2\" BELOW CROTCH)"}]
[null,{"$f":"'Apparel Spec Sheet'!B48:O48","v":"KNEE WIDTH"},null,null,null,null,null,null,null,null,null,null,null,null,null,null,null,null,null,null,null,null,null,null,null,null,null,null,null,null,null,null,0.25]
[null,{"$f":"'Apparel Spec Sheet'!B49:O49","v":"LEG OPENING WIDTH"},null,null,null,null,null,null,null,null,null,null,null,null,null,null,null,null,null,null,null,null,null,null,null,null,null,null,null,null,null,null,0.25]
[null,{"$f":"'Apparel Spec Sheet'!B50:O50","v":"FRONT CROTCH WIDTH"},null,null,null,null,null,null,null,null,null,null,null,null,null,null,null,null,null,null,null,null,null,null,null,null,null,null,null,null,null,null,0.25]
[null,{"$f":"'Apparel Spec Sheet'!B51:O51","v":"SAM E BODY FIT AS SS18-1075- EXCEPT DIFFERENT FRONT STYLING"},null,null,null,null,null,null,null,null,null,null,null,null,null,null,null,null,null,null,null,null,null,null,null,null,null,null,null,null,null,null,0.375]
[null,"Sample Approved?"]
[null,"If sample is NOT approved, then submit 3rd Fit Sample. If sample is APPROVED, then submit Pre-Production Samples."]

{"sheet":"2nd Fit Photo Comments","index":10,"n_rows":15,"n_cols":40,"rows_kept":15,"cut":false,"hidden":true,"merged":[[5,16,5,34],[7,1,7,18],[7,19,7,22],[7,23,7,31],[1,16,1,22],[2,16,2,34],[3,16,3,22],[3,30,3,34],[4,16,4,22],[4,29,4,34]]}
[]
[null,null,null,null,null,null,null,null,null,null,null,"Create Date:",null,null,null,null,{"$f":"'Photo Sheet'!Q2:W2","v":"AUG 22/2017"}]
[null,null,null,null,null,null,null,null,null,null,null,"Vendor Name:",null,null,null,null,{"$f":"'Photo Sheet'!Q3:AI3","v":0}]
[null,null,null,null,null,null,null,null,null,null,null,"Vndr.Item No.:",null,null,null,null,{"$f":"'Photo Sheet'!Q4:W4","v":0},null,null,null,null,null,null,null,null,null,"GC Item No.:",null,null,null,{"$f":"'Photo Sheet'!AE4:AI4","v":0}]
[null,null,null,null,null,null,null,null,null,null,null,"Size Range:",null,null,null,null,{"$f":"'Photo Sheet'!Q5:W5","v":"0-6 MONTHS"},null,null,null,null,null,null,null,null,null,"Season:",null,null,"Fall Winter 2016"]
[null,null,null,null,null,null,null,null,null,null,null,"Description:",null,null,null,null,{"$f":"'Photo Sheet'!Q6:AI6","v":"BABY- SHORT SLEEVE ONESIE PRINT WITH CHEST DIAGONAL OPENING"}]
[]
[null,"BABY APPAREL SPEC SHEET -- ONSIE",null,null,null,null,null,null,null,null,null,null,null,null,null,null,null,null,null,"Date:",null,null,null,null,null,null,null,null,null,null,null,null,null,null,null,null,null,null,null,"L"]
[null,null,null,null,null,null,null,null,null,null,null,null,null,null,null,null,null,null,null,null,null,null,null,null,null,null,null,null,null,null,null,null,null,null,null,null,null,null,null,"LXL"]
[null,null,null,null,null,null,null,null,null,null,null,null,null,null,null,null,null,null,null,null,null,null,null,null,null,null,null,null,null,null,null,null,null,null,null,null,null,null,null,"M"]
[null,null,null,null,null,null,null,null,null,null,null,null,null,null,null,null,null,null,null,null,null,null,null,null,null,null,null,null,null,null,null,null,null,null,null,null,null,null,null,"S"]
[null,null,null,null,null,null,null,null,null,null,null,null,null,null,null,null,null,null,null,null,null,null,null,null,null,null,null,null,null,null,null,null,null,null,null,null,null,null,null,"SM"]
[null,null,null,null,null,null,null,null,null,null,null,null,null,null,null,null,null,null,null,null,null,null,null,null,null,null,null,null,null,null,null,null,null,null,null,null,null,null,null,"XL"]
[null,null,null,null,null,null,null,null,null,null,null,null,null,null,null,null,null,null,null,null,null,null,null,null,null,null,null,null,null,null,null,null,null,null,null,null,null,null,null,"XXL"]
[null,null,null,null,null,null,null,null,null,null,null,null,null,null,null,null,null,null,null,null,null,null,null,null,null,null,null,null,null,null,null,null,null,null,null,null,null,null,null,"XXXL"]

{"sheet":"3rd Fit Sample","index":11,"n_rows":53,"n_cols":40,"rows_kept":53,"cut":false,"hidden":true,"merged":[[4,29,4,34],[49,1,49,14],[49,15,49,18],[49,19,49,22],[49,23,49,31],[49,32,49,34],[50,1,50,14],[50,15,50,18],[50,19,50,22],[50,23,50,31],[50,32,50,34],[47,1,47,14],[47,15,47,18],[47,19,47,22],[47,23,47,31],[47,32,47,34],[48,1,48,14],[48,15,48,18],[48,19,48,22],[48,23,48,31],[48,32,48,34],[45,1,45,14],[45,15,45,18],[45,19,45,22],[45,23,45,31],[45,32,45,34],[46,1,46,14],[46,15,46,18],[46,19,46,22],[46,23,46,31],[46,32,46,34],[43,1,43,14],[43,15,43,18],[43,19,43,22],[43,23,43,31],[43,32,43,34],[44,1,44,14],[44,15,44,18],[44,19,44,22],[44,23,44,31],[44,32,44,34],[41,1,41,14],[41,15,41,18],[41,19,41,22],[41,23,41,31],[41,32,41,34],[42,1,42,14],[42,15,42,18],[42,19,42,22],[42,23,42,31],[42,32,42,34],[39,1,39,14],[39,15,39,18],[39,19,39,22],[39,23,39,31],[39,32,39,34],[40,1,40,14],[40,15,40,18],[40,19,40,22],[40,23,40,31],[40,32,40,34],[37,1,37,14],[37,15,37,18],[37,19,37,22],[37,23,37,31],[37,32,37,34],[38,1,38,14],[38,15,38,18],[38,19,38,22],[38,23,38,31],[38,32,38,34],[35,1,35,14],[35,15,35,18],[35,19,35,22],[35,23,35,31],[35,32,35,34],[36,1,36,14],[36,15,36,18],[36,19,36,22],[36,23,36,31],[36,32,36,34],[33,1,33,14],[33,15,33,18],[33,19,33,22],[33,23,33,31],[33,32,33,34],[34,1,34,14],[34,15,34,18],[34,19,34,22],[34,23,34,31],[34,32,34,34],[31,1,31,14],[31,15,31,18],[31,19,31,22],[31,23,31,31],[31,32,31,34],[32,1,32,14],[32,15,32,18],[32,19,32,22],[32,23,32,31],[32,32,32,34],[29,1,29,14],[29,15,29,18],[29,19,29,22],[29,23,29,31],[29,32,29,34],[30,1,30,14],[30,15,30,18],[30,19,30,22],[30,23,30,31],[30,32,30,34],[27,1,27,14],[27,15,27,18],[27,19,27,22],[27,23,27,31],[27,32,27,34],[28,1,28,14],[28,15,28,18],[28,19,28,22],[28,23,28,31],[28,32,28,34],[25,1,25,14],[25,15,25,18],[25,19,25,22],[25,23,25,31],[25,32,25,34],[26,1,26,14],[26,15,26,18],[26,19,26,22],[26,23,26,31],[26,32,26,34],[23,1,23,14],[23,15,23,18],[23,19,23,22],[23,23,23,31],[23,32,23,34],[24,1,24,14],[24,15,24,18],[24,19,24,22],[24,23,24,31],[24,32,24,34],[21,1,21,14],[21,15,21,18],[21,19,21,22],[21,23,21,31],[21,32,21,34],[22,1,22,14],[22,15,22,18],[22,19,22,22],[22,23,22,31],[22,32,22,34],[19,1,19,14],[19,15,19,18],[19,19,19,22],[19,23,19,31],[19,32,19,34],[20,1,20,14],[20,15,20,18],[20,19,20,22],[20,23,20,31],[20,32,20,34],[17,1,17,14],[17,15,17,18],[17,19,17,22],[17,23,17,31],[17,32,17,34],[18,1,18,14],[18,15,18,18],[18,19,18,22],[18,23,18,31],[18,32,18,34],[15,1,15,14],[15,15,15,18],[15,19,15,22],[15,23,15,31],[15,32,15,34],[16,1,16,14],[16,15,16,18],[16,19,16,22],[16,23,16,31],[16,32,16,34],[13,1,13,14],[13,15,13,18],[13,19,13,22],[13,23,13,31],[13,32,13,34],[14,1,14,14],[14,15,14,18],[14,19,14,22],[14,23,14,31],[14,32,14,34],[11,15,11,18],[11,19,11,22],[11,23,11,31],[11,32,11,34],[12,1,12,14],[12,15,12,18],[12,19,12,22],[12,23,12,31],[12,32,12,34],[51,15,51,34],[52,1,52,34],[1,16,1,22],[2,16,2,34],[3,16,3,22],[3,30,3,34],[4,16,4,22],[9,19,9,22],[10,1,10,14],[10,15,10,18],[10,19,10,22],[10,23,10,31],[10,32,10,34],[5,16,5,34],[7,1,7,18],[7,19,7,22],[7,23,7,31],[8,1,9,14],[8,15,8,18],[8,19,8,22],[8,23,9,31],[8,32,9,34],[9,15,9,18],[11,1,11,14]]}
[]
[null,null,null,null,null,null,null,null,null,null,null,"Create Date:",null,null,null,null,{"$f":"'Photo Sheet'!Q2:W2","v":"AUG 22/2017"}]
[null,null,null,null,null,null,null,null,null,null,null,"Vendor Name:",null,null,null,null,{"$f":"'Photo Sheet'!Q3:AI3","v":0}]
[null,null,null,null,null,null,null,null,null,null,null,"Vndr.Item No.:",null,null,null,null,{"$f":"'Photo Sheet'!Q4:W4","v":0},null,null,null,null,null,null,null,null,null,"GC Item No.:",null,null,null,{"$f":"'Photo Sheet'!AE4:AI4","v":0}]
[null,null,null,null,null,null,null,null,null,null,null,"Size Range:",null,null,null,null,{"$f":"'Photo Sheet'!Q5:W5","v":"0-6 MONTHS"},null,null,null,null,null,null,null,null,null,"Season:",null,null,"Fall Winter 2016"]
[null,null,null,null,null,null,null,null,null,null,null,"Description:",null,null,null,null,{"$f":"'Photo Sheet'!Q6:AI6","v":"BABY- SHORT SLEEVE ONESIE PRINT WITH CHEST DIAGONAL OPENING"}]
[]
[null,"BABY APPAREL SPEC SHEET -- ONSIE",null,null,null,null,null,null,null,null,null,null,null,null,null,null,null,null,null,"Date:",null,null,null,null,null,null,null,null,null,null,null,null,null,null,null,null,null,null,null,"S"]
[null,"(Measurements on flat / inches)",null,null,null,null,null,null,null,null,null,null,null,null,null,"3rd Fit Sample",null,null,null,"Required Spec",null,null,null,"Comments",null,null,null,null,null,null,null,null,"Tolerance\n+ / -\n(on flat)",null,null,null,null,null,null,"M"]
[null,null,null,null,null,null,null,null,null,null,null,null,null,null,null,"S",null,null,null,"S",null,null,null,null,null,null,null,null,null,null,null,null,null,null,null,null,null,null,null,"L"]
[null,{"$f":"'Apparel Spec Sheet'!B11:O11","v":"BACK TORSO LENGTH( HSP TO BACK CROTH -UNDOMED)"},null,null,null,null,null,null,null,null,null,null,null,null,null,null,null,null,null,null,null,null,null,null,null,null,null,null,null,null,null,null,0.375,null,null,null,null,null,null,"XL"]
[null,{"$f":"'Apparel Spec Sheet'!B12:O12","v":"CENTER BACK LENGTH( C.B. NECK TO HEM"},null,null,null,null,null,null,null,null,null,null,null,null,null,null,null,null,null,null,null,null,null,null,null,null,null,null,null,null,null,null,0.375,null,null,null,null,null,null,"SM"]
[null,{"$f":"'Apparel Spec Sheet'!B14:O14","v":"CHEST( 1/2\" BELOW ARMHOLE"},null,null,null,null,null,null,null,null,null,null,null,null,null,null,null,null,null,null,null,null,null,null,null,null,null,null,null,null,null,null,0.375,null,null,null,null,null,null,"LXL"]
[null,"FRONT LENGTH (FROM CENTRE FRONT NECK TO HEM)",null,null,null,null,null,null,null,null,null,null,null,null,null,null,null,null,null,null,null,null,null,null,null,null,null,null,null,null,null,null,0.375,null,null,null,null,null,null,"OS"]
[null,{"$f":"'Apparel Spec Sheet'!B15:O15","v":"WAIST"},null,null,null,null,null,null,null,null,null,null,null,null,null,null,null,null,null,null,null,null,null,null,null,null,null,null,null,null,null,null,0.375,null,null,null,null,null,null,"1X"]
[null,{"$f":"'Apparel Spec Sheet'!B16:O16","v":"HIP ( TOP OF LEG OPENING)"},null,null,null,null,null,null,null,null,null,null,null,null,null,null,null,null,null,null,null,null,null,null,null,null,null,null,null,null,null,null,0.375,null,null,null,null,null,null,"2X"]
[null,{"$f":"'Apparel Spec Sheet'!B17:O17","v":"HEM STRAIGHT"},null,null,null,null,null,null,null,null,null,null,null,null,null,null,null,null,null,null,null,null,null,null,null,null,null,null,null,null,null,null,0.375,null,null,null,null,null,null,"3X"]
[null,{"$f":"'Apparel Spec Sheet'!B18:O18","v":"ACROSS SHOULDERS"},null,null,null,null,null,null,null,null,null,null,null,null,null,null,null,null,null,null,null,null,null,null,null,null,null,null,null,null,null,null,0.375]
[null,{"$f":"'Apparel Spec Sheet'!B19:O19","v":"SHOULDER SEAM LENGTH"},null,null,null,null,null,null,null,null,null,null,null,null,null,null,null,null,null,null,null,null,null,null,null,null,null,null,null,null,null,null,0.375]
[null,"HEM CURVE (FOLLOW)",null,null,null,null,null,null,null,null,null,null,null,null,null,null,null,null,null,null,null,null,null,null,null,null,null,null,null,null,null,null,0.375]
[null,{"$f":"'Apparel Spec Sheet'!B21:O21","v":"ACROSS BACK ( MID ARMHOLE)"},null,null,null,null,null,null,null,null,null,null,null,null,null,null,null,null,null,null,null,null,null,null,null,null,null,null,null,null,null,null,0.375]
[null,{"$f":"'Apparel Spec Sheet'!B22:O22","v":"RAGLAN ACROSS FRONT ( MID ARMHOLE)"},null,null,null,null,null,null,null,null,null,null,null,null,null,null,null,null,null,null,null,null,null,null,null,null,null,null,null,null,null,null,0.375]
[null,{"$f":"'Apparel Spec Sheet'!B23:O23","v":"RAGLAN ACROSS BACK ( MIS ARMHOLE)"},null,null,null,null,null,null,null,null,null,null,null,null,null,null,null,null,null,null,null,null,null,null,null,null,null,null,null,null,null,null,0.375]
[null,{"$f":"'Apparel Spec Sheet'!B24:O24","v":"OVERARM - SLEEVE CAP TO HEM - SHORT SLEEVE"},null,null,null,null,null,null,null,null,null,null,null,null,null,null,null,null,null,null,null,null,null,null,null,null,null,null,null,null,null,null,0.25]
[null,{"$f":"'Apparel Spec Sheet'!B25:O25","v":"OVERARM - SLEEVE CAP TO HEM - 3/4  SLEEVE"},null,null,null,null,null,null,null,null,null,null,null,null,null,null,null,null,null,null,null,null,null,null,null,null,null,null,null,null,null,null,0.25]
[null,{"$f":"'Apparel Spec Sheet'!B26:O26","v":"OVERARM - SLEEVE CAP TO HEM - LONG SLEEVE"},null,null,null,null,null,null,null,null,null,null,null,null,null,null,null,null,null,null,null,null,null,null,null,null,null,null,null,null,null,null,0.375]
[null,{"$f":"'Apparel Spec Sheet'!B27:O27","v":"OVERARM ( NECK TO SLEEVE HEM)"},null,null,null,null,null,null,null,null,null,null,null,null,null,null,null,null,null,null,null,null,null,null,null,null,null,null,null,null,null,null,0.25]
[null,{"$f":"'Apparel Spec Sheet'!B28:O28","v":"1/2 ARMHOLE STRAIGHT"},null,null,null,null,null,null,null,null,null,null,null,null,null,null,null,null,null,null,null,null,null,null,null,null,null,null,null,null,null,null,0.25]
[null,{"$f":"'Apparel Spec Sheet'!B29:O29","v":"FRONT RAGLAN LENGTH ON SEAM"},null,null,null,null,null,null,null,null,null,null,null,null,null,null,null,null,null,null,null,null,null,null,null,null,null,null,null,null,null,null,0.25]
[null,{"$f":"'Apparel Spec Sheet'!B30:O30","v":"BACK RAGLAN LENGTH ON SEAM"},null,null,null,null,null,null,null,null,null,null,null,null,null,null,null,null,null,null,null,null,null,null,null,null,null,null,null,null,null,null,0.25]
[null,{"$f":"'Apparel Spec Sheet'!B31:O31","v":"BICEP ( AT ARMHOLE SEAM)"},null,null,null,null,null,null,null,null,null,null,null,null,null,null,null,null,null,null,null,null,null,null,null,null,null,null,null,null,null,null,0.25]
[null,{"$f":"'Apparel Spec Sheet'!B32:O32","v":"ELBOW"},null,null,null,null,null,null,null,null,null,null,null,null,null,null,null,null,null,null,null,null,null,null,null,null,null,null,null,null,null,null,0.25]
[null,{"$f":"'Apparel Spec Sheet'!B33:O33","v":"SHORT SLEEVE OPENING"},null,null,null,null,null,null,null,null,null,null,null,null,null,null,null,null,null,null,null,null,null,null,null,null,null,null,null,null,null,null,"1/4"]
[null,{"$f":"'Apparel Spec Sheet'!B34:O34","v":"3/4 SLEEVE OPENING"},null,null,null,null,null,null,null,null,null,null,null,null,null,null,null,null,null,null,null,null,null,null,null,null,null,null,null,null,null,null,0]
[null,{"$f":"'Apparel Spec Sheet'!B35:O35","v":"LONG SLEEVE OPENING"},null,null,null,null,null,null,null,null,null,null,null,null,null,null,null,null,null,null,null,null,null,null,null,null,null,null,null,null,null,null,0.25]
[null,{"$f":"'Apparel Spec Sheet'!B36:O36","v":"SLEEEVE CAP HEIGHT"},null,null,null,null,null,null,null,null,null,null,null,null,null,null,null,null,null,null,null,null,null,null,null,null,null,null,null,null,null,null,0.25]
[null,{"$f":"'Apparel Spec Sheet'!B37:O37","v":"NECK WIDTH ( ON BACK BETWEEN TRIM)"},null,null,null,null,null,null,null,null,null,null,null,null,null,null,null,null,null,null,null,null,null,null,null,null,null,null,null,null,null,null,0.25]
[null,{"$f":"'Apparel Spec Sheet'!B38:O38","v":"FRONT NECK DROP"},null,null,null,null,null,null,null,null,null,null,null,null,null,null,null,null,null,null,null,null,null,null,null,null,null,null,null,null,null,null,0.25]
[null,{"$f":"'Apparel Spec Sheet'!B39:O39","v":"BACK NECK DROP"},null,null,null,null,null,null,null,null,null,null,null,null,null,null,null,null,null,null,null,null,null,null,null,null,null,null,null,null,null,null,0]
[null,{"$f":"'Apparel Spec Sheet'!B40:O40","v":"1/2 NECK CIRECUMFERENCE - RELAXED"},null,null,null,null,null,null,null,null,null,null,null,null,null,null,null,null,null,null,null,null,null,null,null,null,null,null,null,null,null,null,0]
[null,{"$f":"'Apparel Spec Sheet'!B41:O41","v":"1/2 NECK CIRECUMFERENCE -EXTENDED"},null,null,null,null,null,null,null,null,null,null,null,null,null,null,null,null,null,null,null,null,null,null,null,null,null,null,null,null,null,null,0.25]
[null,{"$f":"'Apparel Spec Sheet'!B42:O42","v":"COLLAR DEPTH AT C.B NECK"},null,null,null,null,null,null,null,null,null,null,null,null,null,null,null,null,null,null,null,null,null,null,null,null,null,null,null,null,null,null,0]
[null,{"$f":"'Apparel Spec Sheet'!B43:O43","v":"NECK TRIM DEPTH"},null,null,null,null,null,null,null,null,null,null,null,null,null,null,null,null,null,null,null,null,null,null,null,null,null,null,null,null,null,null,0]
[null,{"$f":"'Apparel Spec Sheet'!B44:O44","v":"CUFF DEPTH"},null,null,null,null,null,null,null,null,null,null,null,null,null,null,null,null,null,null,null,null,null,null,null,null,null,null,null,null,null,null,0]
[null,{"$f":"'Apparel Spec Sheet'!B45:O45","v":"SLEEVE HEM DEPTH"},null,null,null,null,null,null,null,null,null,null,null,null,null,null,null,null,null,null,null,null,null,null,null,null,null,null,null,null,null,null,0]
[null,{"$f":"'Apparel Spec Sheet'!B46:O46","v":"BOTTOM HEM DEPTH"},null,null,null,null,null,null,null,null,null,null,null,null,null,null,null,null,null,null,null,null,null,null,null,null,null,null,null,null,null,null,0.375]
[null,{"$f":"'Apparel Spec Sheet'!B47:O47","v":"THIGH ( 1/2\" BELOW CROTCH)"}]
[null,{"$f":"'Apparel Spec Sheet'!B48:O48","v":"KNEE WIDTH"},null,null,null,null,null,null,null,null,null,null,null,null,null,null,null,null,null,null,null,null,null,null,null,null,null,null,null,null,null,null,0.25]
[null,{"$f":"'Apparel Spec Sheet'!B49:O49","v":"LEG OPENING WIDTH"},null,null,null,null,null,null,null,null,null,null,null,null,null,null,null,null,null,null,null,null,null,null,null,null,null,null,null,null,null,null,0.25]
[null,{"$f":"'Apparel Spec Sheet'!B50:O50","v":"FRONT CROTCH WIDTH"},null,null,null,null,null,null,null,null,null,null,null,null,null,null,null,null,null,null,null,null,null,null,null,null,null,null,null,null,null,null,0.25]
[null,{"$f":"'Apparel Spec Sheet'!B51:O51","v":"SAM E BODY FIT AS SS18-1075- EXCEPT DIFFERENT FRONT STYLING"},null,null,null,null,null,null,null,null,null,null,null,null,null,null,null,null,null,null,null,null,null,null,null,null,null,null,null,null,null,null,0.375]
[null,"Sample Approved?"]
[null,"If sample is NOT approved, then submit 4th Fit Sample. If sample is APPROVED, then submit Pre-Production Samples."]

{"sheet":"3rd Fit Photo Comments","index":12,"n_rows":15,"n_cols":40,"rows_kept":15,"cut":false,"hidden":true,"merged":[[5,16,5,34],[7,1,7,18],[7,19,7,22],[7,23,7,31],[1,16,1,22],[2,16,2,34],[3,16,3,22],[3,30,3,34],[4,16,4,22],[4,29,4,34]]}
[]
[null,null,null,null,null,null,null,null,null,null,null,"Create Date:",null,null,null,null,{"$f":"'Photo Sheet'!Q2:W2","v":"AUG 22/2017"}]
[null,null,null,null,null,null,null,null,null,null,null,"Vendor Name:",null,null,null,null,{"$f":"'Photo Sheet'!Q3:AI3","v":0}]
[null,null,null,null,null,null,null,null,null,null,null,"Vndr.Item No.:",null,null,null,null,{"$f":"'Photo Sheet'!Q4:W4","v":0},null,null,null,null,null,null,null,null,null,"GC Item No.:",null,null,null,{"$f":"'Photo Sheet'!AE4:AI4","v":0}]
[null,null,null,null,null,null,null,null,null,null,null,"Size Range:",null,null,null,null,{"$f":"'Photo Sheet'!Q5:W5","v":"0-6 MONTHS"},null,null,null,null,null,null,null,null,null,"Season:",null,null,"Fall Winter 2016"]
[null,null,null,null,null,null,null,null,null,null,null,"Description:",null,null,null,null,{"$f":"'Photo Sheet'!Q6:AI6","v":"BABY- SHORT SLEEVE ONESIE PRINT WITH CHEST DIAGONAL OPENING"}]
[]
[null,"BABY APPAREL SPEC SHEET -- ONSIE",null,null,null,null,null,null,null,null,null,null,null,null,null,null,null,null,null,"Date:",null,null,null,null,null,null,null,null,null,null,null,null,null,null,null,null,null,null,null,"L"]
[null,null,null,null,null,null,null,null,null,null,null,null,null,null,null,null,null,null,null,null,null,null,null,null,null,null,null,null,null,null,null,null,null,null,null,null,null,null,null,"LXL"]
[null,null,null,null,null,null,null,null,null,null,null,null,null,null,null,null,null,null,null,null,null,null,null,null,null,null,null,null,null,null,null,null,null,null,null,null,null,null,null,"M"]
[null,null,null,null,null,null,null,null,null,null,null,null,null,null,null,null,null,null,null,null,null,null,null,null,null,null,null,null,null,null,null,null,null,null,null,null,null,null,null,"S"]
[null,null,null,null,null,null,null,null,null,null,null,null,null,null,null,null,null,null,null,null,null,null,null,null,null,null,null,null,null,null,null,null,null,null,null,null,null,null,null,"SM"]
[null,null,null,null,null,null,null,null,null,null,null,null,null,null,null,null,null,null,null,null,null,null,null,null,null,null,null,null,null,null,null,null,null,null,null,null,null,null,null,"XL"]
[null,null,null,null,null,null,null,null,null,null,null,null,null,null,null,null,null,null,null,null,null,null,null,null,null,null,null,null,null,null,null,null,null,null,null,null,null,null,null,"XXL"]
[null,null,null,null,null,null,null,null,null,null,null,null,null,null,null,null,null,null,null,null,null,null,null,null,null,null,null,null,null,null,null,null,null,null,null,null,null,null,null,"XXXL"]

{"sheet":"Grade S-M-L-XL","index":13,"n_rows":53,"n_cols":40,"rows_kept":53,"cut":false,"hidden":true,"merged":[[50,15,50,16],[50,17,50,18],[50,19,50,20],[50,21,50,22],[50,23,50,24],[50,25,50,26],[50,27,50,28],[50,29,50,30],[48,29,48,30],[49,15,49,16],[49,17,49,18],[49,19,49,20],[49,21,49,22],[49,23,49,24],[49,25,49,26],[49,27,49,28],[49,29,49,30],[45,15,45,16],[45,17,45,18],[45,19,45,20],[45,21,45,22],[45,23,45,24],[45,25,45,26],[45,27,45,28],[45,29,45,30],[46,15,46,16],[46,17,46,18],[46,19,46,20],[46,21,46,22],[46,23,46,24],[46,25,46,26],[46,27,46,28],[46,29,46,30],[43,23,43,24],[43,25,43,26],[43,27,43,28],[43,29,43,30],[44,15,44,16],[44,17,44,18],[44,19,44,20],[44,21,44,22],[44,23,44,24],[44,25,44,26],[44,27,44,28],[44,29,44,30],[40,15,40,16],[40,17,40,18],[40,19,40,20],[40,21,40,22],[40,23,40,24],[40,25,40,26],[40,27,40,28],[40,29,40,30],[41,15,41,16],[41,17,41,18],[41,19,41,20],[41,21,41,22],[41,23,41,24],[41,25,41,26],[41,27,41,28],[41,29,41,30],[38,15,38,16],[38,17,38,18],[38,19,38,20],[38,21,38,22],[38,23,38,24],[38,25,38,26],[38,27,38,28],[38,29,38,30],[39,15,39,16],[39,17,39,18],[39,19,39,20],[39,21,39,22],[39,23,39,24],[39,25,39,26],[39,27,39,28],[39,29,39,30],[36,23,36,24],[36,25,36,26],[36,27,36,28],[36,29,36,30],[37,15,37,16],[37,17,37,18],[37,19,37,20],[37,21,37,22],[37,23,37,24],[37,25,37,26],[37,27,37,28],[37,29,37,30],[33,15,33,16],[33,17,33,18],[33,19,33,20],[33,21,33,22],[33,23,33,24],[33,25,33,26],[33,27,33,28],[33,29,33,30],[34,15,34,16],[34,17,34,18],[34,19,34,20],[34,21,34,22],[34,23,34,24],[34,25,34,26],[34,27,34,28],[34,29,34,30],[31,23,31,24],[31,25,31,26],[31,27,31,28],[31,29,31,30],[32,15,32,16],[32,17,32,18],[32,19,32,20],[32,21,32,22],[32,23,32,24],[32,25,32,26],[32,27,32,28],[32,29,32,30],[28,15,28,16],[28,17,28,18],[28,19,28,20],[28,21,28,22],[28,23,28,24],[28,25,28,26],[28,27,28,28],[28,29,28,30],[29,15,29,16],[29,17,29,18],[29,19,29,20],[29,21,29,22],[29,23,29,24],[29,25,29,26],[29,27,29,28],[29,29,29,30],[26,15,26,16],[26,17,26,18],[26,19,26,20],[26,21,26,22],[26,23,26,24],[26,25,26,26],[26,27,26,28],[26,29,26,30],[27,15,27,16],[27,17,27,18],[27,19,27,20],[27,21,27,22],[27,23,27,24],[27,25,27,26],[27,27,27,28],[27,29,27,30],[24,23,24,24],[24,25,24,26],[24,27,24,28],[24,29,24,30],[25,15,25,16],[25,17,25,18],[25,19,25,20],[25,21,25,22],[25,23,25,24],[25,25,25,26],[25,27,25,28],[25,29,25,30],[21,15,21,16],[21,17,21,18],[21,19,21,20],[21,21,21,22],[21,23,21,24],[21,25,21,26],[21,27,21,28],[21,29,21,30],[22,15,22,16],[22,17,22,18],[22,19,22,20],[22,21,22,22],[22,23,22,24],[22,25,22,26],[22,27,22,28],[22,29,22,30],[19,23,19,24],[19,25,19,26],[19,27,19,28],[19,29,19,30],[20,15,20,16],[20,17,20,18],[20,19,20,20],[20,21,20,22],[20,23,20,24],[20,25,20,26],[20,27,20,28],[20,29,20,30],[16,15,16,16],[16,17,16,18],[16,19,16,20],[16,21,16,22],[16,23,16,24],[16,25,16,26],[16,27,16,28],[16,29,16,30],[17,15,17,16],[17,17,17,18],[17,19,17,20],[17,21,17,22],[17,23,17,24],[17,25,17,26],[17,27,17,28],[17,29,17,30],[14,15,14,16],[14,17,14,18],[14,19,14,20],[14,21,14,22],[14,23,14,24],[14,25,14,26],[14,27,14,28],[14,29,14,30],[15,15,15,16],[15,17,15,18],[15,19,15,20],[15,21,15,22],[15,23,15,24],[15,25,15,26],[15,27,15,28],[15,29,15,30],[12,23,12,24],[12,25,12,26],[12,27,12,28],[12,29,12,30],[13,15,13,16],[13,17,13,18],[13,19,13,20],[13,21,13,22],[13,23,13,24],[13,25,13,26],[13,27,13,28],[13,29,13,30],[50,1,50,14],[50,32,50,34],[52,1,52,34],[47,1,47,14],[47,32,47,34],[48,1,48,14],[48,32,48,34],[49,1,49,14],[49,32,49,34],[47,15,47,16],[47,17,47,18],[47,19,47,20],[47,21,47,22],[47,23,47,24],[47,25,47,26],[47,27,47,28],[47,29,47,30],[48,15,48,16],[48,17,48,18],[48,19,48,20],[48,21,48,22],[48,23,48,24],[48,25,48,26],[48,27,48,28],[44,1,44,14],[44,32,44,34],[45,1,45,14],[45,32,45,34],[46,1,46,14],[46,32,46,34],[41,1,41,14],[41,32,41,34],[42,1,42,14],[42,32,42,34],[43,1,43,14],[43,32,43,34],[42,15,42,16],[42,17,42,18],[42,19,42,20],[42,21,42,22],[42,23,42,24],[42,25,42,26],[42,27,42,28],[42,29,42,30],[43,15,43,16],[43,17,43,18],[43,19,43,20],[43,21,43,22],[38,1,38,14],[38,32,38,34],[39,1,39,14],[39,32,39,34],[40,1,40,14],[40,32,40,34],[35,1,35,14],[35,32,35,34],[36,1,36,14],[36,32,36,34],[37,1,37,14],[37,32,37,34],[35,15,35,16],[35,17,35,18],[35,19,35,20],[35,21,35,22],[35,23,35,24],[35,25,35,26],[35,27,35,28],[35,29,35,30],[36,15,36,16],[36,17,36,18],[36,19,36,20],[36,21,36,22],[32,1,32,14],[32,32,32,34],[33,1,33,14],[33,32,33,34],[34,1,34,14],[34,32,34,34],[29,1,29,14],[29,32,29,34],[30,1,30,14],[30,32,30,34],[31,1,31,14],[31,32,31,34],[30,15,30,16],[30,17,30,18],[30,19,30,20],[30,21,30,22],[30,23,30,24],[30,25,30,26],[30,27,30,28],[30,29,30,30],[31,15,31,16],[31,17,31,18],[31,19,31,20],[31,21,31,22],[26,1,26,14],[26,32,26,34],[27,1,27,14],[27,32,27,34],[28,1,28,14],[28,32,28,34],[23,1,23,14],[23,32,23,34],[24,1,24,14],[24,32,24,34],[25,1,25,14],[25,32,25,34],[23,15,23,16],[23,17,23,18],[23,19,23,20],[23,21,23,22],[23,23,23,24],[23,25,23,26],[23,27,23,28],[23,29,23,30],[24,15,24,16],[24,17,24,18],[24,19,24,20],[24,21,24,22],[20,1,20,14],[20,32,20,34],[21,1,21,14],[21,32,21,34],[22,1,22,14],[22,32,22,34],[17,1,17,14],[17,32,17,34],[18,1,18,14],[18,32,18,34],[19,1,19,14],[19,32,19,34],[18,15,18,16],[18,17,18,18],[18,19,18,20],[18,21,18,22],[18,23,18,24],[18,25,18,26],[18,27,18,28],[18,29,18,30],[19,15,19,16],[19,17,19,18],[19,19,19,20],[19,21,19,22],[14,1,14,14],[14,32,14,34],[15,1,15,14],[15,32,15,34],[16,1,16,14],[16,32,16,34],[11,1,11,14],[11,32,11,34],[12,1,12,14],[12,32,12,34],[13,1,13,14],[13,32,13,34],[11,15,11,16],[11,17,11,18],[11,19,11,20],[11,21,11,22],[11,23,11,24],[11,25,11,26],[11,27,11,28],[11,29,11,30],[12,15,12,16],[12,17,12,18],[12,19,12,20],[12,21,12,22],[10,1,10,14],[10,32,10,34],[5,16,5,34],[7,1,7,18],[7,19,7,22],[7,23,7,31],[8,1,9,14],[8,15,9,16],[8,17,9,18],[8,19,9,20],[8,21,9,22],[8,23,9,24],[10,15,10,16],[10,17,10,18],[10,19,10,20],[10,21,10,22],[10,23,10,24],[10,25,10,26],[10,27,10,28],[10,29,10,30],[1,16,1,22],[2,16,2,34],[3,16,3,22],[3,30,3,34],[4,16,4,22],[8,25,9,26],[8,27,9,28],[8,29,9,30],[8,32,9,34],[4,29,4,34]]}
[]
[null,null,null,null,null,null,null,null,null,null,null,"Create Date:",null,null,null,null,{"$f":"'Photo Sheet'!Q2:W2","v":"AUG 22/2017"}]
[null,null,null,null,null,null,null,null,null,null,null,"Vendor Name:",null,null,null,null,{"$f":"'Photo Sheet'!Q3:AI3","v":0}]
[null,null,null,null,null,null,null,null,null,null,null,"Vndr.Item No.:",null,null,null,null,{"$f":"'Photo Sheet'!Q4:W4","v":0},null,null,null,null,null,null,null,null,null,"GC Item No.:",null,null,null,{"$f":"'Photo Sheet'!AE4:AI4","v":0}]
[null,null,null,null,null,null,null,null,null,null,null,"Size Range:",null,null,null,null,{"$f":"'Photo Sheet'!Q5:W5","v":"0-6 MONTHS"},null,null,null,null,null,null,null,null,null,"Season:",null,null,"Fall Winter 2016"]
[null,null,null,null,null,null,null,null,null,null,null,"Description:",null,null,null,null,{"$f":"'Photo Sheet'!Q6:AI6","v":"BABY- SHORT SLEEVE ONESIE PRINT WITH CHEST DIAGONAL OPENING"}]
[]
[null,"GRADE SHEET -- TOP / SWEATER",null,null,null,null,null,null,null,null,null,null,null,null,null,null,null,null,null,"Date:",null,null,null,null,null,null,null,null,null,null,null,null,null,null,null,null,null,null,null,"L"]
[null,"(Measurements on flat / inches)",null,null,null,null,null,null,null,null,null,null,null,null,null,"S",null,null,null,"M",null,null,null,"L",null,null,null,"XL",null,null,null,null,"Tolerance\n+ / -\n(on flat)",null,null,null,null,null,null,"LXL"]
[null,null,null,null,null,null,null,null,null,null,null,null,null,null,null,null,null,null,null,null,null,null,null,null,null,null,null,null,null,null,null,null,null,null,null,null,null,null,null,"M"]
[null,"BACK LENGTH FROM (HIGH SHOULDER POINT)",null,null,null,null,null,null,null,null,null,null,null,null,null,{"$f":"T11-0.25","v":-0.25},null,null,null,0,null,null,null,{"$f":"T11+0.375","v":0.375},null,null,null,{"$f":"T11+0.75","v":0.75},null,null,null,null,0.375,null,null,null,null,null,null,"S"]
[null,"CENTER BACK LENGTH ( FROM NECK TO HEM )",null,null,null,null,null,null,null,null,null,null,null,null,null,null,null,null,null,0,null,null,null,null,null,null,null,null,null,null,null,null,0.375,null,null,null,null,null,null,"SM"]
[null,"FRONT LENGTH FROM (HIGH SHOULDER POINT)",null,null,null,null,null,null,null,null,null,null,null,null,null,{"$f":"T13-0.25","v":-0.25},null,null,null,0,null,null,null,{"$f":"T13+0.375","v":0.375},null,null,null,{"$f":"T13+0.75","v":0.75},null,null,null,null,0.375,null,null,null,null,null,null,"XL"]
[null,"FRONT LENGTH (FROM CENTRE FRONT NECK TO HEM)",null,null,null,null,null,null,null,null,null,null,null,null,null,null,null,null,null,0,null,null,null,null,null,null,null,null,null,null,null,null,0.375,null,null,null,null,null,null,"XXL"]
[null,"CHEST (1\" BELOW ARMHOLE)",null,null,null,null,null,null,null,null,null,null,null,null,null,{"$f":"T15-1","v":-1},null,null,null,0,null,null,null,{"$f":"T15+1.5","v":1.5},null,null,null,{"$f":"T15+3","v":3},null,null,null,null,0.375,null,null,null,null,null,null,"XXXL"]
[null,"WAIST (16 1/2\" BELOW HIGH SHOULDER POINT)",null,null,null,null,null,null,null,null,null,null,null,null,null,{"$f":"T16-1","v":-1},null,null,null,0,null,null,null,{"$f":"T16+1.5","v":1.5},null,null,null,{"$f":"T16+3","v":3},null,null,null,null,0.375]
[null,"TOP HIP ( 19 1/2\" BELOW HSP )",null,null,null,null,null,null,null,null,null,null,null,null,null,{"$f":"T17-1","v":-1},null,null,null,0,null,null,null,{"$f":"T17+1.5","v":1.5},null,null,null,{"$f":"T17+3","v":3},null,null,null,null,0.375]
[null,"LOW HIP ( 24 1/2\" BELOW HIGH SHOULDER POINT)",null,null,null,null,null,null,null,null,null,null,null,null,null,{"$f":"T18-1","v":-1},null,null,null,0,null,null,null,{"$f":"T18+1.5","v":1.5},null,null,null,{"$f":"T18+3","v":3},null,null,null,null,0.375]
[null,"HEM STRAIGHT",null,null,null,null,null,null,null,null,null,null,null,null,null,{"$f":"T19-1","v":-1},null,null,null,0,null,null,null,{"$f":"T19+1.5","v":1.5},null,null,null,{"$f":"T19+3","v":3},null,null,null,null,0.375]
[null,"HEM CURVE (FOLLOW)",null,null,null,null,null,null,null,null,null,null,null,null,null,null,null,null,null,0,null,null,null,null,null,null,null,null,null,null,null,null,0.375]
[null,"ACROSS SHOULDERS",null,null,null,null,null,null,null,null,null,null,null,null,null,{"$f":"T21-0.5","v":-0.5},null,null,null,0,null,null,null,{"$f":"T21+0.75","v":0.75},null,null,null,{"$f":"T21+1.5","v":1.5},null,null,null,null,0.375]
[null,"ACROSS FRONT (5\" BELOW HIGH SHOULDER POINT)",null,null,null,null,null,null,null,null,null,null,null,null,null,{"$f":"T22-0.5","v":-0.5},null,null,null,0,null,null,null,{"$f":"T22+0.75","v":0.75},null,null,null,{"$f":"T22+1.5","v":1.5},null,null,null,null,0.375]
[null,"ACROSS BACK (5\" BELOW HIGH SHOULDER POINT)",null,null,null,null,null,null,null,null,null,null,null,null,null,{"$f":"T23-0.5","v":-0.5},null,null,null,0,null,null,null,{"$f":"T23+0.75","v":0.75},null,null,null,{"$f":"T23+1.5","v":1.5},null,null,null,null,0.375]
[null,"OVERARM (FROM SLEEVE CAP TO HEM)-SHORT SLEEVE",null,null,null,null,null,null,null,null,null,null,null,null,null,{"$f":"T24-0.125","v":-0.125},null,null,null,0,null,null,null,{"$f":"T24+0.25","v":0.25},null,null,null,{"$f":"T24+0.5","v":0.5},null,null,null,null,0.25]
[null,"OVERARM (FROM SLEEVE CAP TO HEM)- 3/4 SLEEVE",null,null,null,null,null,null,null,null,null,null,null,null,null,{"$f":"T25-0.125","v":-0.125},null,null,null,0,null,null,null,{"$f":"T25+0.25","v":0.25},null,null,null,{"$f":"T25+0.5","v":0.5},null,null,null,null,0.25]
[null,"OVERARM (FROM SLEEVE CAP TO HEM)- LONG SLEEVE",null,null,null,null,null,null,null,null,null,null,null,null,null,{"$f":"T26-0.125","v":-0.125},null,null,null,0,null,null,null,{"$f":"T26+0.25","v":0.25},null,null,null,{"$f":"T26+0.5","v":0.5},null,null,null,null,0.375]
[null,"1/2 ARMHOLE STRAIGHT",null,null,null,null,null,null,null,null,null,null,null,null,null,{"$f":"T27-0.375","v":-0.375},null,null,null,0,null,null,null,{"$f":"T27+0.625","v":0.625},null,null,null,{"$f":"T27+1.25","v":1.25},null,null,null,null,0.25]
[null,"BICEP (1\" BELOW ARMHOLE)",null,null,null,null,null,null,null,null,null,null,null,null,null,{"$f":"T28-0.25","v":-0.25},null,null,null,0,null,null,null,{"$f":"T28+0.5","v":0.5},null,null,null,{"$f":"T28+1","v":1},null,null,null,null,0.25]
[null,"ELBOW (8 1/2\" BELOW ARMHOLE)",null,null,null,null,null,null,null,null,null,null,null,null,null,null,null,null,null,0,null,null,null,null,null,null,null,null,null,null,null,null,0.25]
[null,"SHORT SLEEVE OPENING",null,null,null,null,null,null,null,null,null,null,null,null,null,{"$f":"T30-0.25","v":-0.25},null,null,null,0,null,null,null,{"$f":"T30+0.5","v":0.5},null,null,null,{"$f":"T30+1","v":1},null,null,null,null,0.25]
[null,"3/4 SLEEVE OPENING",null,null,null,null,null,null,null,null,null,null,null,null,null,null,null,null,null,0,null,null,null,null,null,null,null,null,null,null,null,null,0.25]
[null,"LONG SLEEVE OPENING",null,null,null,null,null,null,null,null,null,null,null,null,null,{"$f":"T32-0.125","v":-0.125},null,null,null,0,null,null,null,{"$f":"T32+0.25","v":0.25},null,null,null,{"$f":"T32+0.5","v":0.5},null,null,null,null,0.25]
[null,"SLEEVE CAP HEIGHT ( FROM TOP OF SLEEVE TO UNDERARM )",null,null,null,null,null,null,null,null,null,null,null,null,null,{"$f":"T33-0.125","v":-0.125},null,null,null,0,null,null,null,{"$f":"T33+0.25","v":0.25},null,null,null,{"$f":"T33+0.5","v":0.5},null,null,null,null,"1/4"]
[null,"SHOULDER SLOPE ( HSP TO SHOULDER ARMHOLE SEAM )",null,null,null,null,null,null,null,null,null,null,null,null,null,{"$f":"T34-0","v":0},null,null,null,0,null,null,null,{"$f":"T34+0","v":0},null,null,null,{"$f":"T34+0","v":0},null,null,null,null,0]
[null,"NECK WIDTH (HSP TO HSP) ON BACK",null,null,null,null,null,null,null,null,null,null,null,null,null,{"$f":"T35-0.25","v":-0.25},null,null,null,0,null,null,null,{"$f":"T35+0.375","v":0.375},null,null,null,{"$f":"T35+0.75","v":0.75},null,null,null,null,0.25]
[null,"FRONT NECK DROP ( FROM HSP TO C.F.NECK EDGE OR SEAM )",null,null,null,null,null,null,null,null,null,null,null,null,null,{"$f":"T36-0.125","v":-0.125},null,null,null,0,null,null,null,{"$f":"T36+0.25","v":0.25},null,null,null,{"$f":"T36+0.5","v":0.5},null,null,null,null,0.25]
[null,"BACK NECK DROP ( FROM HSP TO C.B. NECK EDGE OR SEAM )",null,null,null,null,null,null,null,null,null,null,null,null,null,{"$f":"T37-0","v":0},null,null,null,0,null,null,null,{"$f":"T37+0","v":0},null,null,null,{"$f":"T37+0","v":0},null,null,null,null,0.25]
[null,"1/2 NECK CIRCUMFERENCE",null,null,null,null,null,null,null,null,null,null,null,null,null,null,null,null,null,0,null,null,null,null,null,null,null,null,null,null,null,null,0.25]
[null,"COLLAR DEPTH ( AT C.B. NECK )",null,null,null,null,null,null,null,null,null,null,null,null,null,null,null,null,null,0,null,null,null,null,null,null,null,null,null,null,null,null,0]
[null,"STAND DEPTH",null,null,null,null,null,null,null,null,null,null,null,null,null,{"$f":"T40-0","v":0},null,null,null,0,null,null,null,{"$f":"T40+0","v":0},null,null,null,{"$f":"T40+0","v":0},null,null,null,null,0]
[null,"COLLAR LENGTH",null,null,null,null,null,null,null,null,null,null,null,null,null,null,null,null,null,0,null,null,null,null,null,null,null,null,null,null,null,null,0.25]
[null,"NECK TRIM DEPTH",null,null,null,null,null,null,null,null,null,null,null,null,null,{"$f":"T42-0","v":0},null,null,null,0,null,null,null,{"$f":"T42+0","v":0},null,null,null,{"$f":"T42+0","v":0},null,null,null,null,0]
[null,"CUFF DEPTH",null,null,null,null,null,null,null,null,null,null,null,null,null,{"$f":"T43-0","v":0},null,null,null,0,null,null,null,{"$f":"T43+0","v":0},null,null,null,{"$f":"T43+0","v":0},null,null,null,null,0]
[null,"SLEEVE HEM DEPTH",null,null,null,null,null,null,null,null,null,null,null,null,null,{"$f":"T44-0","v":0},null,null,null,0,null,null,null,{"$f":"T44+0","v":0},null,null,null,{"$f":"T44+0","v":0},null,null,null,null,0]
[null,"BOTTOM HEM DEPTH",null,null,null,null,null,null,null,null,null,null,null,null,null,{"$f":"T45-0","v":0},null,null,null,0,null,null,null,{"$f":"T45+0","v":0},null,null,null,{"$f":"T45+0","v":0},null,null,null,null,0]
[null,"BACK HEM WIDTH ( STRAIGHT FROM SEAM TO SEAM )",null,null,null,null,null,null,null,null,null,null,null,null,null,{"$f":"T46-1","v":-1},null,null,null,0,null,null,null,{"$f":"T46+1.5","v":1.5},null,null,null,{"$f":"T46+3","v":3},null,null,null,null,0.375]
[]
[null,"HOOD DEPTH AT CENTRE FRONT ( TOP HOOD TO NECK)",null,null,null,null,null,null,null,null,null,null,null,null,null,{"$f":"T48-0.375","v":-0.375},null,null,null,0,null,null,null,{"$f":"T48+0.375","v":0.375},null,null,null,{"$f":"T48+0.75","v":0.75},null,null,null,null,0.25]
[null,"HOOD DEPTH AT SHOULDER ( TOP HOOD TO SHOULDER SEAM)",null,null,null,null,null,null,null,null,null,null,null,null,null,{"$f":"T49-0.375","v":-0.375},null,null,null,0,null,null,null,{"$f":"T49+0.375","v":0.375},null,null,null,{"$f":"T49+0.75","v":0.75},null,null,null,null,0.25]
[null,"HOOD WIDTH (4\" BELOW TOP OF HOOD)",null,null,null,null,null,null,null,null,null,null,null,null,null,{"$f":"T50-0.25","v":-0.25},null,null,null,0,null,null,null,{"$f":"T50+0.25","v":0.25},null,null,null,{"$f":"T50+0.5","v":0.5},null,null,null,null,0.25]
[null,"HOOD OVERHEAD ( FOLLOWED ALONG C.B. SEAM )",null,null,null,null,null,null,null,null,null,null,null,null,null,{"$f":"T51-0.625","v":-0.625},null,null,null,0,null,null,null,{"$f":"T51+0.625","v":0.625},null,null,null,{"$f":"T51+1.25","v":1.25},null,null,null,null,0.375]
[null,"Sample Approved?"]
[null,"If sample is NOT approved, then submit 2nd Pre-Production Samples. If sample is APPROVED, then submit Production Samples."]

{"sheet":"Grade XS-S-M-L-XL ","index":14,"n_rows":53,"n_cols":40,"rows_kept":53,"cut":false,"hidden":true,"merged":[[1,16,1,22],[2,16,2,34],[3,16,3,22],[3,30,3,34],[4,16,4,22],[4,29,4,34],[5,16,5,34],[7,1,7,18],[7,19,7,22],[7,23,7,31],[8,32,9,34],[10,1,10,14],[10,15,10,16],[10,17,10,18],[10,19,10,20],[10,21,10,22],[10,23,10,24],[10,25,10,26],[10,27,10,28],[10,29,10,30],[10,32,10,34],[8,1,9,14],[8,15,9,16],[8,17,9,18],[8,19,9,20],[8,21,9,22],[8,23,9,24],[8,25,9,26],[8,27,9,28],[8,29,9,30],[11,32,11,34],[12,1,12,14],[12,15,12,16],[12,17,12,18],[12,19,12,20],[12,21,12,22],[12,23,12,24],[12,25,12,26],[12,27,12,28],[12,29,12,30],[12,32,12,34],[11,1,11,14],[11,15,11,16],[11,17,11,18],[11,19,11,20],[11,21,11,22],[11,23,11,24],[11,25,11,26],[11,27,11,28],[11,29,11,30],[13,32,13,34],[14,1,14,14],[14,15,14,16],[14,17,14,18],[14,19,14,20],[14,21,14,22],[14,23,14,24],[14,25,14,26],[14,27,14,28],[14,29,14,30],[14,32,14,34],[13,1,13,14],[13,15,13,16],[13,17,13,18],[13,19,13,20],[13,21,13,22],[13,23,13,24],[13,25,13,26],[13,27,13,28],[13,29,13,30],[15,32,15,34],[16,1,16,14],[16,15,16,16],[16,17,16,18],[16,19,16,20],[16,21,16,22],[16,23,16,24],[16,25,16,26],[16,27,16,28],[16,29,16,30],[16,32,16,34],[15,1,15,14],[15,15,15,16],[15,17,15,18],[15,19,15,20],[15,21,15,22],[15,23,15,24],[15,25,15,26],[15,27,15,28],[15,29,15,30],[17,32,17,34],[18,1,18,14],[18,15,18,16],[18,17,18,18],[18,19,18,20],[18,21,18,22],[18,23,18,24],[18,25,18,26],[18,27,18,28],[18,29,18,30],[18,32,18,34],[17,1,17,14],[17,15,17,16],[17,17,17,18],[17,19,17,20],[17,21,17,22],[17,23,17,24],[17,25,17,26],[17,27,17,28],[17,29,17,30],[19,32,19,34],[20,1,20,14],[20,15,20,16],[20,17,20,18],[20,19,20,20],[20,21,20,22],[20,23,20,24],[20,25,20,26],[20,27,20,28],[20,29,20,30],[20,32,20,34],[19,1,19,14],[19,15,19,16],[19,17,19,18],[19,19,19,20],[19,21,19,22],[19,23,19,24],[19,25,19,26],[19,27,19,28],[19,29,19,30],[21,32,21,34],[22,1,22,14],[22,15,22,16],[22,17,22,18],[22,19,22,20],[22,21,22,22],[22,23,22,24],[22,25,22,26],[22,27,22,28],[22,29,22,30],[22,32,22,34],[21,1,21,14],[21,15,21,16],[21,17,21,18],[21,19,21,20],[21,21,21,22],[21,23,21,24],[21,25,21,26],[21,27,21,28],[21,29,21,30],[23,32,23,34],[24,1,24,14],[24,15,24,16],[24,17,24,18],[24,19,24,20],[24,21,24,22],[24,23,24,24],[24,25,24,26],[24,27,24,28],[24,29,24,30],[24,32,24,34],[23,1,23,14],[23,15,23,16],[23,17,23,18],[23,19,23,20],[23,21,23,22],[23,23,23,24],[23,25,23,26],[23,27,23,28],[23,29,23,30],[25,32,25,34],[26,1,26,14],[26,15,26,16],[26,17,26,18],[26,19,26,20],[26,21,26,22],[26,23,26,24],[26,25,26,26],[26,27,26,28],[26,29,26,30],[26,32,26,34],[25,1,25,14],[25,15,25,16],[25,17,25,18],[25,19,25,20],[25,21,25,22],[25,23,25,24],[25,25,25,26],[25,27,25,28],[25,29,25,30],[27,32,27,34],[28,1,28,14],[28,15,28,16],[28,17,28,18],[28,19,28,20],[28,21,28,22],[28,23,28,24],[28,25,28,26],[28,27,28,28],[28,29,28,30],[28,32,28,34],[27,1,27,14],[27,15,27,16],[27,17,27,18],[27,19,27,20],[27,21,27,22],[27,23,27,24],[27,25,27,26],[27,27,27,28],[27,29,27,30],[29,32,29,34],[30,1,30,14],[30,15,30,16],[30,17,30,18],[30,19,30,20],[30,21,30,22],[30,23,30,24],[30,25,30,26],[30,27,30,28],[30,29,30,30],[30,32,30,34],[29,1,29,14],[29,15,29,16],[29,17,29,18],[29,19,29,20],[29,21,29,22],[29,23,29,24],[29,25,29,26],[29,27,29,28],[29,29,29,30],[31,32,31,34],[32,1,32,14],[32,15,32,16],[32,17,32,18],[32,19,32,20],[32,21,32,22],[32,23,32,24],[32,25,32,26],[32,27,32,28],[32,29,32,30],[32,32,32,34],[31,1,31,14],[31,15,31,16],[31,17,31,18],[31,19,31,20],[31,21,31,22],[31,23,31,24],[31,25,31,26],[31,27,31,28],[31,29,31,30],[33,32,33,34],[34,1,34,14],[34,15,34,16],[34,17,34,18],[34,19,34,20],[34,21,34,22],[34,23,34,24],[34,25,34,26],[34,27,34,28],[34,29,34,30],[34,32,34,34],[33,1,33,14],[33,15,33,16],[33,17,33,18],[33,19,33,20],[33,21,33,22],[33,23,33,24],[33,25,33,26],[33,27,33,28],[33,29,33,30],[35,32,35,34],[36,1,36,14],[36,15,36,16],[36,17,36,18],[36,19,36,20],[36,21,36,22],[36,23,36,24],[36,25,36,26],[36,27,36,28],[36,29,36,30],[36,32,36,34],[35,1,35,14],[35,15,35,16],[35,17,35,18],[35,19,35,20],[35,21,35,22],[35,23,35,24],[35,25,35,26],[35,27,35,28],[35,29,35,30],[37,32,37,34],[38,1,38,14],[38,15,38,16],[38,17,38,18],[38,19,38,20],[38,21,38,22],[38,23,38,24],[38,25,38,26],[38,27,38,28],[38,29,38,30],[38,32,38,34],[37,1,37,14],[37,15,37,16],[37,17,37,18],[37,19,37,20],[37,21,37,22],[37,23,37,24],[37,25,37,26],[37,27,37,28],[37,29,37,30],[39,32,39,34],[40,1,40,14],[40,15,40,16],[40,17,40,18],[40,19,40,20],[40,21,40,22],[40,23,40,24],[40,25,40,26],[40,27,40,28],[40,29,40,30],[40,32,40,34],[39,1,39,14],[39,15,39,16],[39,17,39,18],[39,19,39,20],[39,21,39,22],[39,23,39,24],[39,25,39,26],[39,27,39,28],[39,29,39,30],[41,32,41,34],[42,1,42,14],[42,15,42,16],[42,17,42,18],[42,19,42,20],[42,21,42,22],[42,23,42,24],[42,25,42,26],[42,27,42,28],[42,29,42,30],[42,32,42,34],[41,1,41,14],[41,15,41,16],[41,17,41,18],[41,19,41,20],[41,21,41,22],[41,23,41,24],[41,25,41,26],[41,27,41,28],[41,29,41,30],[43,32,43,34],[44,1,44,14],[44,15,44,16],[44,17,44,18],[44,19,44,20],[44,21,44,22],[44,23,44,24],[44,25,44,26],[44,27,44,28],[44,29,44,30],[44,32,44,34],[43,1,43,14],[43,15,43,16],[43,17,43,18],[43,19,43,20],[43,21,43,22],[43,23,43,24],[43,25,43,26],[43,27,43,28],[43,29,43,30],[45,32,45,34],[46,1,46,14],[46,15,46,16],[46,17,46,18],[46,19,46,20],[46,21,46,22],[46,23,46,24],[46,25,46,26],[46,27,46,28],[46,29,46,30],[46,32,46,34],[45,1,45,14],[45,15,45,16],[45,17,45,18],[45,19,45,20],[45,21,45,22],[45,23,45,24],[45,25,45,26],[45,27,45,28],[45,29,45,30],[47,32,47,34],[48,1,48,14],[48,15,48,16],[48,17,48,18],[48,19,48,20],[48,21,48,22],[48,23,48,24],[48,25,48,26],[48,27,48,28],[48,29,48,30],[48,32,48,34],[47,1,47,14],[47,15,47,16],[47,17,47,18],[47,19,47,20],[47,21,47,22],[47,23,47,24],[47,25,47,26],[47,27,47,28],[47,29,47,30],[50,32,50,34],[52,1,52,34],[49,25,49,26],[49,27,49,28],[49,29,49,30],[49,32,49,34],[50,1,50,14],[50,15,50,16],[50,17,50,18],[50,19,50,20],[50,21,50,22],[50,23,50,24],[49,1,49,14],[49,15,49,16],[49,17,49,18],[49,19,49,20],[49,21,49,22],[49,23,49,24],[50,25,50,26],[50,27,50,28],[50,29,50,30]]}
[]
[null,null,null,null,null,null,null,null,null,null,null,"Create Date:",null,null,null,null,{"$f":"'Photo Sheet'!Q2:W2","v":"AUG 22/2017"}]
[null,null,null,null,null,null,null,null,null,null,null,"Vendor Name:",null,null,null,null,{"$f":"'Photo Sheet'!Q3:AI3","v":0}]
[null,null,null,null,null,null,null,null,null,null,null,"Vndr.Item No.:",null,null,null,null,{"$f":"'Photo Sheet'!Q4:W4","v":0},null,null,null,null,null,null,null,null,null,"GC Item No.:",null,null,null,{"$f":"'Photo Sheet'!AE4:AI4","v":0}]
[null,null,null,null,null,null,null,null,null,null,null,"Size Range:",null,null,null,null,{"$f":"'Photo Sheet'!Q5:W5","v":"0-6 MONTHS"},null,null,null,null,null,null,null,null,null,"Season:",null,null,"Fall Winter 2016"]
[null,null,null,null,null,null,null,null,null,null,null,"Description:",null,null,null,null,{"$f":"'Photo Sheet'!Q6:AI6","v":"BABY- SHORT SLEEVE ONESIE PRINT WITH CHEST DIAGONAL OPENING"}]
[]
[null,"GRADE SHEET -- TOP / SWEATER",null,null,null,null,null,null,null,null,null,null,null,null,null,null,null,null,null,"Date:",null,null,null,null,null,null,null,null,null,null,null,null,null,null,null,null,null,null,null,"L"]
[null,"(Measurements on flat / inches)",null,null,null,null,null,null,null,null,null,null,null,null,null,"XS",null,null,null,"S",null,null,null,"M",null,null,null,"L",null,"XL",null,null,"Tolerance\n+ / -\n(on flat)",null,null,null,null,null,null,"LXL"]
[null,null,null,null,null,null,null,null,null,null,null,null,null,null,null,null,null,null,null,null,null,null,null,null,null,null,null,null,null,null,null,null,null,null,null,null,null,null,null,"M"]
[null,"BACK LENGTH FROM (HIGH SHOULDER POINT)",null,null,null,null,null,null,null,null,null,null,null,null,null,{"$f":"X11-1/2","v":-0.5},null,null,null,{"$f":"X11-1/4","v":-0.25},null,null,null,0,null,null,null,{"$f":"X11+0.375","v":0.375},null,{"$f":"X11+0.75","v":0.75},null,null,0.375,null,null,null,null,null,null,"S"]
[null,"CENTER BACK LENGTH ( FROM NECK TO HEM )",null,null,null,null,null,null,null,null,null,null,null,null,null,null,null,null,null,null,null,null,null,0,null,null,null,null,null,null,null,null,0.375,null,null,null,null,null,null,"SM"]
[null,"FRONT LENGTH FROM (HIGH SHOULDER POINT)",null,null,null,null,null,null,null,null,null,null,null,null,null,{"$f":"X13-0.5","v":-0.5},null,null,null,{"$f":"X13-1/4","v":-0.25},null,null,null,0,null,null,null,{"$f":"X13+0.375","v":0.375},null,{"$f":"X13+0.75","v":0.75},null,null,0.375,null,null,null,null,null,null,"XL"]
[null,"FRONT LENGTH (FROM CENTRE FRONT NECK TO HEM)",null,null,null,null,null,null,null,null,null,null,null,null,null,null,null,null,null,null,null,null,null,0,null,null,null,null,null,null,null,null,0.375,null,null,null,null,null,null,"XXL"]
[null,"CHEST (1\" BELOW ARMHOLE)",null,null,null,null,null,null,null,null,null,null,null,null,null,{"$f":"X15-2","v":-2},null,null,null,{"$f":"X15-1","v":-1},null,null,null,0,null,null,null,{"$f":"X15+1.5","v":1.5},null,{"$f":"X15+3","v":3},null,null,0.375,null,null,null,null,null,null,"XXXL"]
[null,"WAIST (16 1/2\" BELOW HIGH SHOULDER POINT)",null,null,null,null,null,null,null,null,null,null,null,null,null,{"$f":"X16-2","v":-2},null,null,null,-1,null,null,null,0,null,null,null,1.5,null,3,null,null,0.375]
[null,"TOP HIP ( 19 1/2\" BELOW HSP )",null,null,null,null,null,null,null,null,null,null,null,null,null,{"$f":"X17-2","v":-2},null,null,null,-1,null,null,null,0,null,null,null,1.5,null,3,null,null,0.375]
[null,"LOW HIP ( 24 1/2\" BELOW HIGH SHOULDER POINT)",null,null,null,null,null,null,null,null,null,null,null,null,null,{"$f":"X18-2","v":-2},null,null,null,-1,null,null,null,0,null,null,null,1.5,null,3,null,null,0.375]
[null,"HEM STRAIGHT",null,null,null,null,null,null,null,null,null,null,null,null,null,{"$f":"X10-2","v":-2},null,null,null,-1,null,null,null,0,null,null,null,1.5,null,3,null,null,0.375]
[null,"HEM CURVE (FOLLOW)",null,null,null,null,null,null,null,null,null,null,null,null,null,{"$f":"X20-2","v":-2},null,null,null,-1,null,null,null,0,null,null,null,1.5,null,3,null,null,0.375]
[null,"ACROSS SHOULDERS",null,null,null,null,null,null,null,null,null,null,null,null,null,{"$f":"X21-1","v":-1},null,null,null,{"$f":"X21-0.5","v":-0.5},null,null,null,0,null,null,null,{"$f":"X21+0.75","v":0.75},null,{"$f":"X21+1.5","v":1.5},null,null,0.375]
[null,"ACROSS FRONT (5\" BELOW HIGH SHOULDER POINT)",null,null,null,null,null,null,null,null,null,null,null,null,null,{"$f":"X22-1","v":-1},null,null,null,{"$f":"X22-0.5","v":-0.5},null,null,null,0,null,null,null,{"$f":"X22+0.75","v":0.75},null,{"$f":"X22+1.5","v":1.5},null,null,0.375]
[null,"ACROSS BACK (5\" BELOW HIGH SHOULDER POINT)",null,null,null,null,null,null,null,null,null,null,null,null,null,{"$f":"X23-1","v":-1},null,null,null,{"$f":"X23-0.5","v":-0.5},null,null,null,0,null,null,null,{"$f":"X23+0.75","v":0.75},null,{"$f":"X23+1.5","v":1.5},null,null,0.375]
[null,"OVERARM (FROM SLEEVE CAP TO HEM)-SHORT SLEEVE",null,null,null,null,null,null,null,null,null,null,null,null,null,{"$f":"X24-0.25","v":-0.25},null,null,null,{"$f":"X24-0.125","v":-0.125},null,null,null,0,null,null,null,{"$f":"X24+0.25","v":0.25},null,{"$f":"X24+0.5","v":0.5},null,null,0.25]
[null,"OVERARM (FROM SLEEVE CAP TO HEM)- 3/4 SLEEVE",null,null,null,null,null,null,null,null,null,null,null,null,null,{"$f":"X25-0.25","v":-0.25},null,null,null,{"$f":"X25-0.125","v":-0.125},null,null,null,0,null,null,null,{"$f":"X25+0.25","v":0.25},null,{"$f":"X25+0.5","v":0.5},null,null,0.25]
[null,"OVERARM (FROM SLEEVE CAP TO HEM)- LONG SLEEVE",null,null,null,null,null,null,null,null,null,null,null,null,null,{"$f":"X26-0.25","v":-0.25},null,null,null,{"$f":"X26-0.125","v":-0.125},null,null,null,0,null,null,null,{"$f":"X26+0.25","v":0.25},null,{"$f":"X26+0.5","v":0.5},null,null,0.375]
[null,"1/2 ARMHOLE STRAIGHT",null,null,null,null,null,null,null,null,null,null,null,null,null,{"$f":"X27-0.75","v":-0.75},null,null,null,{"$f":"X27-0.375","v":-0.375},null,null,null,0,null,null,null,{"$f":"X27+0.625","v":0.625},null,{"$f":"X27+1.25","v":1.25},null,null,0.25]
[null,"BICEP (1\" BELOW ARMHOLE)",null,null,null,null,null,null,null,null,null,null,null,null,null,{"$f":"X28-0.5","v":-0.5},null,null,null,{"$f":"X28-0.25","v":-0.25},null,null,null,0,null,null,null,{"$f":"X28+0.5","v":0.5},null,{"$f":"X28+1","v":1},null,null,0.25]
[null,"ELBOW (8 1/2\" BELOW ARMHOLE)",null,null,null,null,null,null,null,null,null,null,null,null,null,null,null,null,null,null,null,null,null,0,null,null,null,null,null,null,null,null,0.25]
[null,"SHORT SLEEVE OPENING",null,null,null,null,null,null,null,null,null,null,null,null,null,{"$f":"X30-0.5","v":-0.5},null,null,null,{"$f":"X30-0.25","v":-0.25},null,null,null,0,null,null,null,{"$f":"X30+0.5","v":0.5},null,{"$f":"X30+1","v":1},null,null,0.25]
[null,"3/4 SLEEVE OPENING",null,null,null,null,null,null,null,null,null,null,null,null,null,null,null,null,null,null,null,null,null,0,null,null,null,null,null,null,null,null,0.25]
[null,"LONG SLEEVE OPENING",null,null,null,null,null,null,null,null,null,null,null,null,null,{"$f":"X32-0.25","v":-0.25},null,null,null,{"$f":"X32-0.125","v":-0.125},null,null,null,0,null,null,null,{"$f":"X32+0.25","v":0.25},null,{"$f":"X32+0.5","v":0.5},null,null,0.25]
[null,"SLEEVE CAP HEIGHT ( FROM TOP OF SLEEVE TO UNDERARM )",null,null,null,null,null,null,null,null,null,null,null,null,null,{"$f":"X33-0.25","v":-0.25},null,null,null,{"$f":"X33-0.125","v":-0.125},null,null,null,0,null,null,null,{"$f":"X33+0.25","v":0.25},null,{"$f":"X33+0.5","v":0.5},null,null,"1/4"]
[null,"SHOULDER SLOPE ( HSP TO SHOULDER ARMHOLE SEAM )",null,null,null,null,null,null,null,null,null,null,null,null,null,{"$f":"X34-0","v":0},null,null,null,{"$f":"X34-0","v":0},null,null,null,0,null,null,null,{"$f":"X34+0","v":0},null,{"$f":"X34+0","v":0},null,null,0]
[null,"NECK WIDTH (HSP TO HSP) ON BACK",null,null,null,null,null,null,null,null,null,null,null,null,null,{"$f":"X35-0.5","v":-0.5},null,null,null,{"$f":"X35-0.25","v":-0.25},null,null,null,0,null,null,null,{"$f":"X35+0.375","v":0.375},null,{"$f":"X35+0.75","v":0.75},null,null,0.25]
[null,"FRONT NECK DROP ( FROM HSP TO C.F.NECK EDGE OR SEAM )",null,null,null,null,null,null,null,null,null,null,null,null,null,{"$f":"X36-0.25","v":-0.25},null,null,null,{"$f":"X36-0.125","v":-0.125},null,null,null,0,null,null,null,{"$f":"X36+0.25","v":0.25},null,{"$f":"X36+0.5","v":0.5},null,null,0.25]
[null,"BACK NECK DROP ( FROM HSP TO C.B. NECK EDGE OR SEAM )",null,null,null,null,null,null,null,null,null,null,null,null,null,{"$f":"X37-0","v":0},null,null,null,{"$f":"X37-0","v":0},null,null,null,0,null,null,null,{"$f":"X37+0","v":0},null,{"$f":"X37+0","v":0},null,null,0.25]
[null,"1/2 NECK CIRCUMFERENCE",null,null,null,null,null,null,null,null,null,null,null,null,null,null,null,null,null,null,null,null,null,0,null,null,null,null,null,null,null,null,0.25]
[null,"COLLAR DEPTH ( AT C.B. NECK )",null,null,null,null,null,null,null,null,null,null,null,null,null,{"$f":"X39-0","v":0},null,null,null,{"$f":"X39-0","v":0},null,null,null,0,null,null,null,{"$f":"X39+0","v":0},null,{"$f":"X39+0","v":0},null,null,0]
[null,"STAND DEPTH",null,null,null,null,null,null,null,null,null,null,null,null,null,{"$f":"X40-0","v":0},null,null,null,{"$f":"X40-0","v":0},null,null,null,0,null,null,null,{"$f":"X40+0","v":0},null,{"$f":"X40+0","v":0},null,null,0]
[null,"COLLAR LENGTH",null,null,null,null,null,null,null,null,null,null,null,null,null,null,null,null,null,null,null,null,null,0,null,null,null,null,null,null,null,null,0.25]
[null,"NECK TRIM DEPTH",null,null,null,null,null,null,null,null,null,null,null,null,null,{"$f":"X42-0","v":0},null,null,null,{"$f":"X42-0","v":0},null,null,null,0,null,null,null,{"$f":"X42+0","v":0},null,{"$f":"X42+0","v":0},null,null,0]
[null,"CUFF DEPTH",null,null,null,null,null,null,null,null,null,null,null,null,null,{"$f":"X43-0","v":0},null,null,null,{"$f":"X43-0","v":0},null,null,null,0,null,null,null,{"$f":"X43+0","v":0},null,{"$f":"X43+0","v":0},null,null,0]
[null,"SLEEVE HEM DEPTH",null,null,null,null,null,null,null,null,null,null,null,null,null,{"$f":"X44-0","v":0},null,null,null,{"$f":"X44-0","v":0},null,null,null,0,null,null,null,{"$f":"X44+0","v":0},null,{"$f":"X44+0","v":0},null,null,0]
[null,"BOTTOM HEM DEPTH",null,null,null,null,null,null,null,null,null,null,null,null,null,{"$f":"X45-0","v":0},null,null,null,{"$f":"X45-0","v":0},null,null,null,0,null,null,null,{"$f":"X45+0","v":0},null,{"$f":"X45+0","v":0},null,null,0]
[null,"BACK HEM WIDTH ( STRAIGHT FROM SEAM TO SEAM )",null,null,null,null,null,null,null,null,null,null,null,null,null,{"$f":"X46-2","v":-2},null,null,null,{"$f":"X46-1","v":-1},null,null,null,0,null,null,null,{"$f":"X46+1.5","v":1.5},null,{"$f":"X46+3","v":3},null,null,0.375]
[null,null,null,null,null,null,null,null,null,null,null,null,null,null,null,null,null,null,null,null,null,null,null,0]
[null,"HOOD DEPTH AT CENTRE FRONT ( TOP HOOD TO NECK)",null,null,null,null,null,null,null,null,null,null,null,null,null,{"$f":"X48-0.75","v":-0.75},null,null,null,{"$f":"X48-0.375","v":-0.375},null,null,null,0,null,null,null,{"$f":"X48+0.375","v":0.375},null,{"$f":"X48+0.75","v":0.75},null,null,0.25]
[null,"HOOD DEPTH AT SHOULDER ( TOP HOOD TO SHOULDER SEAM)",null,null,null,null,null,null,null,null,null,null,null,null,null,{"$f":"X49-0.75","v":-0.75},null,null,null,{"$f":"X49-0.375","v":-0.375},null,null,null,0,null,null,null,{"$f":"X49+0.375","v":0.375},null,{"$f":"X49+0.75","v":0.75},null,null,0.25]
[null,"HOOD WIDTH (4\" BELOW TOP OF HOOD)",null,null,null,null,null,null,null,null,null,null,null,null,null,{"$f":"X50-0.5","v":-0.5},null,null,null,{"$f":"X50-0.25","v":-0.25},null,null,null,0,null,null,null,{"$f":"X50+0.25","v":0.25},null,{"$f":"X50+0.5","v":0.5},null,null,0.25]
[null,"HOOD OVERHEAD ( FOLLOWED ALONG C.B. SEAM )",null,null,null,null,null,null,null,null,null,null,null,null,null,{"$f":"X51-1.25","v":-1.25},null,null,null,{"$f":"X51-0.625","v":-0.625},null,null,null,0,null,null,null,{"$f":"X51+0.625","v":0.625},null,{"$f":"X51+1.25","v":1.25},null,null,0.375]
[null,"Sample Approved?"]
[null,"If sample is NOT approved, then submit 2nd Pre-Production Samples. If sample is APPROVED, then submit Production Samples."]

{"sheet":"Grade SM - LXL","index":15,"n_rows":53,"n_cols":40,"rows_kept":53,"cut":false,"hidden":true,"merged":[[50,32,50,34],[52,1,52,34],[49,25,49,26],[49,27,49,28],[49,29,49,30],[49,32,49,34],[50,1,50,14],[50,15,50,16],[50,17,50,18],[50,19,50,20],[50,21,50,22],[50,23,50,24],[49,1,49,14],[49,15,49,16],[49,17,49,18],[49,19,49,20],[49,21,49,22],[49,23,49,24],[50,25,50,26],[50,27,50,28],[50,29,50,30],[47,32,47,34],[48,1,48,14],[48,15,48,16],[48,17,48,18],[48,19,48,20],[48,21,48,22],[48,23,48,24],[48,25,48,26],[48,27,48,28],[48,29,48,30],[48,32,48,34],[47,1,47,14],[47,15,47,16],[47,17,47,18],[47,19,47,20],[47,21,47,22],[47,23,47,24],[47,25,47,26],[47,27,47,28],[47,29,47,30],[45,32,45,34],[46,1,46,14],[46,15,46,16],[46,17,46,18],[46,19,46,20],[46,21,46,22],[46,23,46,24],[46,25,46,26],[46,27,46,28],[46,29,46,30],[46,32,46,34],[45,1,45,14],[45,15,45,16],[45,17,45,18],[45,19,45,20],[45,21,45,22],[45,23,45,24],[45,25,45,26],[45,27,45,28],[45,29,45,30],[43,32,43,34],[44,1,44,14],[44,15,44,16],[44,17,44,18],[44,19,44,20],[44,21,44,22],[44,23,44,24],[44,25,44,26],[44,27,44,28],[44,29,44,30],[44,32,44,34],[43,1,43,14],[43,15,43,16],[43,17,43,18],[43,19,43,20],[43,21,43,22],[43,23,43,24],[43,25,43,26],[43,27,43,28],[43,29,43,30],[41,32,41,34],[42,1,42,14],[42,15,42,16],[42,17,42,18],[42,19,42,20],[42,21,42,22],[42,23,42,24],[42,25,42,26],[42,27,42,28],[42,29,42,30],[42,32,42,34],[41,1,41,14],[41,15,41,16],[41,17,41,18],[41,19,41,20],[41,21,41,22],[41,23,41,24],[41,25,41,26],[41,27,41,28],[41,29,41,30],[39,32,39,34],[40,1,40,14],[40,15,40,16],[40,17,40,18],[40,19,40,20],[40,21,40,22],[40,23,40,24],[40,25,40,26],[40,27,40,28],[40,29,40,30],[40,32,40,34],[39,1,39,14],[39,15,39,16],[39,17,39,18],[39,19,39,20],[39,21,39,22],[39,23,39,24],[39,25,39,26],[39,27,39,28],[39,29,39,30],[37,32,37,34],[38,1,38,14],[38,15,38,16],[38,17,38,18],[38,19,38,20],[38,21,38,22],[38,23,38,24],[38,25,38,26],[38,27,38,28],[38,29,38,30],[38,32,38,34],[37,1,37,14],[37,15,37,16],[37,17,37,18],[37,19,37,20],[37,21,37,22],[37,23,37,24],[37,25,37,26],[37,27,37,28],[37,29,37,30],[35,32,35,34],[36,1,36,14],[36,15,36,16],[36,17,36,18],[36,19,36,20],[36,21,36,22],[36,23,36,24],[36,25,36,26],[36,27,36,28],[36,29,36,30],[36,32,36,34],[35,1,35,14],[35,15,35,16],[35,17,35,18],[35,19,35,20],[35,21,35,22],[35,23,35,24],[35,25,35,26],[35,27,35,28],[35,29,35,30],[33,32,33,34],[34,1,34,14],[34,15,34,16],[34,17,34,18],[34,19,34,20],[34,21,34,22],[34,23,34,24],[34,25,34,26],[34,27,34,28],[34,29,34,30],[34,32,34,34],[33,1,33,14],[33,15,33,16],[33,17,33,18],[33,19,33,20],[33,21,33,22],[33,23,33,24],[33,25,33,26],[33,27,33,28],[33,29,33,30],[31,32,31,34],[32,1,32,14],[32,15,32,16],[32,17,32,18],[32,19,32,20],[32,21,32,22],[32,23,32,24],[32,25,32,26],[32,27,32,28],[32,29,32,30],[32,32,32,34],[31,1,31,14],[31,15,31,16],[31,17,31,18],[31,19,31,20],[31,21,31,22],[31,23,31,24],[31,25,31,26],[31,27,31,28],[31,29,31,30],[29,32,29,34],[30,1,30,14],[30,15,30,16],[30,17,30,18],[30,19,30,20],[30,21,30,22],[30,23,30,24],[30,25,30,26],[30,27,30,28],[30,29,30,30],[30,32,30,34],[29,1,29,14],[29,15,29,16],[29,17,29,18],[29,19,29,20],[29,21,29,22],[29,23,29,24],[29,25,29,26],[29,27,29,28],[29,29,29,30],[27,32,27,34],[28,1,28,14],[28,15,28,16],[28,17,28,18],[28,19,28,20],[28,21,28,22],[28,23,28,24],[28,25,28,26],[28,27,28,28],[28,29,28,30],[28,32,28,34],[27,1,27,14],[27,15,27,16],[27,17,27,18],[27,19,27,20],[27,21,27,22],[27,23,27,24],[27,25,27,26],[27,27,27,28],[27,29,27,30],[25,32,25,34],[26,1,26,14],[26,15,26,16],[26,17,26,18],[26,19,26,20],[26,21,26,22],[26,23,26,24],[26,25,26,26],[26,27,26,28],[26,29,26,30],[26,32,26,34],[25,1,25,14],[25,15,25,16],[25,17,25,18],[25,19,25,20],[25,21,25,22],[25,23,25,24],[25,25,25,26],[25,27,25,28],[25,29,25,30],[23,32,23,34],[24,1,24,14],[24,15,24,16],[24,17,24,18],[24,19,24,20],[24,21,24,22],[24,23,24,24],[24,25,24,26],[24,27,24,28],[24,29,24,30],[24,32,24,34],[23,1,23,14],[23,15,23,16],[23,17,23,18],[23,19,23,20],[23,21,23,22],[23,23,23,24],[23,25,23,26],[23,27,23,28],[23,29,23,30],[21,32,21,34],[22,1,22,14],[22,15,22,16],[22,17,22,18],[22,19,22,20],[22,21,22,22],[22,23,22,24],[22,25,22,26],[22,27,22,28],[22,29,22,30],[22,32,22,34],[21,1,21,14],[21,15,21,16],[21,17,21,18],[21,19,21,20],[21,21,21,22],[21,23,21,24],[21,25,21,26],[21,27,21,28],[21,29,21,30],[19,32,19,34],[20,1,20,14],[20,15,20,16],[20,17,20,18],[20,19,20,20],[20,21,20,22],[20,23,20,24],[20,25,20,26],[20,27,20,28],[20,29,20,30],[20,32,20,34],[19,1,19,14],[19,15,19,16],[19,17,19,18],[19,19,19,20],[19,21,19,22],[19,23,19,24],[19,25,19,26],[19,27,19,28],[19,29,19,30],[17,32,17,34],[18,1,18,14],[18,15,18,16],[18,17,18,18],[18,19,18,20],[18,21,18,22],[18,23,18,24],[18,25,18,26],[18,27,18,28],[18,29,18,30],[18,32,18,34],[17,1,17,14],[17,15,17,16],[17,17,17,18],[17,19,17,20],[17,21,17,22],[17,23,17,24],[17,25,17,26],[17,27,17,28],[17,29,17,30],[15,32,15,34],[16,1,16,14],[16,15,16,16],[16,17,16,18],[16,19,16,20],[16,21,16,22],[16,23,16,24],[16,25,16,26],[16,27,16,28],[16,29,16,30],[16,32,16,34],[15,1,15,14],[15,15,15,16],[15,17,15,18],[15,19,15,20],[15,21,15,22],[15,23,15,24],[15,25,15,26],[15,27,15,28],[15,29,15,30],[13,32,13,34],[14,1,14,14],[14,15,14,16],[14,17,14,18],[14,19,14,20],[14,21,14,22],[14,23,14,24],[14,25,14,26],[14,27,14,28],[14,29,14,30],[14,32,14,34],[13,1,13,14],[13,15,13,16],[13,17,13,18],[13,19,13,20],[13,21,13,22],[13,23,13,24],[13,25,13,26],[13,27,13,28],[13,29,13,30],[11,32,11,34],[12,1,12,14],[12,15,12,16],[12,17,12,18],[12,19,12,20],[12,21,12,22],[12,23,12,24],[12,25,12,26],[12,27,12,28],[12,29,12,30],[12,32,12,34],[11,1,11,14],[11,15,11,16],[11,17,11,18],[11,19,11,20],[11,21,11,22],[11,23,11,24],[11,25,11,26],[11,27,11,28],[11,29,11,30],[8,32,9,34],[10,1,10,14],[10,15,10,16],[10,17,10,18],[10,19,10,20],[10,21,10,22],[10,23,10,24],[10,25,10,26],[10,27,10,28],[10,29,10,30],[10,32,10,34],[8,1,9,14],[8,15,9,16],[8,17,9,18],[8,19,9,20],[8,21,9,22],[8,23,9,24],[8,25,9,26],[8,27,9,28],[8,29,9,30],[1,16,1,22],[2,16,2,34],[3,16,3,22],[3,30,3,34],[4,16,4,22],[5,16,5,34],[7,1,7,18],[7,19,7,22],[7,23,7,31],[4,29,4,34]]}
[]
[null,null,null,null,null,null,null,null,null,null,null,"Create Date:",null,null,null,null,{"$f":"'Photo Sheet'!Q2:W2","v":"AUG 22/2017"}]
[null,null,null,null,null,null,null,null,null,null,null,"Vendor Name:",null,null,null,null,{"$f":"'Photo Sheet'!Q3:AI3","v":0}]
[null,null,null,null,null,null,null,null,null,null,null,"Vndr.Item No.:",null,null,null,null,{"$f":"'Photo Sheet'!Q4:W4","v":0},null,null,null,null,null,null,null,null,null,"GC Item No.:",null,null,null,{"$f":"'Photo Sheet'!AE4:AI4","v":0}]
[null,null,null,null,null,null,null,null,null,null,null,"Size Range:",null,null,null,null,{"$f":"'Photo Sheet'!Q5:W5","v":"0-6 MONTHS"},null,null,null,null,null,null,null,null,null,"Season:",null,null,"Fall Winter 2016"]
[null,null,null,null,null,null,null,null,null,null,null,"Description:",null,null,null,null,{"$f":"'Photo Sheet'!Q6:AI6","v":"BABY- SHORT SLEEVE ONESIE PRINT WITH CHEST DIAGONAL OPENING"}]
[]
[null,"GRADE SHEET -- TOP / SWEATER",null,null,null,null,null,null,null,null,null,null,null,null,null,null,null,null,null,"Date:",null,null,null,null,null,null,null,null,null,null,null,null,null,null,null,null,null,null,null,"L"]
[null,"(Measurements on flat / inches)",null,null,null,null,null,null,null,null,null,null,null,null,null,null,null,null,null,"SM",null,null,null,"LXL",null,null,null,null,null,null,null,null,"Tolerance\n+ / -\n(on flat)",null,null,null,null,null,null,"LXL"]
[null,null,null,null,null,null,null,null,null,null,null,null,null,null,null,null,null,null,null,null,null,null,null,null,null,null,null,null,null,null,null,null,null,null,null,null,null,null,null,"M"]
[null,"BACK LENGTH FROM (HIGH SHOULDER POINT)",null,null,null,null,null,null,null,null,null,null,null,null,null,null,null,null,null,0,null,null,null,{"$f":"T11+0.625","v":0.625},null,null,null,null,null,null,null,null,0.375,null,null,null,null,null,null,"S"]
[null,"CENTER BACK LENGTH ( FROM NECK TO HEM )",null,null,null,null,null,null,null,null,null,null,null,null,null,null,null,null,null,0,null,null,null,null,null,null,null,null,null,null,null,null,0.375,null,null,null,null,null,null,"SM"]
[null,"FRONT LENGTH FROM (HIGH SHOULDER POINT)",null,null,null,null,null,null,null,null,null,null,null,null,null,null,null,null,null,0,null,null,null,{"$f":"T13+0.625","v":0.625},null,null,null,null,null,null,null,null,0.375,null,null,null,null,null,null,"XL"]
[null,"FRONT LENGTH (FROM CENTRE FRONT NECK TO HEM)",null,null,null,null,null,null,null,null,null,null,null,null,null,null,null,null,null,0,null,null,null,null,null,null,null,null,null,null,null,null,0.375,null,null,null,null,null,null,"XXL"]
[null,"CHEST (1\" BELOW ARMHOLE)",null,null,null,null,null,null,null,null,null,null,null,null,null,null,null,null,null,0,null,null,null,{"$f":"T15+2.5","v":2.5},null,null,null,null,null,null,null,null,0.375,null,null,null,null,null,null,"XXXL"]
[null,"WAIST (16 1/2\" BELOW HIGH SHOULDER POINT)",null,null,null,null,null,null,null,null,null,null,null,null,null,null,null,null,null,0,null,null,null,{"$f":"T16+2.5","v":2.5},null,null,null,null,null,null,null,null,0.375]
[null,"TOP HIP ( 19 1/2\" BELOW HSP )",null,null,null,null,null,null,null,null,null,null,null,null,null,null,null,null,null,0,null,null,null,{"$f":"T17+2.5","v":2.5},null,null,null,null,null,null,null,null,0.375]
[null,"LOW HIP ( 24 1/2\" BELOW HIGH SHOULDER POINT)",null,null,null,null,null,null,null,null,null,null,null,null,null,null,null,null,null,0,null,null,null,{"$f":"T18+2.5","v":2.5},null,null,null,null,null,null,null,null,0.375]
[null,"HEM STRAIGHT",null,null,null,null,null,null,null,null,null,null,null,null,null,null,null,null,null,0,null,null,null,{"$f":"T19+2.5","v":2.5},null,null,null,null,null,null,null,null,0.375]
[null,"HEM CURVE (FOLLOW)",null,null,null,null,null,null,null,null,null,null,null,null,null,null,null,null,null,0,null,null,null,null,null,null,null,null,null,null,null,null,0.375]
[null,"ACROSS SHOULDERS",null,null,null,null,null,null,null,null,null,null,null,null,null,null,null,null,null,0,null,null,null,{"$f":"T21+1.25","v":1.25},null,null,null,null,null,null,null,null,0.375]
[null,"ACROSS FRONT (5\" BELOW HIGH SHOULDER POINT)",null,null,null,null,null,null,null,null,null,null,null,null,null,null,null,null,null,0,null,null,null,{"$f":"T22+1.25","v":1.25},null,null,null,null,null,null,null,null,0.375]
[null,"ACROSS BACK (5\" BELOW HIGH SHOULDER POINT)",null,null,null,null,null,null,null,null,null,null,null,null,null,null,null,null,null,0,null,null,null,{"$f":"T23+1.25","v":1.25},null,null,null,null,null,null,null,null,0.375]
[null,"OVERARM (FROM SLEEVE CAP TO HEM)-SHORT SLEEVE",null,null,null,null,null,null,null,null,null,null,null,null,null,null,null,null,null,0,null,null,null,{"$f":"T24+0.375","v":0.375},null,null,null,null,null,null,null,null,0.25]
[null,"OVERARM (FROM SLEEVE CAP TO HEM)- 3/4 SLEEVE",null,null,null,null,null,null,null,null,null,null,null,null,null,null,null,null,null,0,null,null,null,{"$f":"T25+0.375","v":0.375},null,null,null,null,null,null,null,null,0.25]
[null,"OVERARM (FROM SLEEVE CAP TO HEM)- LONG SLEEVE",null,null,null,null,null,null,null,null,null,null,null,null,null,null,null,null,null,0,null,null,null,{"$f":"T26+0.375","v":0.375},null,null,null,null,null,null,null,null,0.375]
[null,"1/2 ARMHOLE STRAIGHT",null,null,null,null,null,null,null,null,null,null,null,null,null,null,null,null,null,0,null,null,null,{"$f":"T27+1","v":1},null,null,null,null,null,null,null,null,0.25]
[null,"BICEP (1\" BELOW ARMHOLE)",null,null,null,null,null,null,null,null,null,null,null,null,null,null,null,null,null,0,null,null,null,{"$f":"T28+0.75","v":0.75},null,null,null,null,null,null,null,null,0.25]
[null,"ELBOW (8 1/2\" BELOW ARMHOLE)",null,null,null,null,null,null,null,null,null,null,null,null,null,null,null,null,null,0,null,null,null,{"$f":"T29+0.625","v":0.625},null,null,null,null,null,null,null,null,0.25]
[null,"SHORT SLEEVE OPENING",null,null,null,null,null,null,null,null,null,null,null,null,null,null,null,null,null,0,null,null,null,{"$f":"T30+0.75","v":0.75},null,null,null,null,null,null,null,null,0.25]
[null,"3/4 SLEEVE OPENING",null,null,null,null,null,null,null,null,null,null,null,null,null,null,null,null,null,0,null,null,null,{"$f":"T31+0.5","v":0.5},null,null,null,null,null,null,null,null,0.25]
[null,"LONG SLEEVE OPENING",null,null,null,null,null,null,null,null,null,null,null,null,null,null,null,null,null,0,null,null,null,{"$f":"T32+0.375","v":0.375},null,null,null,null,null,null,null,null,0.25]
[null,"SLEEVE CAP HEIGHT ( FROM TOP OF SLEEVE TO UNDERARM )",null,null,null,null,null,null,null,null,null,null,null,null,null,null,null,null,null,0,null,null,null,{"$f":"T33+0.375","v":0.375},null,null,null,null,null,null,null,null,"1/4"]
[null,"SHOULDER SLOPE ( HSP TO SHOULDER ARMHOLE SEAM )",null,null,null,null,null,null,null,null,null,null,null,null,null,null,null,null,null,0,null,null,null,{"$f":"T34+0","v":0},null,null,null,null,null,null,null,null,0]
[null,"NECK WIDTH (HSP TO HSP) ON BACK",null,null,null,null,null,null,null,null,null,null,null,null,null,null,null,null,null,0,null,null,null,{"$f":"T35+0.625","v":0.625},null,null,null,null,null,null,null,null,0.25]
[null,"FRONT NECK DROP ( FROM HSP TO C.F.NECK EDGE OR SEAM )",null,null,null,null,null,null,null,null,null,null,null,null,null,null,null,null,null,0,null,null,null,{"$f":"T36+0.375","v":0.375},null,null,null,null,null,null,null,null,0.25]
[null,"BACK NECK DROP ( FROM HSP TO C.B. NECK EDGE OR SEAM )",null,null,null,null,null,null,null,null,null,null,null,null,null,null,null,null,null,0,null,null,null,{"$f":"T37+0","v":0},null,null,null,null,null,null,null,null,0.25]
[null,"1/2 NECK CIRCUMFERENCE",null,null,null,null,null,null,null,null,null,null,null,null,null,null,null,null,null,0,null,null,null,null,null,null,null,null,null,null,null,null,0.25]
[null,"COLLAR DEPTH ( AT C.B. NECK )",null,null,null,null,null,null,null,null,null,null,null,null,null,null,null,null,null,0,null,null,null,{"$f":"T39+0","v":0},null,null,null,null,null,null,null,null,0]
[null,"STAND DEPTH",null,null,null,null,null,null,null,null,null,null,null,null,null,null,null,null,null,0,null,null,null,{"$f":"T40+0","v":0},null,null,null,null,null,null,null,null,0]
[null,"COLLAR LENGTH",null,null,null,null,null,null,null,null,null,null,null,null,null,null,null,null,null,0,null,null,null,null,null,null,null,null,null,null,null,null,0.25]
[null,"NECK TRIM DEPTH",null,null,null,null,null,null,null,null,null,null,null,null,null,null,null,null,null,0,null,null,null,{"$f":"T42+0","v":0},null,null,null,null,null,null,null,null,0]
[null,"CUFF DEPTH",null,null,null,null,null,null,null,null,null,null,null,null,null,null,null,null,null,0,null,null,null,{"$f":"T43+0","v":0},null,null,null,null,null,null,null,null,0]
[null,"SLEEVE HEM DEPTH",null,null,null,null,null,null,null,null,null,null,null,null,null,null,null,null,null,0,null,null,null,{"$f":"T44+0","v":0},null,null,null,null,null,null,null,null,0]
[null,"BOTTOM HEM DEPTH",null,null,null,null,null,null,null,null,null,null,null,null,null,null,null,null,null,0,null,null,null,{"$f":"T45+0","v":0},null,null,null,null,null,null,null,null,0]
[null,"BACK HEM WIDTH ( STRAIGHT FROM SEAM TO SEAM )",null,null,null,null,null,null,null,null,null,null,null,null,null,null,null,null,null,0,null,null,null,{"$f":"T46+2.5","v":2.5},null,null,null,null,null,null,null,null,0.375]
[]
[null,"HOOD DEPTH AT CENTRE FRONT ( TOP HOOD TO NECK)",null,null,null,null,null,null,null,null,null,null,null,null,null,null,null,null,null,0,null,null,null,{"$f":"T48+0.375","v":0.375},null,null,null,null,null,null,null,null,0.25]
[null,"HOOD DEPTH AT SHOULDER ( TOP HOOD TO SHOULDER SEAM)",null,null,null,null,null,null,null,null,null,null,null,null,null,null,null,null,null,0,null,null,null,{"$f":"T49+0.375","v":0.375},null,null,null,null,null,null,null,null,0.25]
[null,"HOOD WIDTH (4\" BELOW TOP OF HOOD)",null,null,null,null,null,null,null,null,null,null,null,null,null,null,null,null,null,0,null,null,null,{"$f":"T50+0.25","v":0.25},null,null,null,null,null,null,null,null,0.25]
[null,"HOOD OVERHEAD ( FOLLOWED ALONG C.B. SEAM )",null,null,null,null,null,null,null,null,null,null,null,null,null,null,null,null,null,0,null,null,null,{"$f":"T51+0.625","v":0.625},null,null,null,null,null,null,null,null,0.375]
[null,"Sample Approved?"]
[null,"If sample is NOT approved, then submit 2nd Pre-Production Samples. If sample is APPROVED, then submit Production Samples."]

{"sheet":"Grade XS - SM - LXL ","index":16,"n_rows":53,"n_cols":40,"rows_kept":53,"cut":false,"hidden":true,"merged":[[1,16,1,22],[2,16,2,34],[3,16,3,22],[3,30,3,34],[4,16,4,22],[4,29,4,34],[5,16,5,34],[7,1,7,18],[7,19,7,22],[7,23,7,31],[8,32,9,34],[10,1,10,14],[10,15,10,16],[10,17,10,18],[10,19,10,20],[10,21,10,22],[10,23,10,24],[10,25,10,26],[10,27,10,28],[10,29,10,30],[10,32,10,34],[8,1,9,14],[8,15,9,16],[8,17,9,18],[8,19,9,20],[8,21,9,22],[8,23,9,24],[8,25,9,26],[8,27,9,28],[8,29,9,30],[11,32,11,34],[12,1,12,14],[12,15,12,16],[12,17,12,18],[12,19,12,20],[12,21,12,22],[12,23,12,24],[12,25,12,26],[12,27,12,28],[12,29,12,30],[12,32,12,34],[11,1,11,14],[11,15,11,16],[11,17,11,18],[11,19,11,20],[11,21,11,22],[11,23,11,24],[11,25,11,26],[11,27,11,28],[11,29,11,30],[13,32,13,34],[14,1,14,14],[14,15,14,16],[14,17,14,18],[14,19,14,20],[14,21,14,22],[14,23,14,24],[14,25,14,26],[14,27,14,28],[14,29,14,30],[14,32,14,34],[13,1,13,14],[13,15,13,16],[13,17,13,18],[13,19,13,20],[13,21,13,22],[13,23,13,24],[13,25,13,26],[13,27,13,28],[13,29,13,30],[15,32,15,34],[16,1,16,14],[16,15,16,16],[16,17,16,18],[16,19,16,20],[16,21,16,22],[16,23,16,24],[16,25,16,26],[16,27,16,28],[16,29,16,30],[16,32,16,34],[15,1,15,14],[15,15,15,16],[15,17,15,18],[15,19,15,20],[15,21,15,22],[15,23,15,24],[15,25,15,26],[15,27,15,28],[15,29,15,30],[17,32,17,34],[18,1,18,14],[18,15,18,16],[18,17,18,18],[18,19,18,20],[18,21,18,22],[18,23,18,24],[18,25,18,26],[18,27,18,28],[18,29,18,30],[18,32,18,34],[17,1,17,14],[17,15,17,16],[17,17,17,18],[17,19,17,20],[17,21,17,22],[17,23,17,24],[17,25,17,26],[17,27,17,28],[17,29,17,30],[19,32,19,34],[20,1,20,14],[20,15,20,16],[20,17,20,18],[20,19,20,20],[20,21,20,22],[20,23,20,24],[20,25,20,26],[20,27,20,28],[20,29,20,30],[20,32,20,34],[19,1,19,14],[19,15,19,16],[19,17,19,18],[19,19,19,20],[19,21,19,22],[19,23,19,24],[19,25,19,26],[19,27,19,28],[19,29,19,30],[21,32,21,34],[22,1,22,14],[22,15,22,16],[22,17,22,18],[22,19,22,20],[22,21,22,22],[22,23,22,24],[22,25,22,26],[22,27,22,28],[22,29,22,30],[22,32,22,34],[21,1,21,14],[21,15,21,16],[21,17,21,18],[21,19,21,20],[21,21,21,22],[21,23,21,24],[21,25,21,26],[21,27,21,28],[21,29,21,30],[23,32,23,34],[24,1,24,14],[24,15,24,16],[24,17,24,18],[24,19,24,20],[24,21,24,22],[24,23,24,24],[24,25,24,26],[24,27,24,28],[24,29,24,30],[24,32,24,34],[23,1,23,14],[23,15,23,16],[23,17,23,18],[23,19,23,20],[23,21,23,22],[23,23,23,24],[23,25,23,26],[23,27,23,28],[23,29,23,30],[25,32,25,34],[26,1,26,14],[26,15,26,16],[26,17,26,18],[26,19,26,20],[26,21,26,22],[26,23,26,24],[26,25,26,26],[26,27,26,28],[26,29,26,30],[26,32,26,34],[25,1,25,14],[25,15,25,16],[25,17,25,18],[25,19,25,20],[25,21,25,22],[25,23,25,24],[25,25,25,26],[25,27,25,28],[25,29,25,30],[27,32,27,34],[28,1,28,14],[28,15,28,16],[28,17,28,18],[28,19,28,20],[28,21,28,22],[28,23,28,24],[28,25,28,26],[28,27,28,28],[28,29,28,30],[28,32,28,34],[27,1,27,14],[27,15,27,16],[27,17,27,18],[27,19,27,20],[27,21,27,22],[27,23,27,24],[27,25,27,26],[27,27,27,28],[27,29,27,30],[29,32,29,34],[30,1,30,14],[30,15,30,16],[30,17,30,18],[30,19,30,20],[30,21,30,22],[30,23,30,24],[30,25,30,26],[30,27,30,28],[30,29,30,30],[30,32,30,34],[29,1,29,14],[29,15,29,16],[29,17,29,18],[29,19,29,20],[29,21,29,22],[29,23,29,24],[29,25,29,26],[29,27,29,28],[29,29,29,30],[31,32,31,34],[32,1,32,14],[32,15,32,16],[32,17,32,18],[32,19,32,20],[32,21,32,22],[32,23,32,24],[32,25,32,26],[32,27,32,28],[32,29,32,30],[32,32,32,34],[31,1,31,14],[31,15,31,16],[31,17,31,18],[31,19,31,20],[31,21,31,22],[31,23,31,24],[31,25,31,26],[31,27,31,28],[31,29,31,30],[33,32,33,34],[34,1,34,14],[34,15,34,16],[34,17,34,18],[34,19,34,20],[34,21,34,22],[34,23,34,24],[34,25,34,26],[34,27,34,28],[34,29,34,30],[34,32,34,34],[33,1,33,14],[33,15,33,16],[33,17,33,18],[33,19,33,20],[33,21,33,22],[33,23,33,24],[33,25,33,26],[33,27,33,28],[33,29,33,30],[35,32,35,34],[36,1,36,14],[36,15,36,16],[36,17,36,18],[36,19,36,20],[36,21,36,22],[36,23,36,24],[36,25,36,26],[36,27,36,28],[36,29,36,30],[36,32,36,34],[35,1,35,14],[35,15,35,16],[35,17,35,18],[35,19,35,20],[35,21,35,22],[35,23,35,24],[35,25,35,26],[35,27,35,28],[35,29,35,30],[37,32,37,34],[38,1,38,14],[38,15,38,16],[38,17,38,18],[38,19,38,20],[38,21,38,22],[38,23,38,24],[38,25,38,26],[38,27,38,28],[38,29,38,30],[38,32,38,34],[37,1,37,14],[37,15,37,16],[37,17,37,18],[37,19,37,20],[37,21,37,22],[37,23,37,24],[37,25,37,26],[37,27,37,28],[37,29,37,30],[39,32,39,34],[40,1,40,14],[40,15,40,16],[40,17,40,18],[40,19,40,20],[40,21,40,22],[40,23,40,24],[40,25,40,26],[40,27,40,28],[40,29,40,30],[40,32,40,34],[39,1,39,14],[39,15,39,16],[39,17,39,18],[39,19,39,20],[39,21,39,22],[39,23,39,24],[39,25,39,26],[39,27,39,28],[39,29,39,30],[41,32,41,34],[42,1,42,14],[42,15,42,16],[42,17,42,18],[42,19,42,20],[42,21,42,22],[42,23,42,24],[42,25,42,26],[42,27,42,28],[42,29,42,30],[42,32,42,34],[41,1,41,14],[41,15,41,16],[41,17,41,18],[41,19,41,20],[41,21,41,22],[41,23,41,24],[41,25,41,26],[41,27,41,28],[41,29,41,30],[43,32,43,34],[44,1,44,14],[44,15,44,16],[44,17,44,18],[44,19,44,20],[44,21,44,22],[44,23,44,24],[44,25,44,26],[44,27,44,28],[44,29,44,30],[44,32,44,34],[43,1,43,14],[43,15,43,16],[43,17,43,18],[43,19,43,20],[43,21,43,22],[43,23,43,24],[43,25,43,26],[43,27,43,28],[43,29,43,30],[45,32,45,34],[46,1,46,14],[46,15,46,16],[46,17,46,18],[46,19,46,20],[46,21,46,22],[46,23,46,24],[46,25,46,26],[46,27,46,28],[46,29,46,30],[46,32,46,34],[45,1,45,14],[45,15,45,16],[45,17,45,18],[45,19,45,20],[45,21,45,22],[45,23,45,24],[45,25,45,26],[45,27,45,28],[45,29,45,30],[47,32,47,34],[48,1,48,14],[48,15,48,16],[48,17,48,18],[48,19,48,20],[48,21,48,22],[48,23,48,24],[48,25,48,26],[48,27,48,28],[48,29,48,30],[48,32,48,34],[47,1,47,14],[47,15,47,16],[47,17,47,18],[47,19,47,20],[47,21,47,22],[47,23,47,24],[47,25,47,26],[47,27,47,28],[47,29,47,30],[50,32,50,34],[52,1,52,34],[49,25,49,26],[49,27,49,28],[49,29,49,30],[49,32,49,34],[50,1,50,14],[50,15,50,16],[50,17,50,18],[50,19,50,20],[50,21,50,22],[50,23,50,24],[49,1,49,14],[49,15,49,16],[49,17,49,18],[49,19,49,20],[49,21,49,22],[49,23,49,24],[50,25,50,26],[50,27,50,28],[50,29,50,30]]}
[]
[null,null,null,null,null,null,null,null,null,null,null,"Create Date:",null,null,null,null,{"$f":"'Photo Sheet'!Q2:W2","v":"AUG 22/2017"}]
[null,null,null,null,null,null,null,null,null,null,null,"Vendor Name:",null,null,null,null,{"$f":"'Photo Sheet'!Q3:AI3","v":0}]
[null,null,null,null,null,null,null,null,null,null,null,"Vndr.Item No.:",null,null,null,null,{"$f":"'Photo Sheet'!Q4:W4","v":0},null,null,null,null,null,null,null,null,null,"GC Item No.:",null,null,null,{"$f":"'Photo Sheet'!AE4:AI4","v":0}]
[null,null,null,null,null,null,null,null,null,null,null,"Size Range:",null,null,null,null,{"$f":"'Photo Sheet'!Q5:W5","v":"0-6 MONTHS"},null,null,null,null,null,null,null,null,null,"Season:",null,null,"Fall Winter 2016"]
[null,null,null,null,null,null,null,null,null,null,null,"Description:",null,null,null,null,{"$f":"'Photo Sheet'!Q6:AI6","v":"BABY- SHORT SLEEVE ONESIE PRINT WITH CHEST DIAGONAL OPENING"}]
[]
[null,"GRADE SHEET -- TOP / SWEATER",null,null,null,null,null,null,null,null,null,null,null,null,null,null,null,null,null,"Date:",null,null,null,null,null,null,null,null,null,null,null,null,null,null,null,null,null,null,null,"L"]
[null,"(Measurements on flat / inches)",null,null,null,null,null,null,null,null,null,null,null,null,null,"XS",null,null,null,"SM",null,null,null,"LXL",null,null,null,null,null,null,null,null,"Tolerance\n+ / -\n(on flat)",null,null,null,null,null,null,"LXL"]
[null,null,null,null,null,null,null,null,null,null,null,null,null,null,null,null,null,null,null,null,null,null,null,null,null,null,null,null,null,null,null,null,null,null,null,null,null,null,null,"M"]
[null,"BACK LENGTH FROM (HIGH SHOULDER POINT)",null,null,null,null,null,null,null,null,null,null,null,null,null,{"$f":"T11-0.375","v":-0.375},null,null,null,0,null,null,null,{"$f":"T11+0.625","v":0.625},null,null,null,null,null,null,null,null,0.375,null,null,null,null,null,null,"S"]
[null,"CENTER BACK LENGTH ( FROM NECK TO HEM )",null,null,null,null,null,null,null,null,null,null,null,null,null,null,null,null,null,0,null,null,null,null,null,null,null,null,null,null,null,null,0.375,null,null,null,null,null,null,"SM"]
[null,"FRONT LENGTH FROM (HIGH SHOULDER POINT)",null,null,null,null,null,null,null,null,null,null,null,null,null,{"$f":"T13-0.375","v":-0.375},null,null,null,0,null,null,null,{"$f":"T13+0.625","v":0.625},null,null,null,null,null,null,null,null,0.375,null,null,null,null,null,null,"XL"]
[null,"FRONT LENGTH (FROM CENTRE FRONT NECK TO HEM)",null,null,null,null,null,null,null,null,null,null,null,null,null,null,null,null,null,0,null,null,null,null,null,null,null,null,null,null,null,null,0.375,null,null,null,null,null,null,"XXL"]
[null,"CHEST (1\" BELOW ARMHOLE)",null,null,null,null,null,null,null,null,null,null,null,null,null,{"$f":"T15-1.5","v":-1.5},null,null,null,0,null,null,null,{"$f":"T15+2.5","v":2.5},null,null,null,null,null,null,null,null,0.375,null,null,null,null,null,null,"XXXL"]
[null,"WAIST (16 1/2\" BELOW HIGH SHOULDER POINT)",null,null,null,null,null,null,null,null,null,null,null,null,null,{"$f":"T16-1.5","v":-1.5},null,null,null,0,null,null,null,{"$f":"T16+2.5","v":2.5},null,null,null,null,null,null,null,null,0.375]
[null,"TOP HIP ( 19 1/2\" BELOW HSP )",null,null,null,null,null,null,null,null,null,null,null,null,null,{"$f":"T17-1.5","v":-1.5},null,null,null,0,null,null,null,{"$f":"T17+2.5","v":2.5},null,null,null,null,null,null,null,null,0.375]
[null,"LOW HIP ( 24 1/2\" BELOW HIGH SHOULDER POINT)",null,null,null,null,null,null,null,null,null,null,null,null,null,{"$f":"T18-1.5","v":-1.5},null,null,null,0,null,null,null,{"$f":"T18+2.5","v":2.5},null,null,null,null,null,null,null,null,0.375]
[null,"HEM STRAIGHT",null,null,null,null,null,null,null,null,null,null,null,null,null,{"$f":"T19-1.5","v":-1.5},null,null,null,0,null,null,null,{"$f":"T19+2.5","v":2.5},null,null,null,null,null,null,null,null,0.375]
[null,"HEM CURVE (FOLLOW)",null,null,null,null,null,null,null,null,null,null,null,null,null,null,null,null,null,0,null,null,null,null,null,null,null,null,null,null,null,null,0.375]
[null,"ACROSS SHOULDERS",null,null,null,null,null,null,null,null,null,null,null,null,null,{"$f":"T21-0.75","v":-0.75},null,null,null,0,null,null,null,{"$f":"T21+1.25","v":1.25},null,null,null,null,null,null,null,null,0.375]
[null,"ACROSS FRONT (5\" BELOW HIGH SHOULDER POINT)",null,null,null,null,null,null,null,null,null,null,null,null,null,{"$f":"T22-0.75","v":-0.75},null,null,null,0,null,null,null,{"$f":"T22+1.25","v":1.25},null,null,null,null,null,null,null,null,0.375]
[null,"ACROSS BACK (5\" BELOW HIGH SHOULDER POINT)",null,null,null,null,null,null,null,null,null,null,null,null,null,{"$f":"T23-0.75","v":-0.75},null,null,null,0,null,null,null,{"$f":"T23+1.25","v":1.25},null,null,null,null,null,null,null,null,0.375]
[null,"OVERARM (FROM SLEEVE CAP TO HEM)-SHORT SLEEVE",null,null,null,null,null,null,null,null,null,null,null,null,null,{"$f":"T24-0.25","v":-0.25},null,null,null,0,null,null,null,{"$f":"T24+0.375","v":0.375},null,null,null,null,null,null,null,null,0.25]
[null,"OVERARM (FROM SLEEVE CAP TO HEM)- 3/4 SLEEVE",null,null,null,null,null,null,null,null,null,null,null,null,null,{"$f":"T25-0.25","v":-0.25},null,null,null,0,null,null,null,{"$f":"T25+0.375","v":0.375},null,null,null,null,null,null,null,null,0.25]
[null,"OVERARM (FROM SLEEVE CAP TO HEM)- LONG SLEEVE",null,null,null,null,null,null,null,null,null,null,null,null,null,{"$f":"T26-0.25","v":-0.25},null,null,null,0,null,null,null,{"$f":"T26+0.375","v":0.375},null,null,null,null,null,null,null,null,0.375]
[null,"1/2 ARMHOLE STRAIGHT",null,null,null,null,null,null,null,null,null,null,null,null,null,{"$f":"T27-0.625","v":-0.625},null,null,null,0,null,null,null,{"$f":"T27+1","v":1},null,null,null,null,null,null,null,null,0.25]
[null,"BICEP (1\" BELOW ARMHOLE)",null,null,null,null,null,null,null,null,null,null,null,null,null,{"$f":"T28-0.5","v":-0.5},null,null,null,0,null,null,null,{"$f":"T28+0.75","v":0.75},null,null,null,null,null,null,null,null,0.25]
[null,"ELBOW (8 1/2\" BELOW ARMHOLE)",null,null,null,null,null,null,null,null,null,null,null,null,null,null,null,null,null,0,null,null,null,{"$f":"T29+0.625","v":0.625},null,null,null,null,null,null,null,null,0.25]
[null,"SHORT SLEEVE OPENING",null,null,null,null,null,null,null,null,null,null,null,null,null,{"$f":"T30-0.5","v":-0.5},null,null,null,0,null,null,null,{"$f":"T30+0.75","v":0.75},null,null,null,null,null,null,null,null,0.25]
[null,"3/4 SLEEVE OPENING",null,null,null,null,null,null,null,null,null,null,null,null,null,null,null,null,null,0,null,null,null,{"$f":"T31+0.5","v":0.5},null,null,null,null,null,null,null,null,0.25]
[null,"LONG SLEEVE OPENING",null,null,null,null,null,null,null,null,null,null,null,null,null,{"$f":"T32-0.25","v":-0.25},null,null,null,0,null,null,null,{"$f":"T32+0.375","v":0.375},null,null,null,null,null,null,null,null,0.25]
[null,"SLEEVE CAP HEIGHT ( FROM TOP OF SLEEVE TO UNDERARM )",null,null,null,null,null,null,null,null,null,null,null,null,null,{"$f":"T33-0.25","v":-0.25},null,null,null,0,null,null,null,{"$f":"T33+0.375","v":0.375},null,null,null,null,null,null,null,null,"1/4"]
[null,"SHOULDER SLOPE ( HSP TO SHOULDER ARMHOLE SEAM )",null,null,null,null,null,null,null,null,null,null,null,null,null,{"$f":"T34-0","v":0},null,null,null,0,null,null,null,{"$f":"T34+0","v":0},null,null,null,null,null,null,null,null,0]
[null,"NECK WIDTH (HSP TO HSP) ON BACK",null,null,null,null,null,null,null,null,null,null,null,null,null,{"$f":"T35-0.375","v":-0.375},null,null,null,0,null,null,null,{"$f":"T35+0.625","v":0.625},null,null,null,null,null,null,null,null,0.25]
[null,"FRONT NECK DROP ( FROM HSP TO C.F.NECK EDGE OR SEAM )",null,null,null,null,null,null,null,null,null,null,null,null,null,{"$f":"T36-0.25","v":-0.25},null,null,null,0,null,null,null,{"$f":"T36+0.375","v":0.375},null,null,null,null,null,null,null,null,0.25]
[null,"BACK NECK DROP ( FROM HSP TO C.B. NECK EDGE OR SEAM )",null,null,null,null,null,null,null,null,null,null,null,null,null,{"$f":"T37-0","v":0},null,null,null,0,null,null,null,{"$f":"T37+0","v":0},null,null,null,null,null,null,null,null,0.25]
[null,"1/2 NECK CIRCUMFERENCE",null,null,null,null,null,null,null,null,null,null,null,null,null,null,null,null,null,0,null,null,null,null,null,null,null,null,null,null,null,null,0.25]
[null,"COLLAR DEPTH ( AT C.B. NECK )",null,null,null,null,null,null,null,null,null,null,null,null,null,{"$f":"T39-0","v":0},null,null,null,0,null,null,null,{"$f":"T39+0","v":0},null,null,null,null,null,null,null,null,0]
[null,"STAND DEPTH",null,null,null,null,null,null,null,null,null,null,null,null,null,{"$f":"T40-0","v":0},null,null,null,0,null,null,null,{"$f":"T40+0","v":0},null,null,null,null,null,null,null,null,0]
[null,"COLLAR LENGTH",null,null,null,null,null,null,null,null,null,null,null,null,null,null,null,null,null,0,null,null,null,null,null,null,null,null,null,null,null,null,0.25]
[null,"NECK TRIM DEPTH",null,null,null,null,null,null,null,null,null,null,null,null,null,{"$f":"T42-0","v":0},null,null,null,0,null,null,null,{"$f":"T42+0","v":0},null,null,null,null,null,null,null,null,0]
[null,"CUFF DEPTH",null,null,null,null,null,null,null,null,null,null,null,null,null,{"$f":"T43-0","v":0},null,null,null,0,null,null,null,{"$f":"T43+0","v":0},null,null,null,null,null,null,null,null,0]
[null,"SLEEVE HEM DEPTH",null,null,null,null,null,null,null,null,null,null,null,null,null,{"$f":"T44-0","v":0},null,null,null,0,null,null,null,{"$f":"T44+0","v":0},null,null,null,null,null,null,null,null,0]
[null,"BOTTOM HEM DEPTH",null,null,null,null,null,null,null,null,null,null,null,null,null,{"$f":"T45-0","v":0},null,null,null,0,null,null,null,{"$f":"T45+0","v":0},null,null,null,null,null,null,null,null,0]
[null,"BACK HEM WIDTH ( STRAIGHT FROM SEAM TO SEAM )",null,null,null,null,null,null,null,null,null,null,null,null,null,{"$f":"T46-1.5","v":-1.5},null,null,null,0,null,null,null,{"$f":"T46+2.5","v":2.5},null,null,null,null,null,null,null,null,0.375]
[]
[null,"HOOD DEPTH AT CENTRE FRONT ( TOP HOOD TO NECK)",null,null,null,null,null,null,null,null,null,null,null,null,null,{"$f":"T48-0.375","v":-0.375},null,null,null,0,null,null,null,{"$f":"T48+0.375","v":0.375},null,null,null,null,null,null,null,null,0.25]
[null,"HOOD DEPTH AT SHOULDER ( TOP HOOD TO SHOULDER SEAM)",null,null,null,null,null,null,null,null,null,null,null,null,null,{"$f":"T49-0.375","v":-0.375},null,null,null,0,null,null,null,{"$f":"T49+0.375","v":0.375},null,null,null,null,null,null,null,null,0.25]
[null,"HOOD WIDTH (4\" BELOW TOP OF HOOD)",null,null,null,null,null,null,null,null,null,null,null,null,null,{"$f":"T50-0.25","v":-0.25},null,null,null,0,null,null,null,{"$f":"T50+0.25","v":0.25},null,null,null,null,null,null,null,null,0.25]
[null,"HOOD OVERHEAD ( FOLLOWED ALONG C.B. SEAM )",null,null,null,null,null,null,null,null,null,null,null,null,null,{"$f":"T51-0.625","v":-0.625},null,null,null,0,null,null,null,{"$f":"T51+0.625","v":0.625},null,null,null,null,null,null,null,null,0.375]
[null,"Sample Approved?"]
[null,"If sample is NOT approved, then submit 2nd Pre-Production Samples. If sample is APPROVED, then submit Production Samples."]

{"sheet":"Grade S-M-L","index":17,"n_rows":53,"n_cols":40,"rows_kept":53,"cut":false,"hidden":true,"merged":[[50,32,50,34],[52,1,52,34],[49,25,49,26],[49,27,49,28],[49,29,49,30],[49,32,49,34],[50,1,50,14],[50,15,50,16],[50,17,50,18],[50,19,50,20],[50,21,50,22],[50,23,50,24],[49,1,49,14],[49,15,49,16],[49,17,49,18],[49,19,49,20],[49,21,49,22],[49,23,49,24],[50,25,50,26],[50,27,50,28],[50,29,50,30],[47,32,47,34],[48,1,48,14],[48,15,48,16],[48,17,48,18],[48,19,48,20],[48,21,48,22],[48,23,48,24],[48,25,48,26],[48,27,48,28],[48,29,48,30],[48,32,48,34],[47,1,47,14],[47,15,47,16],[47,17,47,18],[47,19,47,20],[47,21,47,22],[47,23,47,24],[47,25,47,26],[47,27,47,28],[47,29,47,30],[45,32,45,34],[46,1,46,14],[46,15,46,16],[46,17,46,18],[46,19,46,20],[46,21,46,22],[46,23,46,24],[46,25,46,26],[46,27,46,28],[46,29,46,30],[46,32,46,34],[45,1,45,14],[45,15,45,16],[45,17,45,18],[45,19,45,20],[45,21,45,22],[45,23,45,24],[45,25,45,26],[45,27,45,28],[45,29,45,30],[43,32,43,34],[44,1,44,14],[44,15,44,16],[44,17,44,18],[44,19,44,20],[44,21,44,22],[44,23,44,24],[44,25,44,26],[44,27,44,28],[44,29,44,30],[44,32,44,34],[43,1,43,14],[43,15,43,16],[43,17,43,18],[43,19,43,20],[43,21,43,22],[43,23,43,24],[43,25,43,26],[43,27,43,28],[43,29,43,30],[41,32,41,34],[42,1,42,14],[42,15,42,16],[42,17,42,18],[42,19,42,20],[42,21,42,22],[42,23,42,24],[42,25,42,26],[42,27,42,28],[42,29,42,30],[42,32,42,34],[41,1,41,14],[41,15,41,16],[41,17,41,18],[41,19,41,20],[41,21,41,22],[41,23,41,24],[41,25,41,26],[41,27,41,28],[41,29,41,30],[39,32,39,34],[40,1,40,14],[40,15,40,16],[40,17,40,18],[40,19,40,20],[40,21,40,22],[40,23,40,24],[40,25,40,26],[40,27,40,28],[40,29,40,30],[40,32,40,34],[39,1,39,14],[39,15,39,16],[39,17,39,18],[39,19,39,20],[39,21,39,22],[39,23,39,24],[39,25,39,26],[39,27,39,28],[39,29,39,30],[37,32,37,34],[38,1,38,14],[38,15,38,16],[38,17,38,18],[38,19,38,20],[38,21,38,22],[38,23,38,24],[38,25,38,26],[38,27,38,28],[38,29,38,30],[38,32,38,34],[37,1,37,14],[37,15,37,16],[37,17,37,18],[37,19,37,20],[37,21,37,22],[37,23,37,24],[37,25,37,26],[37,27,37,28],[37,29,37,30],[35,32,35,34],[36,1,36,14],[36,15,36,16],[36,17,36,18],[36,19,36,20],[36,21,36,22],[36,23,36,24],[36,25,36,26],[36,27,36,28],[36,29,36,30],[36,32,36,34],[35,1,35,14],[35,15,35,16],[35,17,35,18],[35,19,35,20],[35,21,35,22],[35,23,35,24],[35,25,35,26],[35,27,35,28],[35,29,35,30],[33,32,33,34],[34,1,34,14],[34,15,34,16],[34,17,34,18],[34,19,34,20],[34,21,34,22],[34,23,34,24],[34,25,34,26],[34,27,34,28],[34,29,34,30],[34,32,34,34],[33,1,33,14],[33,15,33,16],[33,17,33,18],[33,19,33,20],[33,21,33,22],[33,23,33,24],[33,25,33,26],[33,27,33,28],[33,29,33,30],[31,32,31,34],[32,1,32,14],[32,15,32,16],[32,17,32,18],[32,19,32,20],[32,21,32,22],[32,23,32,24],[32,25,32,26],[32,27,32,28],[32,29,32,30],[32,32,32,34],[31,1,31,14],[31,15,31,16],[31,17,31,18],[31,19,31,20],[31,21,31,22],[31,23,31,24],[31,25,31,26],[31,27,31,28],[31,29,31,30],[29,32,29,34],[30,1,30,14],[30,15,30,16],[30,17,30,18],[30,19,30,20],[30,21,30,22],[30,23,30,24],[30,25,30,26],[30,27,30,28],[30,29,30,30],[30,32,30,34],[29,1,29,14],[29,15,29,16],[29,17,29,18],[29,19,29,20],[29,21,29,22],[29,23,29,24],[29,25,29,26],[29,27,29,28],[29,29,29,30],[27,32,27,34],[28,1,28,14],[28,15,28,16],[28,17,28,18],[28,19,28,20],[28,21,28,22],[28,23,28,24],[28,25,28,26],[28,27,28,28],[28,29,28,30],[28,32,28,34],[27,1,27,14],[27,15,27,16],[27,17,27,18],[27,19,27,20],[27,21,27,22],[27,23,27,24],[27,25,27,26],[27,27,27,28],[27,29,27,30],[25,32,25,34],[26,1,26,14],[26,15,26,16],[26,17,26,18],[26,19,26,20],[26,21,26,22],[26,23,26,24],[26,25,26,26],[26,27,26,28],[26,29,26,30],[26,32,26,34],[25,1,25,14],[25,15,25,16],[25,17,25,18],[25,19,25,20],[25,21,25,22],[25,23,25,24],[25,25,25,26],[25,27,25,28],[25,29,25,30],[23,32,23,34],[24,1,24,14],[24,15,24,16],[24,17,24,18],[24,19,24,20],[24,21,24,22],[24,23,24,24],[24,25,24,26],[24,27,24,28],[24,29,24,30],[24,32,24,34],[23,1,23,14],[23,15,23,16],[23,17,23,18],[23,19,23,20],[23,21,23,22],[23,23,23,24],[23,25,23,26],[23,27,23,28],[23,29,23,30],[21,32,21,34],[22,1,22,14],[22,15,22,16],[22,17,22,18],[22,19,22,20],[22,21,22,22],[22,23,22,24],[22,25,22,26],[22,27,22,28],[22,29,22,30],[22,32,22,34],[21,1,21,14],[21,15,21,16],[21,17,21,18],[21,19,21,20],[21,21,21,22],[21,23,21,24],[21,25,21,26],[21,27,21,28],[21,29,21,30],[19,32,19,34],[20,1,20,14],[20,15,20,16],[20,17,20,18],[20,19,20,20],[20,21,20,22],[20,23,20,24],[20,25,20,26],[20,27,20,28],[20,29,20,30],[20,32,20,34],[19,1,19,14],[19,15,19,16],[19,17,19,18],[19,19,19,20],[19,21,19,22],[19,23,19,24],[19,25,19,26],[19,27,19,28],[19,29,19,30],[17,32,17,34],[18,1,18,14],[18,15,18,16],[18,17,18,18],[18,19,18,20],[18,21,18,22],[18,23,18,24],[18,25,18,26],[18,27,18,28],[18,29,18,30],[18,32,18,34],[17,1,17,14],[17,15,17,16],[17,17,17,18],[17,19,17,20],[17,21,17,22],[17,23,17,24],[17,25,17,26],[17,27,17,28],[17,29,17,30],[15,32,15,34],[16,1,16,14],[16,15,16,16],[16,17,16,18],[16,19,16,20],[16,21,16,22],[16,23,16,24],[16,25,16,26],[16,27,16,28],[16,29,16,30],[16,32,16,34],[15,1,15,14],[15,15,15,16],[15,17,15,18],[15,19,15,20],[15,21,15,22],[15,23,15,24],[15,25,15,26],[15,27,15,28],[15,29,15,30],[13,32,13,34],[14,1,14,14],[14,15,14,16],[14,17,14,18],[14,19,14,20],[14,21,14,22],[14,23,14,24],[14,25,14,26],[14,27,14,28],[14,29,14,30],[14,32,14,34],[13,1,13,14],[13,15,13,16],[13,17,13,18],[13,19,13,20],[13,21,13,22],[13,23,13,24],[13,25,13,26],[13,27,13,28],[13,29,13,30],[11,32,11,34],[12,1,12,14],[12,15,12,16],[12,17,12,18],[12,19,12,20],[12,21,12,22],[12,23,12,24],[12,25,12,26],[12,27,12,28],[12,29,12,30],[12,32,12,34],[11,1,11,14],[11,15,11,16],[11,17,11,18],[11,19,11,20],[11,21,11,22],[11,23,11,24],[11,25,11,26],[11,27,11,28],[11,29,11,30],[8,32,9,34],[10,1,10,14],[10,15,10,16],[10,17,10,18],[10,19,10,20],[10,21,10,22],[10,23,10,24],[10,25,10,26],[10,27,10,28],[10,29,10,30],[10,32,10,34],[8,1,9,14],[8,15,9,16],[8,17,9,18],[8,19,9,20],[8,21,9,22],[8,23,9,24],[8,25,9,26],[8,27,9,28],[8,29,9,30],[1,16,1,22],[2,16,2,34],[3,16,3,22],[3,30,3,34],[4,16,4,22],[5,16,5,34],[7,1,7,18],[7,19,7,22],[7,23,7,31],[4,29,4,34]]}
[]
[null,null,null,null,null,null,null,null,null,null,null,"Create Date:",null,null,null,null,{"$f":"'Photo Sheet'!Q2:W2","v":"AUG 22/2017"}]
[null,null,null,null,null,null,null,null,null,null,null,"Vendor Name:",null,null,null,null,{"$f":"'Photo Sheet'!Q3:AI3","v":0}]
[null,null,null,null,null,null,null,null,null,null,null,"Vndr.Item No.:",null,null,null,null,{"$f":"'Photo Sheet'!Q4:W4","v":0},null,null,null,null,null,null,null,null,null,"GC Item No.:",null,null,null,{"$f":"'Photo Sheet'!AE4:AI4","v":0}]
[null,null,null,null,null,null,null,null,null,null,null,"Size Range:",null,null,null,null,{"$f":"'Photo Sheet'!Q5:W5","v":"0-6 MONTHS"},null,null,null,null,null,null,null,null,null,"Season:",null,null,"Fall Winter 2016"]
[null,null,null,null,null,null,null,null,null,null,null,"Description:",null,null,null,null,{"$f":"'Photo Sheet'!Q6:AI6","v":"BABY- SHORT SLEEVE ONESIE PRINT WITH CHEST DIAGONAL OPENING"}]
[]
[null,"GRADE SHEET -- TOP / SWEATER",null,null,null,null,null,null,null,null,null,null,null,null,null,null,null,null,null,"Date:",null,null,null,null,null,null,null,null,null,null,null,null,null,null,null,null,null,null,null,"L"]
[null,"(Measurements on flat / inches)",null,null,null,null,null,null,null,null,null,null,null,null,null,"S",null,null,null,"M",null,null,null,"L",null,null,null,null,null,null,null,null,"Tolerance\n+ / -\n(on flat)",null,null,null,null,null,null,"LXL"]
[null,null,null,null,null,null,null,null,null,null,null,null,null,null,null,null,null,null,null,null,null,null,null,null,null,null,null,null,null,null,null,null,null,null,null,null,null,null,null,"M"]
[null,"BACK LENGTH FROM (HIGH SHOULDER POINT)",null,null,null,null,null,null,null,null,null,null,null,null,null,{"$f":"T11-0.375","v":-0.375},null,null,null,0,null,null,null,{"$f":"T11+0.5","v":0.5},null,null,null,null,null,null,null,null,0.375,null,null,null,null,null,null,"S"]
[null,"CENTER BACK LENGTH ( FROM NECK TO HEM )",null,null,null,null,null,null,null,null,null,null,null,null,null,null,null,null,null,0,null,null,null,null,null,null,null,null,null,null,null,null,0.375,null,null,null,null,null,null,"SM"]
[null,"FRONT LENGTH FROM (HIGH SHOULDER POINT)",null,null,null,null,null,null,null,null,null,null,null,null,null,{"$f":"T13-0.375","v":-0.375},null,null,null,0,null,null,null,{"$f":"T13+0.5","v":0.5},null,null,null,null,null,null,null,null,0.375,null,null,null,null,null,null,"XL"]
[null,"FRONT LENGTH (FROM CENTRE FRONT NECK TO HEM)",null,null,null,null,null,null,null,null,null,null,null,null,null,null,null,null,null,0,null,null,null,null,null,null,null,null,null,null,null,null,0.375,null,null,null,null,null,null,"XXL"]
[null,"CHEST (1\" BELOW ARMHOLE)",null,null,null,null,null,null,null,null,null,null,null,null,null,{"$f":"T15-1.5","v":-1.5},null,null,null,0,null,null,null,{"$f":"T15+2","v":2},null,null,null,null,null,null,null,null,0.375,null,null,null,null,null,null,"XXXL"]
[null,"WAIST (16 1/2\" BELOW HIGH SHOULDER POINT)",null,null,null,null,null,null,null,null,null,null,null,null,null,{"$f":"T16-1.5","v":-1.5},null,null,null,0,null,null,null,{"$f":"T16+2","v":2},null,null,null,null,null,null,null,null,0.375]
[null,"TOP HIP ( 19 1/2\" BELOW HSP )",null,null,null,null,null,null,null,null,null,null,null,null,null,{"$f":"T17-1.5","v":-1.5},null,null,null,0,null,null,null,{"$f":"T17+2","v":2},null,null,null,null,null,null,null,null,0.375]
[null,"LOW HIP ( 24 1/2\" BELOW HIGH SHOULDER POINT)",null,null,null,null,null,null,null,null,null,null,null,null,null,{"$f":"T18-1.5","v":-1.5},null,null,null,0,null,null,null,{"$f":"T18+2","v":2},null,null,null,null,null,null,null,null,0.375]
[null,"HEM STRAIGHT",null,null,null,null,null,null,null,null,null,null,null,null,null,{"$f":"T19-1.5","v":-1.5},null,null,null,0,null,null,null,{"$f":"T19+2","v":2},null,null,null,null,null,null,null,null,0.375]
[null,"HEM CURVE (FOLLOW)",null,null,null,null,null,null,null,null,null,null,null,null,null,null,null,null,null,0,null,null,null,null,null,null,null,null,null,null,null,null,0.375]
[null,"ACROSS SHOULDERS",null,null,null,null,null,null,null,null,null,null,null,null,null,{"$f":"T21-0.75","v":-0.75},null,null,null,0,null,null,null,{"$f":"T21+1","v":1},null,null,null,null,null,null,null,null,0.375]
[null,"ACROSS FRONT (5\" BELOW HIGH SHOULDER POINT)",null,null,null,null,null,null,null,null,null,null,null,null,null,{"$f":"T22-0.75","v":-0.75},null,null,null,0,null,null,null,{"$f":"T22+1","v":1},null,null,null,null,null,null,null,null,0.375]
[null,"ACROSS BACK (5\" BELOW HIGH SHOULDER POINT)",null,null,null,null,null,null,null,null,null,null,null,null,null,{"$f":"T23-0.75","v":-0.75},null,null,null,0,null,null,null,{"$f":"T23+1","v":1},null,null,null,null,null,null,null,null,0.375]
[null,"OVERARM (FROM SLEEVE CAP TO HEM)-SHORT SLEEVE",null,null,null,null,null,null,null,null,null,null,null,null,null,{"$f":"T24-0.25","v":-0.25},null,null,null,0,null,null,null,{"$f":"T24+0.25","v":0.25},null,null,null,null,null,null,null,null,0.25]
[null,"OVERARM (FROM SLEEVE CAP TO HEM)- 3/4 SLEEVE",null,null,null,null,null,null,null,null,null,null,null,null,null,{"$f":"T52-0.25","v":-0.25},null,null,null,0,null,null,null,{"$f":"T25+0.25","v":0.25},null,null,null,null,null,null,null,null,0.25]
[null,"OVERARM (FROM SLEEVE CAP TO HEM)- LONG SLEEVE",null,null,null,null,null,null,null,null,null,null,null,null,null,{"$f":"T26-0.25","v":-0.25},null,null,null,0,null,null,null,{"$f":"T26+0.25","v":0.25},null,null,null,null,null,null,null,null,0.375]
[null,"1/2 ARMHOLE STRAIGHT",null,null,null,null,null,null,null,null,null,null,null,null,null,{"$f":"T27-0.625","v":-0.625},null,null,null,0,null,null,null,{"$f":"T27+0.75","v":0.75},null,null,null,null,null,null,null,null,0.25]
[null,"BICEP (1\" BELOW ARMHOLE)",null,null,null,null,null,null,null,null,null,null,null,null,null,{"$f":"T28-0.5","v":-0.5},null,null,null,0,null,null,null,{"$f":"T28+0.5","v":0.5},null,null,null,null,null,null,null,null,0.25]
[null,"ELBOW (8 1/2\" BELOW ARMHOLE)",null,null,null,null,null,null,null,null,null,null,null,null,null,{"$f":"T29-0.375","v":-0.375},null,null,null,0,null,null,null,{"$f":"T29+0.375","v":0.375},null,null,null,null,null,null,null,null,0.25]
[null,"SHORT SLEEVE OPENING",null,null,null,null,null,null,null,null,null,null,null,null,null,{"$f":"T30-0.5","v":-0.5},null,null,null,0,null,null,null,{"$f":"T30+0.5","v":0.5},null,null,null,null,null,null,null,null,0.25]
[null,"3/4 SLEEVE OPENING",null,null,null,null,null,null,null,null,null,null,null,null,null,{"$f":"T31-0.375","v":-0.375},null,null,null,0,null,null,null,{"$f":"T31+0.375","v":0.375},null,null,null,null,null,null,null,null,0.25]
[null,"LONG SLEEVE OPENING",null,null,null,null,null,null,null,null,null,null,null,null,null,{"$f":"T32-0.25","v":-0.25},null,null,null,0,null,null,null,{"$f":"T32+0.25","v":0.25},null,null,null,null,null,null,null,null,0.25]
[null,"SLEEVE CAP HEIGHT ( FROM TOP OF SLEEVE TO UNDERARM )",null,null,null,null,null,null,null,null,null,null,null,null,null,{"$f":"T33-0.25","v":-0.25},null,null,null,0,null,null,null,{"$f":"T33+0.25","v":0.25},null,null,null,null,null,null,null,null,"1/4"]
[null,"SHOULDER SLOPE ( HSP TO SHOULDER ARMHOLE SEAM )",null,null,null,null,null,null,null,null,null,null,null,null,null,{"$f":"T34-0","v":0},null,null,null,0,null,null,null,{"$f":"T34+0","v":0},null,null,null,null,null,null,null,null,0]
[null,"NECK WIDTH (HSP TO HSP) ON BACK",null,null,null,null,null,null,null,null,null,null,null,null,null,{"$f":"T35-0.375","v":-0.375},null,null,null,0,null,null,null,{"$f":"T35+0.5","v":0.5},null,null,null,null,null,null,null,null,0.25]
[null,"FRONT NECK DROP ( FROM HSP TO C.F.NECK EDGE OR SEAM )",null,null,null,null,null,null,null,null,null,null,null,null,null,{"$f":"T36-0.25","v":-0.25},null,null,null,0,null,null,null,{"$f":"T36+0.25","v":0.25},null,null,null,null,null,null,null,null,0.25]
[null,"BACK NECK DROP ( FROM HSP TO C.B. NECK EDGE OR SEAM )",null,null,null,null,null,null,null,null,null,null,null,null,null,{"$f":"T37-0","v":0},null,null,null,0,null,null,null,{"$f":"T37+0","v":0},null,null,null,null,null,null,null,null,0.25]
[null,"1/2 NECK CIRCUMFERENCE",null,null,null,null,null,null,null,null,null,null,null,null,null,null,null,null,null,0,null,null,null,null,null,null,null,null,null,null,null,null,0.25]
[null,"COLLAR DEPTH ( AT C.B. NECK )",null,null,null,null,null,null,null,null,null,null,null,null,null,{"$f":"T39-0","v":0},null,null,null,0,null,null,null,{"$f":"T39+0","v":0},null,null,null,null,null,null,null,null,0]
[null,"STAND DEPTH",null,null,null,null,null,null,null,null,null,null,null,null,null,{"$f":"T40-0","v":0},null,null,null,0,null,null,null,{"$f":"T40+0","v":0},null,null,null,null,null,null,null,null,0]
[null,"COLLAR LENGTH",null,null,null,null,null,null,null,null,null,null,null,null,null,null,null,null,null,0,null,null,null,null,null,null,null,null,null,null,null,null,0.25]
[null,"NECK TRIM DEPTH",null,null,null,null,null,null,null,null,null,null,null,null,null,{"$f":"T42-0","v":0},null,null,null,0,null,null,null,{"$f":"T42+0","v":0},null,null,null,null,null,null,null,null,0]
[null,"CUFF DEPTH",null,null,null,null,null,null,null,null,null,null,null,null,null,{"$f":"T43-0","v":0},null,null,null,0,null,null,null,{"$f":"T43+0","v":0},null,null,null,null,null,null,null,null,0]
[null,"SLEEVE HEM DEPTH",null,null,null,null,null,null,null,null,null,null,null,null,null,{"$f":"T44-0","v":0},null,null,null,0,null,null,null,{"$f":"T44+0","v":0},null,null,null,null,null,null,null,null,0]
[null,"BOTTOM HEM DEPTH",null,null,null,null,null,null,null,null,null,null,null,null,null,{"$f":"T45-0","v":0},null,null,null,0,null,null,null,{"$f":"T45+0","v":0},null,null,null,null,null,null,null,null,0]
[null,"BACK HEM WIDTH ( STRAIGHT FROM SEAM TO SEAM )",null,null,null,null,null,null,null,null,null,null,null,null,null,null,null,null,null,0,null,null,null,null,null,null,null,null,null,null,null,null,0.375]
[]
[null,"HOOD DEPTH AT CENTRE FRONT ( TOP HOOD TO NECK)",null,null,null,null,null,null,null,null,null,null,null,null,null,{"$f":"T48-0.375","v":-0.375},null,null,null,0,null,null,null,{"$f":"T48+0.375","v":0.375},null,null,null,null,null,null,null,null,0.25]
[null,"HOOD DEPTH AT SHOULDER ( TOP HOOD TO SHOULDER SEAM)",null,null,null,null,null,null,null,null,null,null,null,null,null,{"$f":"T49-0.375","v":-0.375},null,null,null,0,null,null,null,{"$f":"T49+0.375","v":0.375},null,null,null,null,null,null,null,null,0.25]
[null,"HOOD WIDTH (4\" BELOW TOP OF HOOD)",null,null,null,null,null,null,null,null,null,null,null,null,null,{"$f":"T50-0.25","v":-0.25},null,null,null,0,null,null,null,{"$f":"T50+0.25","v":0.25},null,null,null,null,null,null,null,null,0.25]
[null,"HOOD OVERHEAD ( FOLLOWED ALONG C.B. SEAM )",null,null,null,null,null,null,null,null,null,null,null,null,null,{"$f":"T51-0.625","v":-0.625},null,null,null,0,null,null,null,{"$f":"T51+0.625","v":0.625},null,null,null,null,null,null,null,null,0.375]
[null,"Sample Approved?"]
[null,"If sample is NOT approved, then submit 2nd Pre-Production Samples. If sample is APPROVED, then submit Production Samples."]

{"sheet":"Grade OS","index":18,"n_rows":53,"n_cols":40,"rows_kept":53,"cut":false,"hidden":true,"merged":[[1,16,1,22],[2,16,2,34],[3,16,3,22],[3,30,3,34],[4,16,4,22],[4,29,4,34],[5,16,5,34],[7,1,7,18],[7,19,7,22],[7,23,7,31],[8,32,9,34],[10,1,10,14],[10,15,10,16],[10,17,10,18],[10,19,10,20],[10,21,10,22],[10,23,10,24],[10,25,10,26],[10,27,10,28],[10,29,10,30],[10,32,10,34],[8,1,9,14],[8,15,9,16],[8,17,9,18],[8,19,9,20],[8,21,9,22],[8,23,9,24],[8,25,9,26],[8,27,9,28],[8,29,9,30],[11,32,11,34],[12,1,12,14],[12,15,12,16],[12,17,12,18],[12,19,12,20],[12,21,12,22],[12,23,12,24],[12,25,12,26],[12,27,12,28],[12,29,12,30],[12,32,12,34],[11,1,11,14],[11,15,11,16],[11,17,11,18],[11,19,11,20],[11,21,11,22],[11,23,11,24],[11,25,11,26],[11,27,11,28],[11,29,11,30],[13,32,13,34],[14,1,14,14],[14,15,14,16],[14,17,14,18],[14,19,14,20],[14,21,14,22],[14,23,14,24],[14,25,14,26],[14,27,14,28],[14,29,14,30],[14,32,14,34],[13,1,13,14],[13,15,13,16],[13,17,13,18],[13,19,13,20],[13,21,13,22],[13,23,13,24],[13,25,13,26],[13,27,13,28],[13,29,13,30],[15,32,15,34],[16,1,16,14],[16,15,16,16],[16,17,16,18],[16,19,16,20],[16,21,16,22],[16,23,16,24],[16,25,16,26],[16,27,16,28],[16,29,16,30],[16,32,16,34],[15,1,15,14],[15,15,15,16],[15,17,15,18],[15,19,15,20],[15,21,15,22],[15,23,15,24],[15,25,15,26],[15,27,15,28],[15,29,15,30],[17,32,17,34],[18,1,18,14],[18,15,18,16],[18,17,18,18],[18,19,18,20],[18,21,18,22],[18,23,18,24],[18,25,18,26],[18,27,18,28],[18,29,18,30],[18,32,18,34],[17,1,17,14],[17,15,17,16],[17,17,17,18],[17,19,17,20],[17,21,17,22],[17,23,17,24],[17,25,17,26],[17,27,17,28],[17,29,17,30],[19,32,19,34],[20,1,20,14],[20,15,20,16],[20,17,20,18],[20,19,20,20],[20,21,20,22],[20,23,20,24],[20,25,20,26],[20,27,20,28],[20,29,20,30],[20,32,20,34],[19,1,19,14],[19,15,19,16],[19,17,19,18],[19,19,19,20],[19,21,19,22],[19,23,19,24],[19,25,19,26],[19,27,19,28],[19,29,19,30],[21,32,21,34],[22,1,22,14],[22,15,22,16],[22,17,22,18],[22,19,22,20],[22,21,22,22],[22,23,22,24],[22,25,22,26],[22,27,22,28],[22,29,22,30],[22,32,22,34],[21,1,21,14],[21,15,21,16],[21,17,21,18],[21,19,21,20],[21,21,21,22],[21,23,21,24],[21,25,21,26],[21,27,21,28],[21,29,21,30],[23,32,23,34],[24,1,24,14],[24,15,24,16],[24,17,24,18],[24,19,24,20],[24,21,24,22],[24,23,24,24],[24,25,24,26],[24,27,24,28],[24,29,24,30],[24,32,24,34],[23,1,23,14],[23,15,23,16],[23,17,23,18],[23,19,23,20],[23,21,23,22],[23,23,23,24],[23,25,23,26],[23,27,23,28],[23,29,23,30],[25,32,25,34],[26,1,26,14],[26,15,26,16],[26,17,26,18],[26,19,26,20],[26,21,26,22],[26,23,26,24],[26,25,26,26],[26,27,26,28],[26,29,26,30],[26,32,26,34],[25,1,25,14],[25,15,25,16],[25,17,25,18],[25,19,25,20],[25,21,25,22],[25,23,25,24],[25,25,25,26],[25,27,25,28],[25,29,25,30],[27,32,27,34],[28,1,28,14],[28,15,28,16],[28,17,28,18],[28,19,28,20],[28,21,28,22],[28,23,28,24],[28,25,28,26],[28,27,28,28],[28,29,28,30],[28,32,28,34],[27,1,27,14],[27,15,27,16],[27,17,27,18],[27,19,27,20],[27,21,27,22],[27,23,27,24],[27,25,27,26],[27,27,27,28],[27,29,27,30],[29,32,29,34],[30,1,30,14],[30,15,30,16],[30,17,30,18],[30,19,30,20],[30,21,30,22],[30,23,30,24],[30,25,30,26],[30,27,30,28],[30,29,30,30],[30,32,30,34],[29,1,29,14],[29,15,29,16],[29,17,29,18],[29,19,29,20],[29,21,29,22],[29,23,29,24],[29,25,29,26],[29,27,29,28],[29,29,29,30],[31,32,31,34],[32,1,32,14],[32,15,32,16],[32,17,32,18],[32,19,32,20],[32,21,32,22],[32,23,32,24],[32,25,32,26],[32,27,32,28],[32,29,32,30],[32,32,32,34],[31,1,31,14],[31,15,31,16],[31,17,31,18],[31,19,31,20],[31,21,31,22],[31,23,31,24],[31,25,31,26],[31,27,31,28],[31,29,31,30],[33,32,33,34],[34,1,34,14],[34,15,34,16],[34,17,34,18],[34,19,34,20],[34,21,34,22],[34,23,34,24],[34,25,34,26],[34,27,34,28],[34,29,34,30],[34,32,34,34],[33,1,33,14],[33,15,33,16],[33,17,33,18],[33,19,33,20],[33,21,33,22],[33,23,33,24],[33,25,33,26],[33,27,33,28],[33,29,33,30],[35,32,35,34],[36,1,36,14],[36,15,36,16],[36,17,36,18],[36,19,36,20],[36,21,36,22],[36,23,36,24],[36,25,36,26],[36,27,36,28],[36,29,36,30],[36,32,36,34],[35,1,35,14],[35,15,35,16],[35,17,35,18],[35,19,35,20],[35,21,35,22],[35,23,35,24],[35,25,35,26],[35,27,35,28],[35,29,35,30],[37,32,37,34],[38,1,38,14],[38,15,38,16],[38,17,38,18],[38,19,38,20],[38,21,38,22],[38,23,38,24],[38,25,38,26],[38,27,38,28],[38,29,38,30],[38,32,38,34],[37,1,37,14],[37,15,37,16],[37,17,37,18],[37,19,37,20],[37,21,37,22],[37,23,37,24],[37,25,37,26],[37,27,37,28],[37,29,37,30],[39,32,39,34],[40,1,40,14],[40,15,40,16],[40,17,40,18],[40,19,40,20],[40,21,40,22],[40,23,40,24],[40,25,40,26],[40,27,40,28],[40,29,40,30],[40,32,40,34],[39,1,39,14],[39,15,39,16],[39,17,39,18],[39,19,39,20],[39,21,39,22],[39,23,39,24],[39,25,39,26],[39,27,39,28],[39,29,39,30],[41,32,41,34],[42,1,42,14],[42,15,42,16],[42,17,42,18],[42,19,42,20],[42,21,42,22],[42,23,42,24],[42,25,42,26],[42,27,42,28],[42,29,42,30],[42,32,42,34],[41,1,41,14],[41,15,41,16],[41,17,41,18],[41,19,41,20],[41,21,41,22],[41,23,41,24],[41,25,41,26],[41,27,41,28],[41,29,41,30],[43,32,43,34],[44,1,44,14],[44,15,44,16],[44,17,44,18],[44,19,44,20],[44,21,44,22],[44,23,44,24],[44,25,44,26],[44,27,44,28],[44,29,44,30],[44,32,44,34],[43,1,43,14],[43,15,43,16],[43,17,43,18],[43,19,43,20],[43,21,43,22],[43,23,43,24],[43,25,43,26],[43,27,43,28],[43,29,43,30],[45,32,45,34],[46,1,46,14],[46,15,46,16],[46,17,46,18],[46,19,46,20],[46,21,46,22],[46,23,46,24],[46,25,46,26],[46,27,46,28],[46,29,46,30],[46,32,46,34],[45,1,45,14],[45,15,45,16],[45,17,45,18],[45,19,45,20],[45,21,45,22],[45,23,45,24],[45,25,45,26],[45,27,45,28],[45,29,45,30],[47,32,47,34],[48,1,48,14],[48,15,48,16],[48,17,48,18],[48,19,48,20],[48,21,48,22],[48,23,48,24],[48,25,48,26],[48,27,48,28],[48,29,48,30],[48,32,48,34],[47,1,47,14],[47,15,47,16],[47,17,47,18],[47,19,47,20],[47,21,47,22],[47,23,47,24],[47,25,47,26],[47,27,47,28],[47,29,47,30],[50,32,50,34],[52,1,52,34],[49,25,49,26],[49,27,49,28],[49,29,49,30],[49,32,49,34],[50,1,50,14],[50,15,50,16],[50,17,50,18],[50,19,50,20],[50,21,50,22],[50,23,50,24],[49,1,49,14],[49,15,49,16],[49,17,49,18],[49,19,49,20],[49,21,49,22],[49,23,49,24],[50,25,50,26],[50,27,50,28],[50,29,50,30]]}
[]
[null,null,null,null,null,null,null,null,null,null,null,"Create Date:",null,null,null,null,{"$f":"'Photo Sheet'!Q2:W2","v":"AUG 22/2017"}]
[null,null,null,null,null,null,null,null,null,null,null,"Vendor Name:",null,null,null,null,{"$f":"'Photo Sheet'!Q3:AI3","v":0}]
[null,null,null,null,null,null,null,null,null,null,null,"Vndr.Item No.:",null,null,null,null,{"$f":"'Photo Sheet'!Q4:W4","v":0},null,null,null,null,null,null,null,null,null,"GC Item No.:",null,null,null,{"$f":"'Photo Sheet'!AE4:AI4","v":0}]
[null,null,null,null,null,null,null,null,null,null,null,"Size Range:",null,null,null,null,{"$f":"'Photo Sheet'!Q5:W5","v":"0-6 MONTHS"},null,null,null,null,null,null,null,null,null,"Season:",null,null,"Fall Winter 2016"]
[null,null,null,null,null,null,null,null,null,null,null,"Description:",null,null,null,null,{"$f":"'Photo Sheet'!Q6:AI6","v":"BABY- SHORT SLEEVE ONESIE PRINT WITH CHEST DIAGONAL OPENING"}]
[]
[null,"GRADE BABY APPAREL SPEC SHEET -- ONSIE",null,null,null,null,null,null,null,null,null,null,null,null,null,null,null,null,null,"Date:",null,null,null,null,null,null,null,null,null,null,null,null,null,null,null,null,null,null,null,"L"]
[null,"(Measurements on flat / inches)",null,null,null,null,null,null,null,null,null,null,null,null,null,null,null,null,null,"OS",null,null,null,null,null,null,null,null,null,null,null,null,"Tolerance\n+ / -\n(on flat)",null,null,null,null,null,null,"LXL"]
[null,null,null,null,null,null,null,null,null,null,null,null,null,null,null,null,null,null,null,null,null,null,null,null,null,null,null,null,null,null,null,null,null,null,null,null,null,null,null,"M"]
[null,"BACK LENGTH FROM (HIGH SHOULDER POINT)",null,null,null,null,null,null,null,null,null,null,null,null,null,null,null,null,null,0,null,null,null,null,null,null,null,null,null,null,null,null,0.375,null,null,null,null,null,null,"S"]
[null,"CENTER BACK LENGTH ( FROM NECK TO HEM )",null,null,null,null,null,null,null,null,null,null,null,null,null,null,null,null,null,0,null,null,null,null,null,null,null,null,null,null,null,null,0.375,null,null,null,null,null,null,"SM"]
[null,"FRONT LENGTH FROM (HIGH SHOULDER POINT)",null,null,null,null,null,null,null,null,null,null,null,null,null,null,null,null,null,0,null,null,null,null,null,null,null,null,null,null,null,null,0.375,null,null,null,null,null,null,"XL"]
[null,"FRONT LENGTH (FROM CENTRE FRONT NECK TO HEM)",null,null,null,null,null,null,null,null,null,null,null,null,null,null,null,null,null,0,null,null,null,null,null,null,null,null,null,null,null,null,0.375,null,null,null,null,null,null,"XXL"]
[null,"CHEST (1\" BELOW ARMHOLE)",null,null,null,null,null,null,null,null,null,null,null,null,null,null,null,null,null,0,null,null,null,null,null,null,null,null,null,null,null,null,0.375,null,null,null,null,null,null,"XXXL"]
[null,"WAIST (16 1/2\" BELOW HIGH SHOULDER POINT)",null,null,null,null,null,null,null,null,null,null,null,null,null,null,null,null,null,0,null,null,null,null,null,null,null,null,null,null,null,null,0.375]
[null,"TOP HIP ( 19 1/2\" BELOW HSP )",null,null,null,null,null,null,null,null,null,null,null,null,null,null,null,null,null,0,null,null,null,null,null,null,null,null,null,null,null,null,0.375]
[null,"LOW HIP ( 24 1/2\" BELOW HIGH SHOULDER POINT)",null,null,null,null,null,null,null,null,null,null,null,null,null,null,null,null,null,0,null,null,null,null,null,null,null,null,null,null,null,null,0.375]
[null,"HEM STRAIGHT",null,null,null,null,null,null,null,null,null,null,null,null,null,null,null,null,null,0,null,null,null,null,null,null,null,null,null,null,null,null,0.375]
[null,"HEM CURVE (FOLLOW)",null,null,null,null,null,null,null,null,null,null,null,null,null,null,null,null,null,0,null,null,null,null,null,null,null,null,null,null,null,null,0.375]
[null,"ACROSS SHOULDERS",null,null,null,null,null,null,null,null,null,null,null,null,null,null,null,null,null,0,null,null,null,null,null,null,null,null,null,null,null,null,0.375]
[null,"ACROSS FRONT (5\" BELOW HIGH SHOULDER POINT)",null,null,null,null,null,null,null,null,null,null,null,null,null,null,null,null,null,0,null,null,null,null,null,null,null,null,null,null,null,null,0.375]
[null,"ACROSS BACK (5\" BELOW HIGH SHOULDER POINT)",null,null,null,null,null,null,null,null,null,null,null,null,null,null,null,null,null,0,null,null,null,null,null,null,null,null,null,null,null,null,0.375]
[null,"OVERARM (FROM SLEEVE CAP TO HEM)-SHORT SLEEVE",null,null,null,null,null,null,null,null,null,null,null,null,null,null,null,null,null,0,null,null,null,null,null,null,null,null,null,null,null,null,0.25]
[null,"OVERARM (FROM SLEEVE CAP TO HEM)- 3/4 SLEEVE",null,null,null,null,null,null,null,null,null,null,null,null,null,null,null,null,null,0,null,null,null,null,null,null,null,null,null,null,null,null,0.25]
[null,"OVERARM (FROM SLEEVE CAP TO HEM)- LONG SLEEVE",null,null,null,null,null,null,null,null,null,null,null,null,null,null,null,null,null,0,null,null,null,null,null,null,null,null,null,null,null,null,0.375]
[null,"1/2 ARMHOLE STRAIGHT",null,null,null,null,null,null,null,null,null,null,null,null,null,null,null,null,null,0,null,null,null,null,null,null,null,null,null,null,null,null,0.25]
[null,"BICEP (1\" BELOW ARMHOLE)",null,null,null,null,null,null,null,null,null,null,null,null,null,null,null,null,null,0,null,null,null,null,null,null,null,null,null,null,null,null,0.25]
[null,"ELBOW (8 1/2\" BELOW ARMHOLE)",null,null,null,null,null,null,null,null,null,null,null,null,null,null,null,null,null,0,null,null,null,null,null,null,null,null,null,null,null,null,0.25]
[null,"SHORT SLEEVE OPENING",null,null,null,null,null,null,null,null,null,null,null,null,null,null,null,null,null,0,null,null,null,null,null,null,null,null,null,null,null,null,0.25]
[null,"3/4 SLEEVE OPENING",null,null,null,null,null,null,null,null,null,null,null,null,null,null,null,null,null,0,null,null,null,null,null,null,null,null,null,null,null,null,0.25]
[null,"LONG SLEEVE OPENING",null,null,null,null,null,null,null,null,null,null,null,null,null,null,null,null,null,0,null,null,null,null,null,null,null,null,null,null,null,null,0.25]
[null,"SLEEVE CAP HEIGHT ( FROM TOP OF SLEEVE TO UNDERARM )",null,null,null,null,null,null,null,null,null,null,null,null,null,null,null,null,null,0,null,null,null,null,null,null,null,null,null,null,null,null,"1/4"]
[null,"SHOULDER SLOPE ( HSP TO SHOULDER ARMHOLE SEAM )",null,null,null,null,null,null,null,null,null,null,null,null,null,null,null,null,null,0,null,null,null,null,null,null,null,null,null,null,null,null,0]
[null,"NECK WIDTH (HSP TO HSP) ON BACK",null,null,null,null,null,null,null,null,null,null,null,null,null,null,null,null,null,0,null,null,null,null,null,null,null,null,null,null,null,null,0.25]
[null,"FRONT NECK DROP ( FROM HSP TO C.F.NECK EDGE OR SEAM )",null,null,null,null,null,null,null,null,null,null,null,null,null,null,null,null,null,0,null,null,null,null,null,null,null,null,null,null,null,null,0.25]
[null,"BACK NECK DROP ( FROM HSP TO C.B. NECK EDGE OR SEAM )",null,null,null,null,null,null,null,null,null,null,null,null,null,null,null,null,null,0,null,null,null,null,null,null,null,null,null,null,null,null,0.25]
[null,"1/2 NECK CIRCUMFERENCE",null,null,null,null,null,null,null,null,null,null,null,null,null,null,null,null,null,0,null,null,null,null,null,null,null,null,null,null,null,null,0.25]
[null,"COLLAR DEPTH ( AT C.B. NECK )",null,null,null,null,null,null,null,null,null,null,null,null,null,null,null,null,null,0,null,null,null,null,null,null,null,null,null,null,null,null,0]
[null,"STAND DEPTH",null,null,null,null,null,null,null,null,null,null,null,null,null,null,null,null,null,0,null,null,null,null,null,null,null,null,null,null,null,null,0]
[null,"COLLAR LENGTH",null,null,null,null,null,null,null,null,null,null,null,null,null,null,null,null,null,0,null,null,null,null,null,null,null,null,null,null,null,null,0.25]
[null,"NECK TRIM DEPTH",null,null,null,null,null,null,null,null,null,null,null,null,null,null,null,null,null,0,null,null,null,null,null,null,null,null,null,null,null,null,0]
[null,"CUFF DEPTH",null,null,null,null,null,null,null,null,null,null,null,null,null,null,null,null,null,0,null,null,null,null,null,null,null,null,null,null,null,null,0]
[null,"SLEEVE HEM DEPTH",null,null,null,null,null,null,null,null,null,null,null,null,null,null,null,null,null,0,null,null,null,null,null,null,null,null,null,null,null,null,0]
[null,"BOTTOM HEM DEPTH",null,null,null,null,null,null,null,null,null,null,null,null,null,null,null,null,null,0,null,null,null,null,null,null,null,null,null,null,null,null,0]
[null,"BACK HEM WIDTH ( STRAIGHT FROM SEAM TO SEAM )",null,null,null,null,null,null,null,null,null,null,null,null,null,null,null,null,null,0,null,null,null,null,null,null,null,null,null,null,null,null,0.375]
[]
[null,"HOOD DEPTH AT CENTRE FRONT ( TOP HOOD TO NECK)",null,null,null,null,null,null,null,null,null,null,null,null,null,null,null,null,null,0,null,null,null,null,null,null,null,null,null,null,null,null,0.25]
[null,"HOOD DEPTH AT SHOULDER ( TOP HOOD TO SHOULDER SEAM)",null,null,null,null,null,null,null,null,null,null,null,null,null,null,null,null,null,0,null,null,null,null,null,null,null,null,null,null,null,null,0.25]
[null,"HOOD WIDTH (4\" BELOW TOP OF HOOD)",null,null,null,null,null,null,null,null,null,null,null,null,null,null,null,null,null,0,null,null,null,null,null,null,null,null,null,null,null,null,0.25]
[null,"HOOD OVERHEAD ( FOLLOWED ALONG C.B. SEAM )",null,null,null,null,null,null,null,null,null,null,null,null,null,null,null,null,null,0,null,null,null,null,null,null,null,null,null,null,null,null,0.375]
[null,"Sample Approved?"]
[null,"If sample is NOT approved, then submit 2nd Pre-Production Samples. If sample is APPROVED, then submit Production Samples."]

{"sheet":"Labels","index":19,"n_rows":15,"n_cols":40,"rows_kept":15,"cut":false,"hidden":true,"merged":[[5,16,5,34],[6,1,6,34],[7,1,7,18],[7,19,7,22],[7,23,7,31],[1,16,1,22],[2,16,2,34],[3,16,3,22],[3,30,3,34],[4,16,4,22],[4,29,4,34]]}
[]
[null,null,null,null,null,null,null,null,null,null,null,"Create Date:",null,null,null,null,{"$f":"'Photo Sheet'!Q2:W2","v":"AUG 22/2017"}]
[null,null,null,null,null,null,null,null,null,null,null,"Vendor Name:",null,null,null,null,{"$f":"'Photo Sheet'!Q3:AI3","v":0}]
[null,null,null,null,null,null,null,null,null,null,null,"Vndr.Item No.:",null,null,null,null,{"$f":"'Photo Sheet'!Q4:W4","v":0},null,null,null,null,null,null,null,null,null,"GC Item No.:",null,null,null,{"$f":"'Photo Sheet'!AE4:AI4","v":0}]
[null,null,null,null,null,null,null,null,null,null,null,"Size Range:",null,null,null,null,{"$f":"'Photo Sheet'!Q5:W5","v":"0-6 MONTHS"},null,null,null,null,null,null,null,null,null,"Season:",null,null,"Fall Winter 2016"]
[null,null,null,null,null,null,null,null,null,null,null,"Description:",null,null,null,null,{"$f":"'Photo Sheet'!Q6:AI6","v":"BABY- SHORT SLEEVE ONESIE PRINT WITH CHEST DIAGONAL OPENING"}]
[]
[null,"LABELS",null,null,null,null,null,null,null,null,null,null,null,null,null,null,null,null,null,"Date:",null,null,null,null,null,null,null,null,null,null,null,null,null,null,null,null,null,null,null,"L"]
[null,null,null,null,null,null,null,null,null,null,null,null,null,null,null,null,null,null,null,null,null,null,null,null,null,null,null,null,null,null,null,null,null,null,null,null,null,null,null,"LXL"]
[null,null,null,null,null,null,null,null,null,null,null,null,null,null,null,null,null,null,null,null,null,null,null,null,null,null,null,null,null,null,null,null,null,null,null,null,null,null,null,"M"]
[null,null,null,null,null,null,null,null,null,null,null,null,null,null,null,null,null,null,null,null,null,null,null,null,null,null,null,null,null,null,null,null,null,null,null,null,null,null,null,"S"]
[null,null,null,null,null,null,null,null,null,null,null,null,null,null,null,null,null,null,null,null,null,null,null,null,null,null,null,null,null,null,null,null,null,null,null,null,null,null,null,"SM"]
[null,null,null,null,null,null,null,null,null,null,null,null,null,null,null,null,null,null,null,null,null,null,null,null,null,null,null,null,null,null,null,null,null,null,null,null,null,null,null,"XL"]
[null,null,null,null,null,null,null,null,null,null,null,null,null,null,null,null,null,null,null,null,null,null,null,null,null,null,null,null,null,null,null,null,null,null,null,null,null,null,null,"XXL"]
[null,null,null,null,null,null,null,null,null,null,null,null,null,null,null,null,null,null,null,null,null,null,null,null,null,null,null,null,null,null,null,null,null,null,null,null,null,null,null,"XXXL"]

{"sheet":"Pre-Production Sample","index":20,"n_rows":53,"n_cols":40,"rows_kept":53,"cut":false,"hidden":true,"merged":[[45,1,45,14],[45,32,45,34],[46,1,46,14],[46,32,46,34],[43,1,43,14],[43,32,43,34],[44,1,44,14],[44,32,44,34],[41,1,41,14],[41,32,41,34],[42,1,42,14],[42,32,42,34],[41,15,41,16],[41,17,41,18],[42,15,42,16],[42,17,42,18],[43,15,43,16],[43,17,43,18],[44,15,44,16],[44,17,44,18],[45,15,45,16],[45,17,45,18],[46,15,46,16],[46,17,46,18],[52,1,52,34],[49,1,49,14],[49,32,49,34],[50,1,50,14],[50,32,50,34],[47,1,47,14],[47,32,47,34],[48,1,48,14],[48,32,48,34],[47,15,47,16],[47,17,47,18],[48,15,48,16],[48,17,48,18],[49,15,49,16],[49,17,49,18],[50,15,50,16],[50,17,50,18],[47,19,47,20],[47,21,47,22],[48,19,48,20],[48,21,48,22],[49,19,49,20],[49,21,49,22],[50,19,50,20],[39,32,39,34],[40,1,40,14],[40,32,40,34],[37,1,37,14],[37,32,37,34],[38,1,38,14],[38,32,38,34],[35,1,35,14],[35,32,35,34],[36,1,36,14],[36,32,36,34],[39,1,39,14],[35,15,35,16],[35,17,35,18],[36,15,36,16],[36,17,36,18],[37,15,37,16],[37,17,37,18],[38,15,38,16],[38,17,38,18],[39,15,39,16],[39,17,39,18],[40,15,40,16],[40,17,40,18],[33,1,33,14],[33,32,33,34],[34,1,34,14],[34,32,34,34],[31,1,31,14],[31,32,31,34],[32,1,32,14],[32,32,32,34],[29,1,29,14],[29,32,29,34],[30,1,30,14],[30,32,30,34],[29,15,29,16],[29,17,29,18],[30,15,30,16],[30,17,30,18],[31,15,31,16],[31,17,31,18],[32,15,32,16],[32,17,32,18],[33,15,33,16],[33,17,33,18],[34,15,34,16],[34,17,34,18],[27,1,27,14],[27,32,27,34],[28,1,28,14],[28,32,28,34],[25,1,25,14],[25,32,25,34],[26,1,26,14],[26,32,26,34],[23,1,23,14],[23,32,23,34],[24,1,24,14],[24,32,24,34],[23,15,23,16],[23,17,23,18],[24,15,24,16],[24,17,24,18],[25,15,25,16],[25,17,25,18],[26,15,26,16],[26,17,26,18],[27,15,27,16],[27,17,27,18],[28,15,28,16],[28,17,28,18],[21,1,21,14],[21,32,21,34],[22,1,22,14],[22,32,22,34],[19,1,19,14],[19,32,19,34],[20,1,20,14],[20,32,20,34],[17,1,17,14],[17,32,17,34],[18,1,18,14],[18,32,18,34],[17,15,17,16],[17,17,17,18],[18,15,18,16],[18,17,18,18],[19,15,19,16],[19,17,19,18],[20,15,20,16],[20,17,20,18],[21,15,21,16],[21,17,21,18],[22,15,22,16],[22,17,22,18],[15,1,15,14],[15,32,15,34],[16,1,16,14],[16,32,16,34],[13,1,13,14],[13,32,13,34],[14,1,14,14],[14,32,14,34],[11,1,11,14],[11,32,11,34],[12,1,12,14],[12,32,12,34],[11,15,11,16],[15,15,15,16],[15,17,15,18],[16,15,16,16],[16,17,16,18],[15,19,15,20],[15,21,15,22],[16,19,16,20],[16,21,16,22],[15,27,15,28],[15,29,15,30],[16,27,16,28],[1,16,1,22],[2,16,2,34],[3,16,3,22],[3,30,3,34],[4,16,4,22],[10,1,10,14],[10,32,10,34],[5,16,5,34],[7,1,7,18],[7,19,7,22],[7,23,7,31],[8,1,9,14],[8,32,9,34],[8,15,9,16],[8,19,9,20],[8,23,9,24],[8,27,9,28],[4,29,4,34],[10,15,10,16],[10,17,10,18],[8,17,8,18],[9,17,9,18],[10,27,10,28],[10,29,10,30],[11,17,11,18],[12,15,12,16],[12,17,12,18],[13,15,13,16],[13,17,13,18],[14,15,14,16],[14,17,14,18],[10,19,10,20],[10,21,10,22],[11,19,11,20],[11,21,11,22],[12,19,12,20],[12,21,12,22],[13,19,13,20],[13,21,13,22],[14,19,14,20],[14,21,14,22],[17,19,17,20],[17,21,17,22],[18,19,18,20],[18,21,18,22],[19,19,19,20],[19,21,19,22],[20,19,20,20],[20,21,20,22],[21,19,21,20],[21,21,21,22],[22,19,22,20],[22,21,22,22],[23,19,23,20],[23,21,23,22],[24,19,24,20],[24,21,24,22],[25,19,25,20],[25,21,25,22],[26,19,26,20],[26,21,26,22],[27,19,27,20],[27,21,27,22],[28,19,28,20],[28,21,28,22],[29,19,29,20],[29,21,29,22],[30,19,30,20],[30,21,30,22],[31,19,31,20],[31,21,31,22],[32,19,32,20],[32,21,32,22],[33,19,33,20],[33,21,33,22],[34,19,34,20],[34,21,34,22],[35,19,35,20],[35,21,35,22],[36,19,36,20],[36,21,36,22],[37,19,37,20],[37,21,37,22],[38,19,38,20],[38,21,38,22],[39,19,39,20],[39,21,39,22],[40,19,40,20],[40,21,40,22],[41,19,41,20],[41,21,41,22],[42,19,42,20],[42,21,42,22],[43,19,43,20],[43,21,43,22],[44,19,44,20],[44,21,44,22],[45,19,45,20],[45,21,45,22],[46,19,46,20],[46,21,46,22],[50,21,50,22],[10,23,10,24],[10,25,10,26],[11,23,11,24],[11,25,11,26],[12,23,12,24],[12,25,12,26],[13,23,13,24],[13,25,13,26],[14,23,14,24],[14,25,14,26],[15,23,15,24],[15,25,15,26],[16,23,16,24],[16,25,16,26],[17,23,17,24],[17,25,17,26],[18,23,18,24],[18,25,18,26],[19,23,19,24],[19,25,19,26],[20,23,20,24],[20,25,20,26],[21,23,21,24],[21,25,21,26],[22,23,22,24],[22,25,22,26],[23,23,23,24],[23,25,23,26],[24,23,24,24],[24,25,24,26],[25,23,25,24],[25,25,25,26],[26,23,26,24],[26,25,26,26],[27,23,27,24],[27,25,27,26],[28,23,28,24],[28,25,28,26],[29,23,29,24],[29,25,29,26],[30,23,30,24],[30,25,30,26],[31,23,31,24],[31,25,31,26],[32,23,32,24],[32,25,32,26],[33,23,33,24],[33,25,33,26],[34,23,34,24],[34,25,34,26],[35,23,35,24],[35,25,35,26],[36,23,36,24],[36,25,36,26],[37,23,37,24],[37,25,37,26],[38,23,38,24],[38,25,38,26],[39,23,39,24],[39,25,39,26],[40,23,40,24],[40,25,40,26],[48,23,48,24],[48,25,48,26],[49,23,49,24],[49,25,49,26],[50,23,50,24],[50,25,50,26],[41,23,41,24],[41,25,41,26],[42,23,42,24],[42,25,42,26],[43,23,43,24],[43,25,43,26],[44,23,44,24],[44,25,44,26],[45,23,45,24],[45,25,45,26],[11,27,11,28],[11,29,11,30],[12,27,12,28],[12,29,12,30],[13,27,13,28],[13,29,13,30],[14,27,14,28],[14,29,14,30],[16,29,16,30],[17,27,17,28],[17,29,17,30],[18,27,18,28],[18,29,18,30],[19,27,19,28],[19,29,19,30],[20,27,20,28],[20,29,20,30],[21,27,21,28],[21,29,21,30],[22,27,22,28],[22,29,22,30],[23,27,23,28],[23,29,23,30],[24,27,24,28],[24,29,24,30],[25,27,25,28],[25,29,25,30],[33,27,33,28],[33,29,33,30],[26,27,26,28],[26,29,26,30],[27,27,27,28],[27,29,27,30],[28,27,28,28],[28,29,28,30],[29,27,29,28],[29,29,29,30],[30,27,30,28],[30,29,30,30],[32,29,32,30],[8,21,8,22],[9,21,9,22],[8,25,8,26],[9,25,9,26],[8,29,8,30],[9,29,9,30],[46,27,46,28],[46,29,46,30],[47,27,47,28],[47,29,47,30],[36,27,36,28],[36,29,36,30],[37,27,37,28],[37,29,37,30],[38,27,38,28],[38,29,38,30],[39,27,39,28],[39,29,39,30],[40,27,40,28],[41,27,41,28],[41,29,41,30],[42,27,42,28],[42,29,42,30],[43,27,43,28],[40,29,40,30],[31,27,31,28],[31,29,31,30],[32,27,32,28],[34,27,34,28],[34,29,34,30],[35,27,35,28],[35,29,35,30],[51,15,51,34],[48,27,48,28],[48,29,48,30],[49,27,49,28],[49,29,49,30],[50,27,50,28],[50,29,50,30],[43,29,43,30],[44,27,44,28],[44,29,44,30],[45,27,45,28],[45,29,45,30],[46,23,46,24],[46,25,46,26],[47,23,47,24],[47,25,47,26]]}
[]
[null,null,null,null,null,null,null,null,null,null,null,"Create Date:",null,null,null,null,{"$f":"'Photo Sheet'!Q2:W2","v":"AUG 22/2017"}]
[null,null,null,null,null,null,null,null,null,null,null,"Vendor Name:",null,null,null,null,{"$f":"'Photo Sheet'!Q3:AI3","v":0}]
[null,null,null,null,null,null,null,null,null,null,null,"Vndr.Item No.:",null,null,null,null,{"$f":"'Photo Sheet'!Q4:W4","v":0},null,null,null,null,null,null,null,null,null,"GC Item No.:",null,null,null,{"$f":"'Photo Sheet'!AE4:AI4","v":0}]
[null,null,null,null,null,null,null,null,null,null,null,"Size Range:",null,null,null,null,{"$f":"'Photo Sheet'!Q5:W5","v":"0-6 MONTHS"},null,null,null,null,null,null,null,null,null,"Season:",null,null,"Fall Winter 2016"]
[null,null,null,null,null,null,null,null,null,null,null,"Description:",null,null,null,null,{"$f":"'Photo Sheet'!Q6:AI6","v":"BABY- SHORT SLEEVE ONESIE PRINT WITH CHEST DIAGONAL OPENING"}]
[]
[null,"PRE-PRODUCTION COMMENTS --ONSIE",null,null,null,null,null,null,null,null,null,null,null,null,null,null,null,null,null,"Date:",null,null,null,null,null,null,null,null,null,null,null,null,null,null,null,null,null,null,null,"S"]
[null,"(Measurements on flat / inches)",null,null,null,null,null,null,null,null,null,null,null,null,null,"S",null,null,null,"M",null,null,null,"L",null,null,null,"XL",null,null,null,null,"Tolerance\n+ / -\n(on flat)",null,null,null,null,null,null,"M"]
[null,null,null,null,null,null,null,null,null,null,null,null,null,null,null,null,null,null,null,null,null,null,null,null,null,null,null,null,null,null,null,null,null,null,null,null,null,null,null,"L"]
[null,{"$f":"'Apparel Spec Sheet'!B11:O11","v":"BACK TORSO LENGTH( HSP TO BACK CROTH -UNDOMED)"},null,null,null,null,null,null,null,null,null,null,null,null,null,null,null,null,null,null,null,null,null,null,null,null,null,null,null,null,null,null,0.375,null,null,null,null,null,null,"XL"]
[null,{"$f":"'Apparel Spec Sheet'!B12:O12","v":"CENTER BACK LENGTH( C.B. NECK TO HEM"},null,null,null,null,null,null,null,null,null,null,null,null,null,null,null,null,null,null,null,null,null,null,null,null,null,null,null,null,null,null,0.375,null,null,null,null,null,null,"SM"]
[null,{"$f":"'Apparel Spec Sheet'!B14:O14","v":"CHEST( 1/2\" BELOW ARMHOLE"},null,null,null,null,null,null,null,null,null,null,null,null,null,null,null,null,null,null,null,null,null,null,null,null,null,null,null,null,null,null,0.375,null,null,null,null,null,null,"LXL"]
[null,"FRONT LENGTH (FROM CENTRE FRONT NECK TO HEM)",null,null,null,null,null,null,null,null,null,null,null,null,null,null,null,null,null,null,null,null,null,null,null,null,null,null,null,null,null,null,0.375,null,null,null,null,null,null,"OS"]
[null,{"$f":"'Apparel Spec Sheet'!B15:O15","v":"WAIST"},null,null,null,null,null,null,null,null,null,null,null,null,null,null,null,null,null,null,null,null,null,null,null,null,null,null,null,null,null,null,0.375,null,null,null,null,null,null,"1X"]
[null,{"$f":"'Apparel Spec Sheet'!B16:O16","v":"HIP ( TOP OF LEG OPENING)"},null,null,null,null,null,null,null,null,null,null,null,null,null,null,null,null,null,null,null,null,null,null,null,null,null,null,null,null,null,null,0.375,null,null,null,null,null,null,"2X"]
[null,{"$f":"'Apparel Spec Sheet'!B17:O17","v":"HEM STRAIGHT"},null,null,null,null,null,null,null,null,null,null,null,null,null,null,null,null,null,null,null,null,null,null,null,null,null,null,null,null,null,null,0.375,null,null,null,null,null,null,"3X"]
[null,{"$f":"'Apparel Spec Sheet'!B18:O18","v":"ACROSS SHOULDERS"},null,null,null,null,null,null,null,null,null,null,null,null,null,null,null,null,null,null,null,null,null,null,null,null,null,null,null,null,null,null,0.375]
[null,{"$f":"'Apparel Spec Sheet'!B19:O19","v":"SHOULDER SEAM LENGTH"},null,null,null,null,null,null,null,null,null,null,null,null,null,null,null,null,null,null,null,null,null,null,null,null,null,null,null,null,null,null,0.375]
[null,"HEM CURVE (FOLLOW)",null,null,null,null,null,null,null,null,null,null,null,null,null,null,null,null,null,null,null,null,null,null,null,null,null,null,null,null,null,null,0.375]
[null,{"$f":"'Apparel Spec Sheet'!B21:O21","v":"ACROSS BACK ( MID ARMHOLE)"},null,null,null,null,null,null,null,null,null,null,null,null,null,null,null,null,null,null,null,null,null,null,null,null,null,null,null,null,null,null,0.375]
[null,{"$f":"'Apparel Spec Sheet'!B22:O22","v":"RAGLAN ACROSS FRONT ( MID ARMHOLE)"},null,null,null,null,null,null,null,null,null,null,null,null,null,null,null,null,null,null,null,null,null,null,null,null,null,null,null,null,null,null,0.375]
[null,{"$f":"'Apparel Spec Sheet'!B23:O23","v":"RAGLAN ACROSS BACK ( MIS ARMHOLE)"},null,null,null,null,null,null,null,null,null,null,null,null,null,null,null,null,null,null,null,null,null,null,null,null,null,null,null,null,null,null,0.375]
[null,{"$f":"'Apparel Spec Sheet'!B24:O24","v":"OVERARM - SLEEVE CAP TO HEM - SHORT SLEEVE"},null,null,null,null,null,null,null,null,null,null,null,null,null,null,null,null,null,null,null,null,null,null,null,null,null,null,null,null,null,null,0.25]
[null,{"$f":"'Apparel Spec Sheet'!B25:O25","v":"OVERARM - SLEEVE CAP TO HEM - 3/4  SLEEVE"},null,null,null,null,null,null,null,null,null,null,null,null,null,null,null,null,null,null,null,null,null,null,null,null,null,null,null,null,null,null,0.25]
[null,{"$f":"'Apparel Spec Sheet'!B26:O26","v":"OVERARM - SLEEVE CAP TO HEM - LONG SLEEVE"},null,null,null,null,null,null,null,null,null,null,null,null,null,null,null,null,null,null,null,null,null,null,null,null,null,null,null,null,null,null,0.375]
[null,{"$f":"'Apparel Spec Sheet'!B27:O27","v":"OVERARM ( NECK TO SLEEVE HEM)"},null,null,null,null,null,null,null,null,null,null,null,null,null,null,null,null,null,null,null,null,null,null,null,null,null,null,null,null,null,null,0.25]
[null,{"$f":"'Apparel Spec Sheet'!B28:O28","v":"1/2 ARMHOLE STRAIGHT"},null,null,null,null,null,null,null,null,null,null,null,null,null,null,null,null,null,null,null,null,null,null,null,null,null,null,null,null,null,null,0.25]
[null,{"$f":"'Apparel Spec Sheet'!B29:O29","v":"FRONT RAGLAN LENGTH ON SEAM"},null,null,null,null,null,null,null,null,null,null,null,null,null,null,null,null,null,null,null,null,null,null,null,null,null,null,null,null,null,null,0.25]
[null,{"$f":"'Apparel Spec Sheet'!B30:O30","v":"BACK RAGLAN LENGTH ON SEAM"},null,null,null,null,null,null,null,null,null,null,null,null,null,null,null,null,null,null,null,null,null,null,null,null,null,null,null,null,null,null,0.25]
[null,{"$f":"'Apparel Spec Sheet'!B31:O31","v":"BICEP ( AT ARMHOLE SEAM)"},null,null,null,null,null,null,null,null,null,null,null,null,null,null,null,null,null,null,null,null,null,null,null,null,null,null,null,null,null,null,0.25]
[null,{"$f":"'Apparel Spec Sheet'!B32:O32","v":"ELBOW"},null,null,null,null,null,null,null,null,null,null,null,null,null,null,null,null,null,null,null,null,null,null,null,null,null,null,null,null,null,null,0.25]
[null,{"$f":"'Apparel Spec Sheet'!B33:O33","v":"SHORT SLEEVE OPENING"},null,null,null,null,null,null,null,null,null,null,null,null,null,null,null,null,null,null,null,null,null,null,null,null,null,null,null,null,null,null,"1/4"]
[null,{"$f":"'Apparel Spec Sheet'!B34:O34","v":"3/4 SLEEVE OPENING"},null,null,null,null,null,null,null,null,null,null,null,null,null,null,null,null,null,null,null,null,null,null,null,null,null,null,null,null,null,null,0]
[null,{"$f":"'Apparel Spec Sheet'!B35:O35","v":"LONG SLEEVE OPENING"},null,null,null,null,null,null,null,null,null,null,null,null,null,null,null,null,null,null,null,null,null,null,null,null,null,null,null,null,null,null,0.25]
[null,{"$f":"'Apparel Spec Sheet'!B36:O36","v":"SLEEEVE CAP HEIGHT"},null,null,null,null,null,null,null,null,null,null,null,null,null,null,null,null,null,null,null,null,null,null,null,null,null,null,null,null,null,null,0.25]
[null,{"$f":"'Apparel Spec Sheet'!B37:O37","v":"NECK WIDTH ( ON BACK BETWEEN TRIM)"},null,null,null,null,null,null,null,null,null,null,null,null,null,null,null,null,null,null,null,null,null,null,null,null,null,null,null,null,null,null,0.25]
[null,{"$f":"'Apparel Spec Sheet'!B38:O38","v":"FRONT NECK DROP"},null,null,null,null,null,null,null,null,null,null,null,null,null,null,null,null,null,null,null,null,null,null,null,null,null,null,null,null,null,null,0.25]
[null,{"$f":"'Apparel Spec Sheet'!B39:O39","v":"BACK NECK DROP"},null,null,null,null,null,null,null,null,null,null,null,null,null,null,null,null,null,null,null,null,null,null,null,null,null,null,null,null,null,null,0]
[null,{"$f":"'Apparel Spec Sheet'!B40:O40","v":"1/2 NECK CIRECUMFERENCE - RELAXED"},null,null,null,null,null,null,null,null,null,null,null,null,null,null,null,null,null,null,null,null,null,null,null,null,null,null,null,null,null,null,0]
[null,{"$f":"'Apparel Spec Sheet'!B41:O41","v":"1/2 NECK CIRECUMFERENCE -EXTENDED"},null,null,null,null,null,null,null,null,null,null,null,null,null,null,null,null,null,null,null,null,null,null,null,null,null,null,null,null,null,null,0.25]
[null,{"$f":"'Apparel Spec Sheet'!B42:O42","v":"COLLAR DEPTH AT C.B NECK"},null,null,null,null,null,null,null,null,null,null,null,null,null,null,null,null,null,null,null,null,null,null,null,null,null,null,null,null,null,null,0]
[null,{"$f":"'Apparel Spec Sheet'!B43:O43","v":"NECK TRIM DEPTH"},null,null,null,null,null,null,null,null,null,null,null,null,null,null,null,null,null,null,null,null,null,null,null,null,null,null,null,null,null,null,0]
[null,{"$f":"'Apparel Spec Sheet'!B44:O44","v":"CUFF DEPTH"},null,null,null,null,null,null,null,null,null,null,null,null,null,null,null,null,null,null,null,null,null,null,null,null,null,null,null,null,null,null,0]
[null,{"$f":"'Apparel Spec Sheet'!B45:O45","v":"SLEEVE HEM DEPTH"},null,null,null,null,null,null,null,null,null,null,null,null,null,null,null,null,null,null,null,null,null,null,null,null,null,null,null,null,null,null,0]
[null,{"$f":"'Apparel Spec Sheet'!B46:O46","v":"BOTTOM HEM DEPTH"},null,null,null,null,null,null,null,null,null,null,null,null,null,null,null,null,null,null,null,null,null,null,null,null,null,null,null,null,null,null,0.375]
[null,{"$f":"'Apparel Spec Sheet'!B47:O47","v":"THIGH ( 1/2\" BELOW CROTCH)"}]
[null,{"$f":"'Apparel Spec Sheet'!B48:O48","v":"KNEE WIDTH"},null,null,null,null,null,null,null,null,null,null,null,null,null,null,null,null,null,null,null,null,null,null,null,null,null,null,null,null,null,null,0.25]
[null,{"$f":"'Apparel Spec Sheet'!B49:O49","v":"LEG OPENING WIDTH"},null,null,null,null,null,null,null,null,null,null,null,null,null,null,null,null,null,null,null,null,null,null,null,null,null,null,null,null,null,null,0.25]
[null,{"$f":"'Apparel Spec Sheet'!B50:O50","v":"FRONT CROTCH WIDTH"},null,null,null,null,null,null,null,null,null,null,null,null,null,null,null,null,null,null,null,null,null,null,null,null,null,null,null,null,null,null,0.25]
[null,{"$f":"'Apparel Spec Sheet'!B51:O51","v":"SAM E BODY FIT AS SS18-1075- EXCEPT DIFFERENT FRONT STYLING"},null,null,null,null,null,null,null,null,null,null,null,null,null,null,null,null,null,null,null,null,null,null,null,null,null,null,null,null,null,null,0.375]
[null,"Sample Approved?"]
[null,"If sample is NOT approved, then submit 2nd Pre-Production Samples. If sample is APPROVED, then submit Production Samples."]

{"sheet":"PreProduction Photo Comments","index":21,"n_rows":15,"n_cols":40,"rows_kept":15,"cut":false,"hidden":true,"merged":[[5,16,5,34],[7,1,7,18],[7,19,7,22],[7,23,7,31],[1,16,1,22],[2,16,2,34],[3,16,3,22],[3,30,3,34],[4,16,4,22],[4,29,4,34]]}
[]
[null,null,null,null,null,null,null,null,null,null,null,"Create Date:",null,null,null,null,{"$f":"'Photo Sheet'!Q2:W2","v":"AUG 22/2017"}]
[null,null,null,null,null,null,null,null,null,null,null,"Vendor Name:",null,null,null,null,{"$f":"'Photo Sheet'!Q3:AI3","v":0}]
[null,null,null,null,null,null,null,null,null,null,null,"Vndr.Item No.:",null,null,null,null,{"$f":"'Photo Sheet'!Q4:W4","v":0},null,null,null,null,null,null,null,null,null,"GC Item No.:",null,null,null,{"$f":"'Photo Sheet'!AE4:AI4","v":0}]
[null,null,null,null,null,null,null,null,null,null,null,"Size Range:",null,null,null,null,{"$f":"'Photo Sheet'!Q5:W5","v":"0-6 MONTHS"},null,null,null,null,null,null,null,null,null,"Season:",null,null,"Fall Winter 2016"]
[null,null,null,null,null,null,null,null,null,null,null,"Description:",null,null,null,null,{"$f":"'Photo Sheet'!Q6:AI6","v":"BABY- SHORT SLEEVE ONESIE PRINT WITH CHEST DIAGONAL OPENING"}]
[]
[null,"PRE-PRODUCTION PHOTO COMMENTS--ONSIE",null,null,null,null,null,null,null,null,null,null,null,null,null,null,null,null,null,"Date:",null,null,null,null,null,null,null,null,null,null,null,null,null,null,null,null,null,null,null,"L"]
[null,null,null,null,null,null,null,null,null,null,null,null,null,null,null,null,null,null,null,null,null,null,null,null,null,null,null,null,null,null,null,null,null,null,null,null,null,null,null,"LXL"]
[null,null,null,null,null,null,null,null,null,null,null,null,null,null,null,null,null,null,null,null,null,null,null,null,null,null,null,null,null,null,null,null,null,null,null,null,null,null,null,"M"]
[null,null,null,null,null,null,null,null,null,null,null,null,null,null,null,null,null,null,null,null,null,null,null,null,null,null,null,null,null,null,null,null,null,null,null,null,null,null,null,"S"]
[null,null,null,null,null,null,null,null,null,null,null,null,null,null,null,null,null,null,null,null,null,null,null,null,null,null,null,null,null,null,null,null,null,null,null,null,null,null,null,"SM"]
[null,null,null,null,null,null,null,null,null,null,null,null,null,null,null,null,null,null,null,null,null,null,null,null,null,null,null,null,null,null,null,null,null,null,null,null,null,null,null,"XL"]
[null,null,null,null,null,null,null,null,null,null,null,null,null,null,null,null,null,null,null,null,null,null,null,null,null,null,null,null,null,null,null,null,null,null,null,null,null,null,null,"XXL"]
[null,null,null,null,null,null,null,null,null,null,null,null,null,null,null,null,null,null,null,null,null,null,null,null,null,null,null,null,null,null,null,null,null,null,null,null,null,null,null,"XXXL"]

{"sheet":"PACKAGING","index":22,"n_rows":15,"n_cols":40,"rows_kept":15,"cut":false,"hidden":true,"merged":[[5,16,5,34],[6,1,6,34],[7,1,7,18],[7,19,7,22],[7,23,7,31],[1,16,1,22],[2,16,2,34],[3,16,3,22],[3,30,3,34],[4,16,4,22],[4,29,4,34]]}
[]
[null,null,null,null,null,null,null,null,null,null,null,"Create Date:",null,null,null,null,{"$f":"'Photo Sheet'!Q2:W2","v":"AUG 22/2017"}]
[null,null,null,null,null,null,null,null,null,null,null,"Vendor Name:",null,null,null,null,{"$f":"'Photo Sheet'!Q3:AI3","v":0}]
[null,null,null,null,null,null,null,null,null,null,null,"Vndr.Item No.:",null,null,null,null,{"$f":"'Photo Sheet'!Q4:W4","v":0},null,null,null,null,null,null,null,null,null,"GC Item No.:",null,null,null,{"$f":"'Photo Sheet'!AE4:AI4","v":0}]
[null,null,null,null,null,null,null,null,null,null,null,"Size Range:",null,null,null,null,{"$f":"'Photo Sheet'!Q5:W5","v":"0-6 MONTHS"},null,null,null,null,null,null,null,null,null,"Season:",null,null,"Fall Winter 2016"]
[null,null,null,null,null,null,null,null,null,null,null,"Description:",null,null,null,null,{"$f":"'Photo Sheet'!Q6:AI6","v":"BABY- SHORT SLEEVE ONESIE PRINT WITH CHEST DIAGONAL OPENING"}]
[]
[null,"LABELS",null,null,null,null,null,null,null,null,null,null,null,null,null,null,null,null,null,"Date:",null,null,null,null,null,null,null,null,null,null,null,null,null,null,null,null,null,null,null,"L"]
[null,null,null,null,null,null,null,null,null,null,null,null,null,null,null,null,null,null,null,null,null,null,null,null,null,null,null,null,null,null,null,null,null,null,null,null,null,null,null,"LXL"]
[null,null,null,null,null,null,null,null,null,null,null,null,null,null,null,null,null,null,null,null,null,null,null,null,null,null,null,null,null,null,null,null,null,null,null,null,null,null,null,"M"]
[null,null,null,null,null,null,null,null,null,null,null,null,null,null,null,null,null,null,null,null,null,null,null,null,null,null,null,null,null,null,null,null,null,null,null,null,null,null,null,"S"]
[null,null,null,null,null,null,null,null,null,null,null,null,null,null,null,null,null,null,null,null,null,null,null,null,null,null,null,null,null,null,null,null,null,null,null,null,null,null,null,"SM"]
[null,null,null,null,null,null,null,null,null,null,null,null,null,null,null,null,null,null,null,null,null,null,null,null,null,null,null,null,null,null,null,null,null,null,null,null,null,null,null,"XL"]
[null,null,null,null,null,null,null,null,null,null,null,null,null,null,null,null,null,null,null,null,null,null,null,null,null,null,null,null,null,null,null,null,null,null,null,null,null,null,null,"XXL"]
[null,null,null,null,null,null,null,null,null,null,null,null,null,null,null,null,null,null,null,null,null,null,null,null,null,null,null,null,null,null,null,null,null,null,null,null,null,null,null,"XXXL"]

{"sheet":"Production Sample Comments","index":23,"n_rows":53,"n_cols":41,"rows_kept":53,"cut":false,"hidden":true,"merged":[[51,17,51,35],[50,1,50,14],[50,33,50,35],[52,1,52,35],[8,19,9,20],[8,21,9,22],[8,31,9,32],[47,1,47,14],[47,33,47,35],[48,1,48,14],[48,33,48,35],[49,1,49,14],[49,33,49,35],[44,1,44,14],[44,33,44,35],[45,1,45,14],[45,33,45,35],[46,1,46,14],[46,33,46,35],[41,1,41,14],[41,33,41,35],[42,1,42,14],[42,33,42,35],[43,1,43,14],[43,33,43,35],[38,1,38,14],[38,33,38,35],[39,1,39,14],[39,33,39,35],[40,1,40,14],[40,33,40,35],[35,1,35,14],[35,33,35,35],[36,1,36,14],[36,33,36,35],[37,1,37,14],[37,33,37,35],[35,15,35,16],[36,15,36,16],[37,15,37,16],[38,15,38,16],[39,15,39,16],[40,15,40,16],[35,17,35,18],[35,19,35,20],[35,21,35,22],[35,23,35,24],[35,25,35,26],[32,1,32,14],[32,33,32,35],[33,1,33,14],[33,33,33,35],[34,1,34,14],[34,33,34,35],[29,1,29,14],[29,33,29,35],[30,1,30,14],[30,33,30,35],[31,1,31,14],[31,33,31,35],[29,15,29,16],[30,15,30,16],[31,15,31,16],[32,15,32,16],[33,15,33,16],[34,15,34,16],[29,17,29,18],[29,19,29,20],[29,21,29,22],[29,23,29,24],[29,25,29,26],[30,17,30,18],[26,1,26,14],[26,33,26,35],[27,1,27,14],[27,33,27,35],[28,1,28,14],[28,33,28,35],[23,1,23,14],[23,33,23,35],[24,1,24,14],[24,33,24,35],[25,1,25,14],[25,33,25,35],[23,15,23,16],[24,15,24,16],[25,15,25,16],[26,15,26,16],[27,15,27,16],[28,15,28,16],[23,17,23,18],[23,19,23,20],[23,21,23,22],[23,23,23,24],[23,25,23,26],[24,17,24,18],[20,1,20,14],[20,33,20,35],[21,1,21,14],[21,33,21,35],[22,1,22,14],[22,33,22,35],[17,1,17,14],[17,33,17,35],[18,1,18,14],[18,33,18,35],[19,1,19,14],[19,33,19,35],[17,15,17,16],[18,15,18,16],[19,15,19,16],[20,15,20,16],[21,15,21,16],[22,15,22,16],[17,17,17,18],[17,19,17,20],[17,21,17,22],[17,23,17,24],[17,25,17,26],[18,17,18,18],[14,1,14,14],[14,33,14,35],[15,1,15,14],[15,33,15,35],[16,1,16,14],[16,33,16,35],[11,1,11,14],[11,33,11,35],[12,1,12,14],[12,33,12,35],[13,1,13,14],[13,33,13,35],[11,15,11,16],[12,15,12,16],[13,15,13,16],[14,15,14,16],[15,15,15,16],[16,15,16,16],[12,31,12,32],[13,17,13,18],[13,19,13,20],[13,21,13,22],[13,23,13,24],[13,25,13,26],[10,1,10,14],[10,33,10,35],[5,16,5,35],[7,1,7,18],[7,19,7,22],[7,23,7,32],[8,1,9,14],[8,15,9,16],[8,17,9,18],[8,23,9,24],[10,15,10,16],[13,27,13,28],[13,29,13,30],[13,31,13,32],[1,16,1,22],[2,16,2,35],[3,16,3,22],[3,30,3,35],[4,16,4,22],[8,25,9,26],[8,27,9,28],[8,29,9,30],[8,33,9,35],[4,29,4,35],[41,15,41,16],[42,15,42,16],[43,15,43,16],[44,15,44,16],[45,15,45,16],[46,15,46,16],[47,15,47,16],[48,15,48,16],[49,15,49,16],[50,15,50,16],[10,17,10,18],[10,19,10,20],[10,21,10,22],[10,23,10,24],[10,25,10,26],[10,27,10,28],[10,29,10,30],[10,31,10,32],[11,17,11,18],[11,19,11,20],[11,21,11,22],[11,23,11,24],[11,25,11,26],[11,27,11,28],[11,29,11,30],[11,31,11,32],[12,17,12,18],[12,19,12,20],[12,21,12,22],[12,23,12,24],[12,25,12,26],[12,27,12,28],[12,29,12,30],[14,17,14,18],[14,19,14,20],[14,21,14,22],[14,23,14,24],[14,25,14,26],[14,27,14,28],[14,29,14,30],[14,31,14,32],[15,17,15,18],[15,19,15,20],[15,21,15,22],[15,23,15,24],[15,25,15,26],[15,27,15,28],[15,29,15,30],[15,31,15,32],[16,17,16,18],[16,19,16,20],[16,21,16,22],[16,23,16,24],[16,25,16,26],[16,27,16,28],[16,29,16,30],[16,31,16,32],[17,29,17,30],[17,31,17,32],[17,27,17,28],[18,19,18,20],[18,21,18,22],[18,23,18,24],[18,25,18,26],[18,27,18,28],[18,29,18,30],[18,31,18,32],[19,17,19,18],[19,19,19,20],[19,21,19,22],[19,23,19,24],[19,25,19,26],[19,27,19,28],[19,29,19,30],[19,31,19,32],[20,17,20,18],[20,19,20,20],[20,21,20,22],[20,23,20,24],[20,25,20,26],[20,27,20,28],[20,29,20,30],[20,31,20,32],[21,17,21,18],[21,19,21,20],[21,21,21,22],[21,23,21,24],[21,25,21,26],[21,27,21,28],[21,29,21,30],[21,31,21,32],[22,17,22,18],[22,19,22,20],[22,21,22,22],[22,23,22,24],[22,25,22,26],[22,27,22,28],[22,29,22,30],[22,31,22,32],[23,29,23,30],[23,31,23,32],[23,27,23,28],[24,19,24,20],[24,21,24,22],[24,23,24,24],[24,25,24,26],[24,27,24,28],[24,29,24,30],[24,31,24,32],[25,17,25,18],[25,19,25,20],[25,21,25,22],[25,23,25,24],[25,25,25,26],[25,27,25,28],[25,29,25,30],[25,31,25,32],[26,17,26,18],[26,19,26,20],[26,21,26,22],[26,23,26,24],[26,25,26,26],[26,27,26,28],[26,29,26,30],[26,31,26,32],[27,17,27,18],[27,19,27,20],[27,21,27,22],[27,23,27,24],[27,25,27,26],[27,27,27,28],[27,29,27,30],[27,31,27,32],[28,17,28,18],[28,19,28,20],[28,21,28,22],[28,23,28,24],[28,25,28,26],[28,27,28,28],[28,29,28,30],[28,31,28,32],[29,29,29,30],[29,31,29,32],[29,27,29,28],[30,19,30,20],[30,21,30,22],[30,23,30,24],[30,25,30,26],[30,27,30,28],[30,29,30,30],[30,31,30,32],[31,17,31,18],[31,19,31,20],[31,21,31,22],[31,23,31,24],[31,25,31,26],[31,27,31,28],[31,29,31,30],[31,31,31,32],[32,17,32,18],[32,19,32,20],[32,21,32,22],[32,23,32,24],[32,25,32,26],[32,27,32,28],[32,29,32,30],[32,31,32,32],[33,17,33,18],[33,19,33,20],[33,21,33,22],[33,23,33,24],[33,25,33,26],[33,27,33,28],[33,29,33,30],[33,31,33,32],[34,17,34,18],[34,19,34,20],[34,21,34,22],[34,23,34,24],[34,25,34,26],[34,27,34,28],[34,29,34,30],[34,31,34,32],[35,29,35,30],[35,31,35,32],[35,27,35,28],[36,17,36,18],[36,19,36,20],[36,21,36,22],[36,23,36,24],[36,25,36,26],[36,27,36,28],[36,29,36,30],[36,31,36,32],[37,17,37,18],[37,19,37,20],[37,21,37,22],[37,23,37,24],[37,25,37,26],[37,27,37,28],[37,29,37,30],[37,31,37,32],[38,17,38,18],[38,19,38,20],[38,21,38,22],[38,23,38,24],[38,25,38,26],[38,27,38,28],[38,29,38,30],[38,31,38,32],[39,17,39,18],[39,19,39,20],[39,21,39,22],[39,23,39,24],[39,25,39,26],[39,27,39,28],[39,29,39,30],[39,31,39,32],[40,17,40,18],[40,19,40,20],[40,21,40,22],[40,23,40,24],[40,25,40,26],[40,27,40,28],[40,29,40,30],[40,31,40,32],[41,17,41,18],[41,19,41,20],[41,21,41,22],[41,23,41,24],[41,25,41,26],[41,27,41,28],[41,29,41,30],[41,31,41,32],[42,17,42,18],[42,19,42,20],[42,21,42,22],[42,23,42,24],[42,25,42,26],[42,27,42,28],[42,29,42,30],[42,31,42,32],[43,17,43,18],[43,19,43,20],[43,21,43,22],[43,23,43,24],[43,25,43,26],[43,27,43,28],[43,29,43,30],[43,31,43,32],[44,17,44,18],[44,19,44,20],[44,21,44,22],[44,23,44,24],[44,25,44,26],[44,27,44,28],[44,29,44,30],[44,31,44,32],[45,17,45,18],[45,19,45,20],[45,21,45,22],[45,23,45,24],[45,25,45,26],[45,27,45,28],[45,29,45,30],[45,31,45,32],[46,17,46,18],[46,19,46,20],[46,21,46,22],[46,23,46,24],[46,25,46,26],[46,27,46,28],[46,29,46,30],[46,31,46,32],[47,17,47,18],[47,19,47,20],[47,21,47,22],[47,23,47,24],[47,25,47,26],[47,27,47,28],[47,29,47,30],[47,31,47,32],[50,17,50,18],[50,19,50,20],[50,21,50,22],[50,23,50,24],[50,25,50,26],[50,27,50,28],[50,29,50,30],[50,31,50,32],[48,17,48,18],[48,19,48,20],[48,21,48,22],[48,23,48,24],[48,25,48,26],[48,27,48,28],[48,29,48,30],[48,31,48,32],[49,17,49,18],[49,19,49,20],[49,21,49,22],[49,23,49,24],[49,25,49,26],[49,27,49,28],[49,29,49,30],[49,31,49,32]]}
[]
[null,null,null,null,null,null,null,null,null,null,null,"Create Date:",null,null,null,null,{"$f":"'Photo Sheet'!Q2:W2","v":"AUG 22/2017"}]
[null,null,null,null,null,null,null,null,null,null,null,"Vendor Name:",null,null,null,null,{"$f":"'Photo Sheet'!Q3:AI3","v":0}]
[null,null,null,null,null,null,null,null,null,null,null,"Vndr.Item No.:",null,null,null,null,{"$f":"'Photo Sheet'!Q4:W4","v":0},null,null,null,null,null,null,null,null,null,"GC Item No.:",null,null,null,{"$f":"'Photo Sheet'!AE4:AI4","v":0}]
[null,null,null,null,null,null,null,null,null,null,null,"Size Range:",null,null,null,null,{"$f":"'Photo Sheet'!Q5:W5","v":"0-6 MONTHS"},null,null,null,null,null,null,null,null,null,"Season:",null,null,"Fall Winter 2016"]
[null,null,null,null,null,null,null,null,null,null,null,"Description:",null,null,null,null,{"$f":"'Photo Sheet'!Q6:AI6","v":"BABY- SHORT SLEEVE ONESIE PRINT WITH CHEST DIAGONAL OPENING"}]
[]
[null,"PRODUCTION SAMPLE COMMENTS -- ONSIE",null,null,null,null,null,null,null,null,null,null,null,null,null,null,null,null,null,"Date:",null,null,null,null,null,null,null,null,null,null,null,null,null,null,null,null,null,null,null,null,"S"]
[null,"(Measurements on flat / inches)",null,null,null,null,null,null,null,null,null,null,null,null,null,"S",null,"1st\nColour",null,"2nd\nColour",null,"3rd\nColour",null,"4th\nColour",null,"5th\nColour",null,"6th\nColour",null,"7th\nColour",null,"8th\nColour",null,"Tolerance\n+ / -\n(on flat)",null,null,null,null,null,null,"M"]
[null,null,null,null,null,null,null,null,null,null,null,null,null,null,null,null,null,null,null,null,null,null,null,null,null,null,null,null,null,null,null,null,null,null,null,null,null,null,null,null,"L"]
[null,{"$f":"'Apparel Spec Sheet'!B11:O11","v":"BACK TORSO LENGTH( HSP TO BACK CROTH -UNDOMED)"},null,null,null,null,null,null,null,null,null,null,null,null,null,null,null,null,null,null,null,null,null,null,null,null,null,null,null,null,null,null,null,0.375,null,null,null,null,null,null,"XL"]
[null,{"$f":"'Apparel Spec Sheet'!B12:O12","v":"CENTER BACK LENGTH( C.B. NECK TO HEM"},null,null,null,null,null,null,null,null,null,null,null,null,null,null,null,null,null,null,null,null,null,null,null,null,null,null,null,null,null,null,null,0.375,null,null,null,null,null,null,"SM"]
[null,{"$f":"'Apparel Spec Sheet'!B14:O14","v":"CHEST( 1/2\" BELOW ARMHOLE"},null,null,null,null,null,null,null,null,null,null,null,null,null,null,null,null,null,null,null,null,null,null,null,null,null,null,null,null,null,null,null,0.375,null,null,null,null,null,null,"LXL"]
[null,"FRONT LENGTH (FROM CENTRE FRONT NECK TO HEM)",null,null,null,null,null,null,null,null,null,null,null,null,null,null,null,null,null,null,null,null,null,null,null,null,null,null,null,null,null,null,null,0.375,null,null,null,null,null,null,"OS"]
[null,{"$f":"'Apparel Spec Sheet'!B15:O15","v":"WAIST"},null,null,null,null,null,null,null,null,null,null,null,null,null,null,null,null,null,null,null,null,null,null,null,null,null,null,null,null,null,null,null,0.375,null,null,null,null,null,null,"1X"]
[null,{"$f":"'Apparel Spec Sheet'!B16:O16","v":"HIP ( TOP OF LEG OPENING)"},null,null,null,null,null,null,null,null,null,null,null,null,null,null,null,null,null,null,null,null,null,null,null,null,null,null,null,null,null,null,null,0.375,null,null,null,null,null,null,"2X"]
[null,{"$f":"'Apparel Spec Sheet'!B17:O17","v":"HEM STRAIGHT"},null,null,null,null,null,null,null,null,null,null,null,null,null,null,null,null,null,null,null,null,null,null,null,null,null,null,null,null,null,null,null,0.375,null,null,null,null,null,null,"3X"]
[null,{"$f":"'Apparel Spec Sheet'!B18:O18","v":"ACROSS SHOULDERS"},null,null,null,null,null,null,null,null,null,null,null,null,null,null,null,null,null,null,null,null,null,null,null,null,null,null,null,null,null,null,null,0.375]
[null,{"$f":"'Apparel Spec Sheet'!B19:O19","v":"SHOULDER SEAM LENGTH"},null,null,null,null,null,null,null,null,null,null,null,null,null,null,null,null,null,null,null,null,null,null,null,null,null,null,null,null,null,null,null,0.375]
[null,"HEM CURVE (FOLLOW)",null,null,null,null,null,null,null,null,null,null,null,null,null,null,null,null,null,null,null,null,null,null,null,null,null,null,null,null,null,null,null,0.375]
[null,{"$f":"'Apparel Spec Sheet'!B21:O21","v":"ACROSS BACK ( MID ARMHOLE)"},null,null,null,null,null,null,null,null,null,null,null,null,null,null,null,null,null,null,null,null,null,null,null,null,null,null,null,null,null,null,null,0.375]
[null,{"$f":"'Apparel Spec Sheet'!B22:O22","v":"RAGLAN ACROSS FRONT ( MID ARMHOLE)"},null,null,null,null,null,null,null,null,null,null,null,null,null,null,null,null,null,null,null,null,null,null,null,null,null,null,null,null,null,null,null,0.375]
[null,{"$f":"'Apparel Spec Sheet'!B23:O23","v":"RAGLAN ACROSS BACK ( MIS ARMHOLE)"},null,null,null,null,null,null,null,null,null,null,null,null,null,null,null,null,null,null,null,null,null,null,null,null,null,null,null,null,null,null,null,0.375]
[null,{"$f":"'Apparel Spec Sheet'!B24:O24","v":"OVERARM - SLEEVE CAP TO HEM - SHORT SLEEVE"},null,null,null,null,null,null,null,null,null,null,null,null,null,null,null,null,null,null,null,null,null,null,null,null,null,null,null,null,null,null,null,0.25]
[null,{"$f":"'Apparel Spec Sheet'!B25:O25","v":"OVERARM - SLEEVE CAP TO HEM - 3/4  SLEEVE"},null,null,null,null,null,null,null,null,null,null,null,null,null,null,null,null,null,null,null,null,null,null,null,null,null,null,null,null,null,null,null,0.25]
[null,{"$f":"'Apparel Spec Sheet'!B26:O26","v":"OVERARM - SLEEVE CAP TO HEM - LONG SLEEVE"},null,null,null,null,null,null,null,null,null,null,null,null,null,null,null,null,null,null,null,null,null,null,null,null,null,null,null,null,null,null,null,0.375]
[null,{"$f":"'Apparel Spec Sheet'!B27:O27","v":"OVERARM ( NECK TO SLEEVE HEM)"},null,null,null,null,null,null,null,null,null,null,null,null,null,null,null,null,null,null,null,null,null,null,null,null,null,null,null,null,null,null,null,0.25]
[null,{"$f":"'Apparel Spec Sheet'!B28:O28","v":"1/2 ARMHOLE STRAIGHT"},null,null,null,null,null,null,null,null,null,null,null,null,null,null,null,null,null,null,null,null,null,null,null,null,null,null,null,null,null,null,null,0.25]
[null,{"$f":"'Apparel Spec Sheet'!B29:O29","v":"FRONT RAGLAN LENGTH ON SEAM"},null,null,null,null,null,null,null,null,null,null,null,null,null,null,null,null,null,null,null,null,null,null,null,null,null,null,null,null,null,null,null,0.25]
[null,{"$f":"'Apparel Spec Sheet'!B30:O30","v":"BACK RAGLAN LENGTH ON SEAM"},null,null,null,null,null,null,null,null,null,null,null,null,null,null,null,null,null,null,null,null,null,null,null,null,null,null,null,null,null,null,null,0.25]
[null,{"$f":"'Apparel Spec Sheet'!B31:O31","v":"BICEP ( AT ARMHOLE SEAM)"},null,null,null,null,null,null,null,null,null,null,null,null,null,null,null,null,null,null,null,null,null,null,null,null,null,null,null,null,null,null,null,0.25]
[null,{"$f":"'Apparel Spec Sheet'!B32:O32","v":"ELBOW"},null,null,null,null,null,null,null,null,null,null,null,null,null,null,null,null,null,null,null,null,null,null,null,null,null,null,null,null,null,null,null,0.25]
[null,{"$f":"'Apparel Spec Sheet'!B33:O33","v":"SHORT SLEEVE OPENING"},null,null,null,null,null,null,null,null,null,null,null,null,null,null,null,null,null,null,null,null,null,null,null,null,null,null,null,null,null,null,null,"1/4"]
[null,{"$f":"'Apparel Spec Sheet'!B34:O34","v":"3/4 SLEEVE OPENING"},null,null,null,null,null,null,null,null,null,null,null,null,null,null,null,null,null,null,null,null,null,null,null,null,null,null,null,null,null,null,null,0]
[null,{"$f":"'Apparel Spec Sheet'!B35:O35","v":"LONG SLEEVE OPENING"},null,null,null,null,null,null,null,null,null,null,null,null,null,null,null,null,null,null,null,null,null,null,null,null,null,null,null,null,null,null,null,0.25]
[null,{"$f":"'Apparel Spec Sheet'!B36:O36","v":"SLEEEVE CAP HEIGHT"},null,null,null,null,null,null,null,null,null,null,null,null,null,null,null,null,null,null,null,null,null,null,null,null,null,null,null,null,null,null,null,0.25]
[null,{"$f":"'Apparel Spec Sheet'!B37:O37","v":"NECK WIDTH ( ON BACK BETWEEN TRIM)"},null,null,null,null,null,null,null,null,null,null,null,null,null,null,null,null,null,null,null,null,null,null,null,null,null,null,null,null,null,null,null,0.25]
[null,{"$f":"'Apparel Spec Sheet'!B38:O38","v":"FRONT NECK DROP"},null,null,null,null,null,null,null,null,null,null,null,null,null,null,null,null,null,null,null,null,null,null,null,null,null,null,null,null,null,null,null,0.25]
[null,{"$f":"'Apparel Spec Sheet'!B39:O39","v":"BACK NECK DROP"},null,null,null,null,null,null,null,null,null,null,null,null,null,null,null,null,null,null,null,null,null,null,null,null,null,null,null,null,null,null,null,0]
[null,{"$f":"'Apparel Spec Sheet'!B40:O40","v":"1/2 NECK CIRECUMFERENCE - RELAXED"},null,null,null,null,null,null,null,null,null,null,null,null,null,null,null,null,null,null,null,null,null,null,null,null,null,null,null,null,null,null,null,0]
[null,{"$f":"'Apparel Spec Sheet'!B41:O41","v":"1/2 NECK CIRECUMFERENCE -EXTENDED"},null,null,null,null,null,null,null,null,null,null,null,null,null,null,null,null,null,null,null,null,null,null,null,null,null,null,null,null,null,null,null,0.25]
[null,{"$f":"'Apparel Spec Sheet'!B42:O42","v":"COLLAR DEPTH AT C.B NECK"},null,null,null,null,null,null,null,null,null,null,null,null,null,null,null,null,null,null,null,null,null,null,null,null,null,null,null,null,null,null,null,0]
[null,{"$f":"'Apparel Spec Sheet'!B43:O43","v":"NECK TRIM DEPTH"},null,null,null,null,null,null,null,null,null,null,null,null,null,null,null,null,null,null,null,null,null,null,null,null,null,null,null,null,null,null,null,0]
[null,{"$f":"'Apparel Spec Sheet'!B44:O44","v":"CUFF DEPTH"},null,null,null,null,null,null,null,null,null,null,null,null,null,null,null,null,null,null,null,null,null,null,null,null,null,null,null,null,null,null,null,0]
[null,{"$f":"'Apparel Spec Sheet'!B45:O45","v":"SLEEVE HEM DEPTH"},null,null,null,null,null,null,null,null,null,null,null,null,null,null,null,null,null,null,null,null,null,null,null,null,null,null,null,null,null,null,null,0]
[null,{"$f":"'Apparel Spec Sheet'!B46:O46","v":"BOTTOM HEM DEPTH"},null,null,null,null,null,null,null,null,null,null,null,null,null,null,null,null,null,null,null,null,null,null,null,null,null,null,null,null,null,null,null,0.375]
[null,{"$f":"'Apparel Spec Sheet'!B47:O47","v":"THIGH ( 1/2\" BELOW CROTCH)"}]
[null,{"$f":"'Apparel Spec Sheet'!B48:O48","v":"KNEE WIDTH"},null,null,null,null,null,null,null,null,null,null,null,null,null,null,null,null,null,null,null,null,null,null,null,null,null,null,null,null,null,null,null,0.25]
[null,{"$f":"'Apparel Spec Sheet'!B49:O49","v":"LEG OPENING WIDTH"},null,null,null,null,null,null,null,null,null,null,null,null,null,null,null,null,null,null,null,null,null,null,null,null,null,null,null,null,null,null,null,0.25]
[null,{"$f":"'Apparel Spec Sheet'!B50:O50","v":"FRONT CROTCH WIDTH"},null,null,null,null,null,null,null,null,null,null,null,null,null,null,null,null,null,null,null,null,null,null,null,null,null,null,null,null,null,null,null,0.25]
[null,{"$f":"'Apparel Spec Sheet'!B51:O51","v":"SAM E BODY FIT AS SS18-1075- EXCEPT DIFFERENT FRONT STYLING"},null,null,null,null,null,null,null,null,null,null,null,null,null,null,null,null,null,null,null,null,null,null,null,null,null,null,null,null,null,null,null,0.375]
[null,"Production Samples"]
[null,"Approved ?"]

{"sheet":"Production Photo Comment","index":24,"n_rows":15,"n_cols":40,"rows_kept":15,"cut":false,"hidden":true,"merged":[[5,16,5,34],[7,1,7,18],[7,19,7,22],[7,23,7,31],[1,16,1,22],[2,16,2,34],[3,16,3,22],[3,30,3,34],[4,16,4,22],[4,29,4,34]]}
[]
[null,null,null,null,null,null,null,null,null,null,null,"Create Date:",null,null,null,null,{"$f":"'Photo Sheet'!Q2:W2","v":"AUG 22/2017"}]
[null,null,null,null,null,null,null,null,null,null,null,"Vendor Name:",null,null,null,null,{"$f":"'Photo Sheet'!Q3:AI3","v":0}]
[null,null,null,null,null,null,null,null,null,null,null,"Vndr.Item No.:",null,null,null,null,{"$f":"'Photo Sheet'!Q4:W4","v":0},null,null,null,null,null,null,null,null,null,"GC Item No.:",null,null,null,{"$f":"'Photo Sheet'!AE4:AI4","v":0}]
[null,null,null,null,null,null,null,null,null,null,null,"Size Range:",null,null,null,null,{"$f":"'Photo Sheet'!Q5:W5","v":"0-6 MONTHS"},null,null,null,null,null,null,null,null,null,"Season:",null,null,{"$f":"'Photo Sheet'!AD5:AI5","v":"Spring Summer 2018"}]
[null,null,null,null,null,null,null,null,null,null,null,"Description:",null,null,null,null,{"$f":"'Photo Sheet'!Q6:AI6","v":"BABY- SHORT SLEEVE ONESIE PRINT WITH CHEST DIAGONAL OPENING"}]
[]
[null,"PRODUCTION PHOTO COMMENTS-- ONSIE",null,null,null,null,null,null,null,null,null,null,null,null,null,null,null,null,null,"Date:",null,null,null,null,null,null,null,null,null,null,null,null,null,null,null,null,null,null,null,"L"]
[null,null,null,null,null,null,null,null,null,null,null,null,null,null,null,null,null,null,null,null,null,null,null,null,null,null,null,null,null,null,null,null,null,null,null,null,null,null,null,"LXL"]
[null,null,null,null,null,null,null,null,null,null,null,null,null,null,null,null,null,null,null,null,null,null,null,null,null,null,null,null,null,null,null,null,null,null,null,null,null,null,null,"M"]
[null,null,null,null,null,null,null,null,null,null,null,null,null,null,null,null,null,null,null,null,null,null,null,null,null,null,null,null,null,null,null,null,null,null,null,null,null,null,null,"S"]
[null,null,null,null,null,null,null,null,null,null,null,null,null,null,null,null,null,null,null,null,null,null,null,null,null,null,null,null,null,null,null,null,null,null,null,null,null,null,null,"SM"]
[null,null,null,null,null,null,null,null,null,null,null,null,null,null,null,null,null,null,null,null,null,null,null,null,null,null,null,null,null,null,null,null,null,null,null,null,null,null,null,"XL"]
[null,null,null,null,null,null,null,null,null,null,null,null,null,null,null,null,null,null,null,null,null,null,null,null,null,null,null,null,null,null,null,null,null,null,null,null,null,null,null,"XXL"]
[null,null,null,null,null,null,null,null,null,null,null,null,null,null,null,null,null,null,null,null,null,null,null,null,null,null,null,null,null,null,null,null,null,null,null,null,null,null,null,"XXXL"]

{"sheet":"AQL","index":25,"n_rows":52,"n_cols":94,"rows_kept":52,"cut":false,"hidden":true,"merged":[[1,16,1,22],[2,16,2,35],[3,16,3,22],[3,30,3,35],[4,16,4,22],[5,16,5,35],[7,1,7,18],[7,19,7,22],[7,23,7,31],[4,29,4,35],[8,1,9,14],[8,15,9,16],[8,17,9,19],[8,20,9,22],[8,23,9,25],[8,26,9,28],[8,47,9,49],[8,50,9,52],[8,53,9,55],[8,56,9,58],[8,59,9,61],[10,1,10,14],[10,15,10,16],[10,18,10,19],[10,21,10,22],[10,24,10,25],[8,29,9,31],[8,32,9,34],[8,35,9,37],[8,38,9,40],[8,41,9,43],[8,44,9,46],[10,45,10,46],[10,48,10,49],[10,51,10,52],[10,54,10,55],[10,57,10,58],[10,59,10,61],[10,27,10,28],[10,30,10,31],[10,33,10,34],[10,36,10,37],[10,39,10,40],[10,42,10,43],[11,48,11,49],[11,51,11,52],[11,54,11,55],[11,57,11,58],[11,59,11,61],[12,1,12,14],[12,15,12,16],[12,18,12,19],[12,21,12,22],[12,24,12,25],[11,30,11,31],[11,33,11,34],[11,36,11,37],[11,39,11,40],[11,42,11,43],[11,45,11,46],[11,1,11,14],[11,15,11,16],[11,18,11,19],[11,21,11,22],[11,24,11,25],[11,27,11,28],[12,45,12,46],[12,48,12,49],[12,51,12,52],[12,54,12,55],[12,57,12,58],[12,59,12,61],[12,27,12,28],[12,30,12,31],[12,33,12,34],[12,36,12,37],[12,39,12,40],[12,42,12,43],[13,48,13,49],[13,51,13,52],[13,54,13,55],[13,57,13,58],[13,59,13,61],[14,1,14,14],[14,15,14,16],[14,18,14,19],[14,21,14,22],[14,24,14,25],[13,30,13,31],[13,33,13,34],[13,36,13,37],[13,39,13,40],[13,42,13,43],[13,45,13,46],[13,1,13,14],[13,15,13,16],[13,18,13,19],[13,21,13,22],[13,24,13,25],[13,27,13,28],[14,45,14,46],[14,48,14,49],[14,51,14,52],[14,54,14,55],[14,57,14,58],[14,59,14,61],[14,27,14,28],[14,30,14,31],[14,33,14,34],[14,36,14,37],[14,39,14,40],[14,42,14,43],[15,48,15,49],[15,51,15,52],[15,54,15,55],[15,57,15,58],[15,59,15,61],[16,1,16,14],[16,15,16,16],[16,18,16,19],[16,21,16,22],[16,24,16,25],[15,30,15,31],[15,33,15,34],[15,36,15,37],[15,39,15,40],[15,42,15,43],[15,45,15,46],[15,1,15,14],[15,15,15,16],[15,18,15,19],[15,21,15,22],[15,24,15,25],[15,27,15,28],[16,45,16,46],[16,48,16,49],[16,51,16,52],[16,54,16,55],[16,57,16,58],[16,59,16,61],[16,27,16,28],[16,30,16,31],[16,33,16,34],[16,36,16,37],[16,39,16,40],[16,42,16,43],[17,48,17,49],[17,51,17,52],[17,54,17,55],[17,57,17,58],[17,59,17,61],[18,1,18,14],[18,15,18,16],[18,18,18,19],[18,21,18,22],[18,24,18,25],[17,30,17,31],[17,33,17,34],[17,36,17,37],[17,39,17,40],[17,42,17,43],[17,45,17,46],[17,1,17,14],[17,15,17,16],[17,18,17,19],[17,21,17,22],[17,24,17,25],[17,27,17,28],[18,45,18,46],[18,48,18,49],[18,51,18,52],[18,54,18,55],[18,57,18,58],[18,59,18,61],[18,27,18,28],[18,30,18,31],[18,33,18,34],[18,36,18,37],[18,39,18,40],[18,42,18,43],[19,48,19,49],[19,51,19,52],[19,54,19,55],[19,57,19,58],[19,59,19,61],[20,1,20,14],[20,15,20,16],[20,18,20,19],[20,21,20,22],[20,24,20,25],[19,30,19,31],[19,33,19,34],[19,36,19,37],[19,39,19,40],[19,42,19,43],[19,45,19,46],[19,1,19,14],[19,15,19,16],[19,18,19,19],[19,21,19,22],[19,24,19,25],[19,27,19,28],[20,45,20,46],[20,48,20,49],[20,51,20,52],[20,54,20,55],[20,57,20,58],[20,59,20,61],[20,27,20,28],[20,30,20,31],[20,33,20,34],[20,36,20,37],[20,39,20,40],[20,42,20,43],[21,48,21,49],[21,51,21,52],[21,54,21,55],[21,57,21,58],[21,59,21,61],[22,1,22,14],[22,15,22,16],[22,18,22,19],[22,21,22,22],[22,24,22,25],[21,30,21,31],[21,33,21,34],[21,36,21,37],[21,39,21,40],[21,42,21,43],[21,45,21,46],[21,1,21,14],[21,15,21,16],[21,18,21,19],[21,21,21,22],[21,24,21,25],[21,27,21,28],[22,45,22,46],[22,48,22,49],[22,51,22,52],[22,54,22,55],[22,57,22,58],[22,59,22,61],[22,27,22,28],[22,30,22,31],[22,33,22,34],[22,36,22,37],[22,39,22,40],[22,42,22,43],[23,48,23,49],[23,51,23,52],[23,54,23,55],[23,57,23,58],[23,59,23,61],[24,1,24,14],[24,15,24,16],[24,18,24,19],[24,21,24,22],[24,24,24,25],[23,30,23,31],[23,33,23,34],[23,36,23,37],[23,39,23,40],[23,42,23,43],[23,45,23,46],[23,1,23,14],[23,15,23,16],[23,18,23,19],[23,21,23,22],[23,24,23,25],[23,27,23,28],[24,45,24,46],[24,48,24,49],[24,51,24,52],[24,54,24,55],[24,57,24,58],[24,59,24,61],[24,27,24,28],[24,30,24,31],[24,33,24,34],[24,36,24,37],[24,39,24,40],[24,42,24,43],[25,48,25,49],[25,51,25,52],[25,54,25,55],[25,57,25,58],[25,59,25,61],[26,1,26,14],[26,15,26,16],[26,18,26,19],[26,21,26,22],[26,24,26,25],[25,30,25,31],[25,33,25,34],[25,36,25,37],[25,39,25,40],[25,42,25,43],[25,45,25,46],[25,1,25,14],[25,15,25,16],[25,18,25,19],[25,21,25,22],[25,24,25,25],[25,27,25,28],[26,45,26,46],[26,48,26,49],[26,51,26,52],[26,54,26,55],[26,57,26,58],[26,59,26,61],[26,27,26,28],[26,30,26,31],[26,33,26,34],[26,36,26,37],[26,39,26,40],[26,42,26,43],[27,48,27,49],[27,51,27,52],[27,54,27,55],[27,57,27,58],[27,59,27,61],[28,1,28,14],[28,15,28,16],[28,18,28,19],[28,21,28,22],[28,24,28,25],[27,30,27,31],[27,33,27,34],[27,36,27,37],[27,39,27,40],[27,42,27,43],[27,45,27,46],[27,1,27,14],[27,15,27,16],[27,18,27,19],[27,21,27,22],[27,24,27,25],[27,27,27,28],[28,45,28,46],[28,48,28,49],[28,51,28,52],[28,54,28,55],[28,57,28,58],[28,59,28,61],[28,27,28,28],[28,30,28,31],[28,33,28,34],[28,36,28,37],[28,39,28,40],[28,42,28,43],[29,48,29,49],[29,51,29,52],[29,54,29,55],[29,57,29,58],[29,59,29,61],[30,1,30,14],[30,15,30,16],[30,18,30,19],[30,21,30,22],[30,24,30,25],[29,30,29,31],[29,33,29,34],[29,36,29,37],[29,39,29,40],[29,42,29,43],[29,45,29,46],[29,1,29,14],[29,15,29,16],[29,18,29,19],[29,21,29,22],[29,24,29,25],[29,27,29,28],[30,45,30,46],[30,48,30,49],[30,51,30,52],[30,54,30,55],[30,57,30,58],[30,59,30,61],[30,27,30,28],[30,30,30,31],[30,33,30,34],[30,36,30,37],[30,39,30,40],[30,42,30,43],[31,48,31,49],[31,51,31,52],[31,54,31,55],[31,57,31,58],[31,59,31,61],[32,1,32,14],[32,15,32,16],[32,18,32,19],[32,21,32,22],[32,24,32,25],[31,30,31,31],[31,33,31,34],[31,36,31,37],[31,39,31,40],[31,42,31,43],[31,45,31,46],[31,1,31,14],[31,15,31,16],[31,18,31,19],[31,21,31,22],[31,24,31,25],[31,27,31,28],[32,45,32,46],[32,48,32,49],[32,51,32,52],[32,54,32,55],[32,57,32,58],[32,59,32,61],[32,27,32,28],[32,30,32,31],[32,33,32,34],[32,36,32,37],[32,39,32,40],[32,42,32,43],[33,48,33,49],[33,51,33,52],[33,54,33,55],[33,57,33,58],[33,59,33,61],[34,1,34,14],[34,15,34,16],[34,18,34,19],[34,21,34,22],[34,24,34,25],[33,30,33,31],[33,33,33,34],[33,36,33,37],[33,39,33,40],[33,42,33,43],[33,45,33,46],[33,1,33,14],[33,15,33,16],[33,18,33,19],[33,21,33,22],[33,24,33,25],[33,27,33,28],[34,45,34,46],[34,48,34,49],[34,51,34,52],[34,54,34,55],[34,57,34,58],[34,59,34,61],[34,27,34,28],[34,30,34,31],[34,33,34,34],[34,36,34,37],[34,39,34,40],[34,42,34,43],[35,48,35,49],[35,51,35,52],[35,54,35,55],[35,57,35,58],[35,59,35,61],[36,1,36,14],[36,15,36,16],[36,18,36,19],[36,21,36,22],[36,24,36,25],[35,30,35,31],[35,33,35,34],[35,36,35,37],[35,39,35,40],[35,42,35,43],[35,45,35,46],[35,1,35,14],[35,15,35,16],[35,18,35,19],[35,21,35,22],[35,24,35,25],[35,27,35,28],[36,45,36,46],[36,48,36,49],[36,51,36,52],[36,54,36,55],[36,57,36,58],[36,59,36,61],[36,27,36,28],[36,30,36,31],[36,33,36,34],[36,36,36,37],[36,39,36,40],[36,42,36,43],[37,48,37,49],[37,51,37,52],[37,54,37,55],[37,57,37,58],[37,59,37,61],[38,1,38,14],[38,15,38,16],[38,18,38,19],[38,21,38,22],[38,24,38,25],[37,30,37,31],[37,33,37,34],[37,36,37,37],[37,39,37,40],[37,42,37,43],[37,45,37,46],[37,1,37,14],[37,15,37,16],[37,18,37,19],[37,21,37,22],[37,24,37,25],[37,27,37,28],[38,45,38,46],[38,48,38,49],[38,51,38,52],[38,54,38,55],[38,57,38,58],[38,59,38,61],[38,27,38,28],[38,30,38,31],[38,33,38,34],[38,36,38,37],[38,39,38,40],[38,42,38,43],[39,48,39,49],[39,51,39,52],[39,54,39,55],[39,57,39,58],[39,59,39,61],[40,1,40,14],[40,15,40,16],[40,18,40,19],[40,21,40,22],[40,24,40,25],[39,30,39,31],[39,33,39,34],[39,36,39,37],[39,39,39,40],[39,42,39,43],[39,45,39,46],[39,1,39,14],[39,15,39,16],[39,18,39,19],[39,21,39,22],[39,24,39,25],[39,27,39,28],[40,45,40,46],[40,48,40,49],[40,51,40,52],[40,54,40,55],[40,57,40,58],[40,59,40,61],[40,27,40,28],[40,30,40,31],[40,33,40,34],[40,36,40,37],[40,39,40,40],[40,42,40,43],[41,48,41,49],[41,51,41,52],[41,54,41,55],[41,57,41,58],[41,59,41,61],[42,1,42,14],[42,15,42,16],[42,18,42,19],[42,21,42,22],[42,24,42,25],[41,30,41,31],[41,33,41,34],[41,36,41,37],[41,39,41,40],[41,42,41,43],[41,45,41,46],[41,1,41,14],[41,15,41,16],[41,18,41,19],[41,21,41,22],[41,24,41,25],[41,27,41,28],[42,45,42,46],[42,48,42,49],[42,51,42,52],[42,54,42,55],[42,57,42,58],[42,59,42,61],[42,27,42,28],[42,30,42,31],[42,33,42,34],[42,36,42,37],[42,39,42,40],[42,42,42,43],[43,48,43,49],[43,51,43,52],[43,54,43,55],[43,57,43,58],[43,59,43,61],[44,1,44,14],[44,15,44,16],[44,18,44,19],[44,21,44,22],[44,24,44,25],[43,30,43,31],[43,33,43,34],[43,36,43,37],[43,39,43,40],[43,42,43,43],[43,45,43,46],[43,1,43,14],[43,15,43,16],[43,18,43,19],[43,21,43,22],[43,24,43,25],[43,27,43,28],[44,45,44,46],[44,48,44,49],[44,51,44,52],[44,54,44,55],[44,57,44,58],[44,59,44,61],[44,27,44,28],[44,30,44,31],[44,33,44,34],[44,36,44,37],[44,39,44,40],[44,42,44,43],[45,48,45,49],[45,51,45,52],[45,54,45,55],[45,57,45,58],[45,59,45,61],[46,1,46,14],[46,15,46,16],[46,18,46,19],[46,21,46,22],[46,24,46,25],[45,30,45,31],[45,33,45,34],[45,36,45,37],[45,39,45,40],[45,42,45,43],[45,45,45,46],[45,1,45,14],[45,15,45,16],[45,18,45,19],[45,21,45,22],[45,24,45,25],[45,27,45,28],[46,45,46,46],[46,48,46,49],[46,51,46,52],[46,54,46,55],[46,57,46,58],[46,59,46,61],[46,27,46,28],[46,30,46,31],[46,33,46,34],[46,36,46,37],[46,39,46,40],[46,42,46,43],[47,48,47,49],[47,51,47,52],[47,54,47,55],[47,57,47,58],[47,59,47,61],[48,1,48,14],[48,15,48,16],[48,18,48,19],[48,21,48,22],[48,24,48,25],[47,30,47,31],[47,33,47,34],[47,36,47,37],[47,39,47,40],[47,42,47,43],[47,45,47,46],[47,1,47,14],[47,15,47,16],[47,18,47,19],[47,21,47,22],[47,24,47,25],[47,27,47,28],[48,45,48,46],[48,48,48,49],[48,51,48,52],[48,54,48,55],[48,57,48,58],[48,59,48,61],[48,27,48,28],[48,30,48,31],[48,33,48,34],[48,36,48,37],[48,39,48,40],[48,42,48,43],[49,48,49,49],[49,51,49,52],[49,54,49,55],[49,57,49,58],[49,59,49,61],[50,1,50,14],[50,15,50,16],[50,18,50,19],[50,21,50,22],[50,24,50,25],[49,30,49,31],[49,33,49,34],[49,36,49,37],[49,39,49,40],[49,42,49,43],[49,45,49,46],[49,1,49,14],[49,15,49,16],[49,18,49,19],[49,21,49,22],[49,24,49,25],[49,27,49,28],[52,1,52,61],[50,45,50,46],[50,48,50,49],[50,51,50,52],[50,54,50,55],[50,57,50,58],[50,59,50,61],[50,27,50,28],[50,30,50,31],[50,33,50,34],[50,36,50,37],[50,39,50,40],[50,42,50,43]]}
[]
[null,null,null,null,null,null,null,null,null,null,null,"Create Date:",null,null,null,null,{"$f":"'[1]Photo Sheet'!Q2:W2","v":"2014-02-28"}]
[null,null,null,null,null,null,null,null,null,null,null,"Vendor Name:",null,null,null,null,{"$f":"'[1]Photo Sheet'!Q3:AI3","v":"Xiamen Winfavour"}]
[null,null,null,null,null,null,null,null,null,null,null,"Vndr.Item No.:",null,null,null,null,{"$f":"'[1]Photo Sheet'!Q4:W4","v":"ABCD12345"},null,null,null,null,null,null,null,null,null,"GC Item No.:",null,null,null,{"$f":"'[1]Photo Sheet'!AE4:AI4","v":205469}]
[null,null,null,null,null,null,null,null,null,null,null,"Size Range:",null,null,null,null,{"$f":"'[1]Photo Sheet'!Q5:W5","v":"S-M-L-XL"},null,null,null,null,null,null,null,null,null,"Season:",null,null,"Spring Summer 2015"]
[null,null,null,null,null,null,null,null,null,null,null,"Description:"]
[]
[null,"AQL -- TOP / SWEATER",null,null,null,null,null,null,null,null,null,null,null,null,null,null,null,null,null,"Date:",null,null,null,"APRIL 7 / 2014",null,null,null,null,null,null,null,null,null,null,null,null,null,null,null,null,null,null,null,null,null,null,null,null,null,null,null,null,null,null,null,null,null,null,null,null,null,null,null,null,null,null,null,null,null,null,null,null,null,null,null,null,null,null,null,null,null,null,null,null,null,null,null,null,null,null,"+",null,null,"L"]
[null,"(Measurements on flat / inches)                  SIZE",null,null,null,null,null,null,null,null,null,null,null,null,null,"S",null,"BLACK",null,null,"WHITE",null,null,"PINK",null,null,null,null,null,null,null,null,null,null,null,null,null,null,null,null,null,null,null,null,null,null,null,null,null,null,null,null,null,null,null,null,null,null,null,"Tolerance\n+ / -\n(on flat)",null,null,null,null,null,null,null,null,null,null,null,null,null,null,null,null,null,null,null,null,null,null,null,null,null,null,null,null,null,null,"-",null,null,"LXL"]
[null,null,null,null,null,null,null,null,null,null,null,null,null,null,null,null,null,null,null,null,null,null,null,null,null,null,null,null,null,null,null,null,null,null,null,null,null,null,null,null,null,null,null,null,null,null,null,null,null,null,null,null,null,null,null,null,null,null,null,null,null,null,null,null,null,null,null,null,null,null,null,null,null,null,null,null,null,null,null,null,null,null,null,null,null,null,null,null,null,null,null,null,null,"M"]
[null,"BACK LENGTH FROM (HIGH SHOULDER POINT)",null,null,null,null,null,null,null,null,null,null,null,null,null,null,null,null,null,null,null,null,null,null,null,null,null,null,null,null,null,null,null,null,null,null,null,null,null,null,null,null,null,null,null,null,null,null,null,null,null,null,null,null,null,null,null,null,null,0.375,null,null,null,null,null,null,null,null,null,null,null,null,null,null,null,null,null,null,null,null,null,null,null,null,null,null,null,null,null,null,null,null,null,"S"]
[null,"CENTER BACK LENGTH ( FROM NECK TO HEM )",null,null,null,null,null,null,null,null,null,null,null,null,null,null,null,null,null,null,null,null,null,null,null,null,null,null,null,null,null,null,null,null,null,null,null,null,null,null,null,null,null,null,null,null,null,null,null,null,null,null,null,null,null,null,null,null,null,0.375,null,null,null,null,null,null,null,null,null,null,null,null,null,null,null,null,null,null,null,null,null,null,null,null,null,null,null,null,null,null,null,null,null,"SM"]
[null,"FRONT LENGTH FROM (HIGH SHOULDER POINT)",null,null,null,null,null,null,null,null,null,null,null,null,null,null,null,null,null,null,null,null,null,null,null,null,null,null,null,null,null,null,null,null,null,null,null,null,null,null,null,null,null,null,null,null,null,null,null,null,null,null,null,null,null,null,null,null,null,0.375,null,null,null,null,null,null,null,null,null,null,null,null,null,null,null,null,null,null,null,null,null,null,null,null,null,null,null,null,null,null,null,null,null,"XL"]
[null,"FRONT LENGTH (FROM CENTRE FRONT NECK TO HEM)",null,null,null,null,null,null,null,null,null,null,null,null,null,null,null,null,null,null,null,null,null,null,null,null,null,null,null,null,null,null,null,null,null,null,null,null,null,null,null,null,null,null,null,null,null,null,null,null,null,null,null,null,null,null,null,null,null,0.375,null,null,null,null,null,null,null,null,null,null,null,null,null,null,null,null,null,null,null,null,null,null,null,null,null,null,null,null,null,null,null,null,null,"XXL"]
[null,"CHEST (1\" BELOW ARMHOLE)",null,null,null,null,null,null,null,null,null,null,null,null,null,null,null,null,null,null,null,null,null,null,null,null,null,null,null,null,null,null,null,null,null,null,null,null,null,null,null,null,null,null,null,null,null,null,null,null,null,null,null,null,null,null,null,null,null,0.375,null,null,null,null,null,null,null,null,null,null,null,null,null,null,null,null,null,null,null,null,null,null,null,null,null,null,null,null,null,null,null,null,null,"XXXL"]
[null,"WAIST (16 1/2\" BELOW HIGH SHOULDER POINT)",null,null,null,null,null,null,null,null,null,null,null,null,null,null,null,null,null,null,null,null,null,null,null,null,null,null,null,null,null,null,null,null,null,null,null,null,null,null,null,null,null,null,null,null,null,null,null,null,null,null,null,null,null,null,null,null,null,0.375]
[null,"TOP HIP ( 19 1/2\" BELOW HSP )",null,null,null,null,null,null,null,null,null,null,null,null,null,null,null,null,null,null,null,null,null,null,null,null,null,null,null,null,null,null,null,null,null,null,null,null,null,null,null,null,null,null,null,null,null,null,null,null,null,null,null,null,null,null,null,null,null,0.375]
[null,"LOW HIP ( 24 1/2\" BELOW HIGH SHOULDER POINT)",null,null,null,null,null,null,null,null,null,null,null,null,null,null,null,null,null,null,null,null,null,null,null,null,null,null,null,null,null,null,null,null,null,null,null,null,null,null,null,null,null,null,null,null,null,null,null,null,null,null,null,null,null,null,null,null,null,0.375]
[null,"HEM STRAIGHT",null,null,null,null,null,null,null,null,null,null,null,null,null,null,null,null,null,null,null,null,null,null,null,null,null,null,null,null,null,null,null,null,null,null,null,null,null,null,null,null,null,null,null,null,null,null,null,null,null,null,null,null,null,null,null,null,null,0.375]
[null,"HEM CURVE (FOLLOW)",null,null,null,null,null,null,null,null,null,null,null,null,null,null,null,null,null,null,null,null,null,null,null,null,null,null,null,null,null,null,null,null,null,null,null,null,null,null,null,null,null,null,null,null,null,null,null,null,null,null,null,null,null,null,null,null,null,0.375]
[null,"ACROSS SHOULDERS",null,null,null,null,null,null,null,null,null,null,null,null,null,null,null,null,null,null,null,null,null,null,null,null,null,null,null,null,null,null,null,null,null,null,null,null,null,null,null,null,null,null,null,null,null,null,null,null,null,null,null,null,null,null,null,null,null,0.375]
[null,"ACROSS FRONT (5\" BELOW HIGH SHOULDER POINT)",null,null,null,null,null,null,null,null,null,null,null,null,null,null,null,null,null,null,null,null,null,null,null,null,null,null,null,null,null,null,null,null,null,null,null,null,null,null,null,null,null,null,null,null,null,null,null,null,null,null,null,null,null,null,null,null,null,0.375]
[null,"ACROSS BACK (5\" BELOW HIGH SHOULDER POINT)",null,null,null,null,null,null,null,null,null,null,null,null,null,null,null,null,null,null,null,null,null,null,null,null,null,null,null,null,null,null,null,null,null,null,null,null,null,null,null,null,null,null,null,null,null,null,null,null,null,null,null,null,null,null,null,null,null,0.375]
[null,"OVERARM (FROM SLEEVE CAP TO HEM)-SHORT SLEEVE",null,null,null,null,null,null,null,null,null,null,null,null,null,null,null,null,null,null,null,null,null,null,null,null,null,null,null,null,null,null,null,null,null,null,null,null,null,null,null,null,null,null,null,null,null,null,null,null,null,null,null,null,null,null,null,null,null,0.25]
[null,"OVERARM (FROM SLEEVE CAP TO HEM)- 3/4 SLEEVE",null,null,null,null,null,null,null,null,null,null,null,null,null,null,null,null,null,null,null,null,null,null,null,null,null,null,null,null,null,null,null,null,null,null,null,null,null,null,null,null,null,null,null,null,null,null,null,null,null,null,null,null,null,null,null,null,null,0.25]
[null,"OVERARM (FROM SLEEVE CAP TO HEM)- LONG SLEEVE",null,null,null,null,null,null,null,null,null,null,null,null,null,null,null,null,null,null,null,null,null,null,null,null,null,null,null,null,null,null,null,null,null,null,null,null,null,null,null,null,null,null,null,null,null,null,null,null,null,null,null,null,null,null,null,null,null,0.375]
[null,"1/2 ARMHOLE STRAIGHT",null,null,null,null,null,null,null,null,null,null,null,null,null,null,null,null,null,null,null,null,null,null,null,null,null,null,null,null,null,null,null,null,null,null,null,null,null,null,null,null,null,null,null,null,null,null,null,null,null,null,null,null,null,null,null,null,null,0.25]
[null,"BICEP (1\" BELOW ARMHOLE)",null,null,null,null,null,null,null,null,null,null,null,null,null,null,null,null,null,null,null,null,null,null,null,null,null,null,null,null,null,null,null,null,null,null,null,null,null,null,null,null,null,null,null,null,null,null,null,null,null,null,null,null,null,null,null,null,null,0.25]
[null,"ELBOW (8 1/2\" BELOW ARMHOLE)",null,null,null,null,null,null,null,null,null,null,null,null,null,null,null,null,null,null,null,null,null,null,null,null,null,null,null,null,null,null,null,null,null,null,null,null,null,null,null,null,null,null,null,null,null,null,null,null,null,null,null,null,null,null,null,null,null,0.25]
[null,"SHORT SLEEVE OPENING",null,null,null,null,null,null,null,null,null,null,null,null,null,null,null,null,null,null,null,null,null,null,null,null,null,null,null,null,null,null,null,null,null,null,null,null,null,null,null,null,null,null,null,null,null,null,null,null,null,null,null,null,null,null,null,null,null,0.25]
[null,"3/4 SLEEVE OPENING",null,null,null,null,null,null,null,null,null,null,null,null,null,null,null,null,null,null,null,null,null,null,null,null,null,null,null,null,null,null,null,null,null,null,null,null,null,null,null,null,null,null,null,null,null,null,null,null,null,null,null,null,null,null,null,null,null,0.25]
[null,"LONG SLEEVE OPENING",null,null,null,null,null,null,null,null,null,null,null,null,null,null,null,null,null,null,null,null,null,null,null,null,null,null,null,null,null,null,null,null,null,null,null,null,null,null,null,null,null,null,null,null,null,null,null,null,null,null,null,null,null,null,null,null,null,0.25]
[null,"SLEEVE CAP HEIGHT ( FROM TOP OF SLEEVE TO UNDERARM )",null,null,null,null,null,null,null,null,null,null,null,null,null,null,null,null,null,null,null,null,null,null,null,null,null,null,null,null,null,null,null,null,null,null,null,null,null,null,null,null,null,null,null,null,null,null,null,null,null,null,null,null,null,null,null,null,null,"1/4"]
[null,"SHOULDER SLOPE ( HSP TO SHOULDER ARMHOLE SEAM )",null,null,null,null,null,null,null,null,null,null,null,null,null,null,null,null,null,null,null,null,null,null,null,null,null,null,null,null,null,null,null,null,null,null,null,null,null,null,null,null,null,null,null,null,null,null,null,null,null,null,null,null,null,null,null,null,null,0]
[null,"NECK WIDTH (HSP TO HSP) ON BACK",null,null,null,null,null,null,null,null,null,null,null,null,null,null,null,null,null,null,null,null,null,null,null,null,null,null,null,null,null,null,null,null,null,null,null,null,null,null,null,null,null,null,null,null,null,null,null,null,null,null,null,null,null,null,null,null,null,0.25]
[null,"FRONT NECK DROP ( FROM HSP TO C.F.NECK EDGE OR SEAM )",null,null,null,null,null,null,null,null,null,null,null,null,null,null,null,null,null,null,null,null,null,null,null,null,null,null,null,null,null,null,null,null,null,null,null,null,null,null,null,null,null,null,null,null,null,null,null,null,null,null,null,null,null,null,null,null,null,0.25]
[null,"BACK NECK DROP ( FROM HSP TO C.B. NECK EDGE OR SEAM )",null,null,null,null,null,null,null,null,null,null,null,null,null,null,null,null,null,null,null,null,null,null,null,null,null,null,null,null,null,null,null,null,null,null,null,null,null,null,null,null,null,null,null,null,null,null,null,null,null,null,null,null,null,null,null,null,null,0.25]
[null,"1/2 NECK CIRCUMFERENCE",null,null,null,null,null,null,null,null,null,null,null,null,null,null,null,null,null,null,null,null,null,null,null,null,null,null,null,null,null,null,null,null,null,null,null,null,null,null,null,null,null,null,null,null,null,null,null,null,null,null,null,null,null,null,null,null,null,0.25]
[null,"COLLAR DEPTH ( AT C.B. NECK )",null,null,null,null,null,null,null,null,null,null,null,null,null,null,null,null,null,null,null,null,null,null,null,null,null,null,null,null,null,null,null,null,null,null,null,null,null,null,null,null,null,null,null,null,null,null,null,null,null,null,null,null,null,null,null,null,null,0]
[null,"STAND DEPTH",null,null,null,null,null,null,null,null,null,null,null,null,null,null,null,null,null,null,null,null,null,null,null,null,null,null,null,null,null,null,null,null,null,null,null,null,null,null,null,null,null,null,null,null,null,null,null,null,null,null,null,null,null,null,null,null,null,0]
[null,"COLLAR LENGTH",null,null,null,null,null,null,null,null,null,null,null,null,null,null,null,null,null,null,null,null,null,null,null,null,null,null,null,null,null,null,null,null,null,null,null,null,null,null,null,null,null,null,null,null,null,null,null,null,null,null,null,null,null,null,null,null,null,0.25]
[null,"NECK TRIM DEPTH",null,null,null,null,null,null,null,null,null,null,null,null,null,null,null,null,null,null,null,null,null,null,null,null,null,null,null,null,null,null,null,null,null,null,null,null,null,null,null,null,null,null,null,null,null,null,null,null,null,null,null,null,null,null,null,null,null,0]
[null,"CUFF DEPTH",null,null,null,null,null,null,null,null,null,null,null,null,null,null,null,null,null,null,null,null,null,null,null,null,null,null,null,null,null,null,null,null,null,null,null,null,null,null,null,null,null,null,null,null,null,null,null,null,null,null,null,null,null,null,null,null,null,0]
[null,"SLEEVE HEM DEPTH",null,null,null,null,null,null,null,null,null,null,null,null,null,null,null,null,null,null,null,null,null,null,null,null,null,null,null,null,null,null,null,null,null,null,null,null,null,null,null,null,null,null,null,null,null,null,null,null,null,null,null,null,null,null,null,null,null,0]
[null,"BOTTOM HEM DEPTH",null,null,null,null,null,null,null,null,null,null,null,null,null,null,null,null,null,null,null,null,null,null,null,null,null,null,null,null,null,null,null,null,null,null,null,null,null,null,null,null,null,null,null,null,null,null,null,null,null,null,null,null,null,null,null,null,null,0]
[null,"BACK HEM WIDTH ( STRAIGHT FROM SEAM TO SEAM )",null,null,null,null,null,null,null,null,null,null,null,null,null,null,null,null,null,null,null,null,null,null,null,null,null,null,null,null,null,null,null,null,null,null,null,null,null,null,null,null,null,null,null,null,null,null,null,null,null,null,null,null,null,null,null,null,null,0.375]
[]
[null,"HOOD DEPTH AT CENTRE FRONT ( TOP HOOD TO NECK)",null,null,null,null,null,null,null,null,null,null,null,null,null,null,null,null,null,null,null,null,null,null,null,null,null,null,null,null,null,null,null,null,null,null,null,null,null,null,null,null,null,null,null,null,null,null,null,null,null,null,null,null,null,null,null,null,null,0.25]
[null,"HOOD DEPTH AT SHOULDER ( TOP HOOD TO SHOULDER SEAM)",null,null,null,null,null,null,null,null,null,null,null,null,null,null,null,null,null,null,null,null,null,null,null,null,null,null,null,null,null,null,null,null,null,null,null,null,null,null,null,null,null,null,null,null,null,null,null,null,null,null,null,null,null,null,null,null,null,0.25]
[null,"HOOD WIDTH (4\" BELOW TOP OF HOOD)",null,null,null,null,null,null,null,null,null,null,null,null,null,null,null,null,null,null,null,null,null,null,null,null,null,null,null,null,null,null,null,null,null,null,null,null,null,null,null,null,null,null,null,null,null,null,null,null,null,null,null,null,null,null,null,null,null,0.25]
[null,"HOOD OVERHEAD ( FOLLOWED ALONG C.B. SEAM )",null,null,null,null,null,null,null,null,null,null,null,null,null,null,null,null,null,null,null,null,null,null,null,null,null,null,null,null,null,null,null,null,null,null,null,null,null,null,null,null,null,null,null,null,null,null,null,null,null,null,null,null,null,null,null,null,null,0.375]
[null,"Shipment Accepted?"]